Department Family,Entity,Date,Expense Type,Expense Area,Supplier,Transaction Number,Amount,Item Description
BEIS,UKRI - AHRC,01/08/2019,Secondments,SMT,University of Leicester,98548439,30843.72,Secondments
BEIS,UKRI - AHRC,01/08/2019,T&S UK - Other Charges,SMT,University of Leicester,98548439,2891.08,T&S UK - Other Charges
BEIS,UKRI - AHRC,01/08/2019,Non-staff travel and subsistance,GCRF - Programme Delivery,Non Employee Expenses Supplier,98548471,163.76,Non-staff travel and subsistance
BEIS,UKRI - AHRC,01/08/2019,T&S UK - Subsistence,Public and Stakeholder Engagement,Unspecified,98548472,10.78,T&S UK - Subsistence
BEIS,UKRI - AHRC,01/08/2019,T&S UK - Mileage,"History, Heritage, Languages and Literature",Unspecified,98548473,73.89,T&S UK - Mileage
BEIS,UKRI - AHRC,01/08/2019,T&S UK - Subsistence,"History, Heritage, Languages and Literature",Unspecified,98548473,9.97,T&S UK - Subsistence
BEIS,UKRI - AHRC,02/08/2019,Recruitment Costs,Corporate Services,Warwick University Services Ltd,98548416,245.00,Recruitment Costs
BEIS,UKRI - AHRC,02/08/2019,Contract Staff,PSU JRS,Alexander Mann Solutions Ltd,98549299,3423.12,Contract Staff
BEIS,UKRI - AHRC,02/08/2019,Contract Staff,PSU Project Office,Alexander Mann Solutions Ltd,98549305,2236.46,Contract Staff
BEIS,UKRI - AHRC,02/08/2019,T&S UK - Public Transport,SMT,Unspecified,98549856,69.78,T&S UK - Public Transport
BEIS,UKRI - AHRC,02/08/2019,T&S UK - Public Transport,SMT,Unspecified,98549856,6.10,T&S UK - Public Transport
BEIS,UKRI - AHRC,02/08/2019,T&S UK - Subsistence,SMT,Unspecified,98549856,5.98,T&S UK - Subsistence
BEIS,UKRI - AHRC,02/08/2019,T&S UK - Subsistence,SMT,Unspecified,98549856,8.90,T&S UK - Subsistence
BEIS,UKRI - AHRC,02/08/2019,T&S UK - Subsistence,SMT,Unspecified,98549856,23.60,T&S UK - Subsistence
BEIS,UKRI - AHRC,02/08/2019,T&S UK - Subsistence,SMT,Unspecified,98549856,5.00,T&S UK - Subsistence
BEIS,UKRI - AHRC,05/08/2019,Non-staff travel and subsistance,Public and Stakeholder Engagement,Non Employee Expenses Supplier,98549565,160.17,Non-staff travel and subsistance
BEIS,UKRI - AHRC,05/08/2019,Non-staff travel and subsistance,Public and Stakeholder Engagement,Non Employee Expenses Supplier,98549566,148.50,Non-staff travel and subsistance
BEIS,UKRI - AHRC,05/08/2019,Non-staff travel and subsistance,Public and Stakeholder Engagement,Non Employee Expenses Supplier,98549567,124.00,Non-staff travel and subsistance
BEIS,UKRI - AHRC,05/08/2019,Non-staff travel and subsistance,Public and Stakeholder Engagement,Non Employee Expenses Supplier,98549568,245.16,Non-staff travel and subsistance
BEIS,UKRI - AHRC,05/08/2019,Non-staff travel and subsistance,Newton Programme,Non Employee Expenses Supplier,98549569,55.25,Non-staff travel and subsistance
BEIS,UKRI - AHRC,05/08/2019,Meetings & Catering,Public and Stakeholder Engagement,Baxter Storey Ltd,98549992,618.96,Meetings & Catering
BEIS,UKRI - AHRC,05/08/2019,Hospitality,"History, Heritage, Languages and Literature",House of Commons,98550292,1000.00,Hospitality
BEIS,UKRI - AHRC,05/08/2019,Non-staff travel and subsistance,GCRF - Programme Delivery,Non Employee Expenses Supplier,98550755,2448.44,Non-staff travel and subsistance
BEIS,UKRI - AHRC,05/08/2019,Non-staff travel and subsistance,GCRF - Programme Delivery,Non Employee Expenses Supplier,98550756,1139.52,Non-staff travel and subsistance
BEIS,UKRI - AHRC,06/08/2019,Provision for Early Retirement Liability,Corporate Services,RCPS Pension,98547816,1517.85,Provision for Early Retirement Liability
BEIS,UKRI - AHRC,06/08/2019,Computing Consumables,Corporate Services,UK Shared Business Services Ltd,98548728,15508.60,Computing Consumables
BEIS,UKRI - AHRC,06/08/2019,Corporate Events,SMT,Society of Antiquaries of London,98550562,2491.20,Corporate Events
BEIS,UKRI - AHRC,06/08/2019,Meetings & Catering,SMT,Baxter Storey Ltd,98551057,195.60,Meetings & Catering
BEIS,UKRI - AHRC,06/08/2019,Non-staff travel and subsistance,International Development and Area Studies,Corporate Travel Management (North) Ltd,98551236,0.80,Non-staff travel and subsistance
BEIS,UKRI - AHRC,06/08/2019,Non-staff travel and subsistance,International Development and Area Studies,Corporate Travel Management (North) Ltd,98551236,0.16,Non-staff travel and subsistance
BEIS,UKRI - AHRC,06/08/2019,Non-staff travel and subsistance,Public and Stakeholder Engagement,Corporate Travel Management (North) Ltd,98551236,-177.24,Non-staff travel and subsistance
BEIS,UKRI - AHRC,06/08/2019,Steam,Fund for International Collaboration,Corporate Travel Management (North) Ltd,98551236,2.16,Steam
BEIS,UKRI - AHRC,06/08/2019,Steam,Fund for International Collaboration,Corporate Travel Management (North) Ltd,98551236,1477.92,Steam
BEIS,UKRI - AHRC,06/08/2019,Steam,Fund for International Collaboration,Corporate Travel Management (North) Ltd,98551236,2.16,Steam
BEIS,UKRI - AHRC,06/08/2019,Steam,Fund for International Collaboration,Corporate Travel Management (North) Ltd,98551236,1477.92,Steam
BEIS,UKRI - AHRC,06/08/2019,T&S Overseas - Accommodation,Fund for International Collaboration,Corporate Travel Management (North) Ltd,98551236,0.50,T&S Overseas - Accommodation
BEIS,UKRI - AHRC,06/08/2019,T&S Overseas - Accommodation,Fund for International Collaboration,Corporate Travel Management (North) Ltd,98551236,0.10,T&S Overseas - Accommodation
BEIS,UKRI - AHRC,06/08/2019,T&S Overseas - Accommodation,International Development and Area Studies,Corporate Travel Management (North) Ltd,98551236,105.27,T&S Overseas - Accommodation
BEIS,UKRI - AHRC,06/08/2019,T&S Overseas - Accommodation,SMT,Corporate Travel Management (North) Ltd,98551236,0.50,T&S Overseas - Accommodation
BEIS,UKRI - AHRC,06/08/2019,T&S Overseas - Accommodation,SMT,Corporate Travel Management (North) Ltd,98551236,0.50,T&S Overseas - Accommodation
BEIS,UKRI - AHRC,06/08/2019,T&S Overseas - Accommodation,SMT,Corporate Travel Management (North) Ltd,98551236,0.20,T&S Overseas - Accommodation
BEIS,UKRI - AHRC,06/08/2019,T&S Overseas - Flights,HR,Corporate Travel Management (North) Ltd,98551236,2799.02,T&S Overseas - Flights
BEIS,UKRI - AHRC,06/08/2019,T&S Overseas - Flights,HR,Corporate Travel Management (North) Ltd,98551236,2799.02,T&S Overseas - Flights
BEIS,UKRI - AHRC,06/08/2019,T&S Overseas - Flights,International,Corporate Travel Management (North) Ltd,98551236,-22.90,T&S Overseas - Flights
BEIS,UKRI - AHRC,06/08/2019,T&S Overseas - Flights,SMT,Corporate Travel Management (North) Ltd,98551236,71.38,T&S Overseas - Flights
BEIS,UKRI - AHRC,06/08/2019,T&S Overseas - Flights,SMT,Corporate Travel Management (North) Ltd,98551236,71.00,T&S Overseas - Flights
BEIS,UKRI - AHRC,06/08/2019,T&S Overseas - Flights,SMT,Corporate Travel Management (North) Ltd,98551236,6403.50,T&S Overseas - Flights
BEIS,UKRI - AHRC,06/08/2019,T&S Overseas - Flights,SMT,Corporate Travel Management (North) Ltd,98551236,-92.41,T&S Overseas - Flights
BEIS,UKRI - AHRC,06/08/2019,T&S Overseas - Flights,SMT,Corporate Travel Management (North) Ltd,98551236,2.16,T&S Overseas - Flights
BEIS,UKRI - AHRC,06/08/2019,T&S Overseas - Flights,SMT,Corporate Travel Management (North) Ltd,98551236,276.74,T&S Overseas - Flights
BEIS,UKRI - AHRC,06/08/2019,T&S Overseas - Flights,SMT,Corporate Travel Management (North) Ltd,98551236,203.14,T&S Overseas - Flights
BEIS,UKRI - AHRC,06/08/2019,T&S Overseas - Other Charges,International,Corporate Travel Management (North) Ltd,98551236,-1373.70,T&S Overseas - Other Charges
BEIS,UKRI - AHRC,06/08/2019,T&S UK - Accommodation,Digital Arts and Humanities and Creative Industries,Corporate Travel Management (North) Ltd,98551236,0.50,T&S UK - Accommodation
BEIS,UKRI - AHRC,06/08/2019,T&S UK - Accommodation,Digital Arts and Humanities and Creative Industries,Corporate Travel Management (North) Ltd,98551236,122.00,T&S UK - Accommodation
BEIS,UKRI - AHRC,06/08/2019,T&S UK - Accommodation,Digital Arts and Humanities and Creative Industries,Corporate Travel Management (North) Ltd,98551236,0.50,T&S UK - Accommodation
BEIS,UKRI - AHRC,06/08/2019,T&S UK - Accommodation,Digital Arts and Humanities and Creative Industries,Corporate Travel Management (North) Ltd,98551236,90.00,T&S UK - Accommodation
BEIS,UKRI - AHRC,06/08/2019,T&S UK - Accommodation,Digital Arts and Humanities and Creative Industries,Corporate Travel Management (North) Ltd,98551236,0.20,T&S UK - Accommodation
BEIS,UKRI - AHRC,06/08/2019,T&S UK - Accommodation,HR,Corporate Travel Management (North) Ltd,98551236,0.50,T&S UK - Accommodation
BEIS,UKRI - AHRC,06/08/2019,T&S UK - Accommodation,HR,Corporate Travel Management (North) Ltd,98551236,125.25,T&S UK - Accommodation
BEIS,UKRI - AHRC,06/08/2019,T&S UK - Accommodation,HR,Corporate Travel Management (North) Ltd,98551236,0.50,T&S UK - Accommodation
BEIS,UKRI - AHRC,06/08/2019,T&S UK - Accommodation,HR,Corporate Travel Management (North) Ltd,98551236,65.00,T&S UK - Accommodation
BEIS,UKRI - AHRC,06/08/2019,T&S UK - Accommodation,HR,Corporate Travel Management (North) Ltd,98551236,0.20,T&S UK - Accommodation
BEIS,UKRI - AHRC,06/08/2019,T&S UK - Accommodation,"History, Heritage, Languages and Literature",Corporate Travel Management (North) Ltd,98551236,0.50,T&S UK - Accommodation
BEIS,UKRI - AHRC,06/08/2019,T&S UK - Accommodation,"History, Heritage, Languages and Literature",Corporate Travel Management (North) Ltd,98551236,150.00,T&S UK - Accommodation
BEIS,UKRI - AHRC,06/08/2019,T&S UK - Accommodation,"History, Heritage, Languages and Literature",Corporate Travel Management (North) Ltd,98551236,1.00,T&S UK - Accommodation
BEIS,UKRI - AHRC,06/08/2019,T&S UK - Accommodation,"History, Heritage, Languages and Literature",Corporate Travel Management (North) Ltd,98551236,189.00,T&S UK - Accommodation
BEIS,UKRI - AHRC,06/08/2019,T&S UK - Accommodation,"History, Heritage, Languages and Literature",Corporate Travel Management (North) Ltd,98551236,0.50,T&S UK - Accommodation
BEIS,UKRI - AHRC,06/08/2019,T&S UK - Accommodation,"History, Heritage, Languages and Literature",Corporate Travel Management (North) Ltd,98551236,356.50,T&S UK - Accommodation
BEIS,UKRI - AHRC,06/08/2019,T&S UK - Accommodation,"History, Heritage, Languages and Literature",Corporate Travel Management (North) Ltd,98551236,0.50,T&S UK - Accommodation
BEIS,UKRI - AHRC,06/08/2019,T&S UK - Accommodation,"History, Heritage, Languages and Literature",Corporate Travel Management (North) Ltd,98551236,185.00,T&S UK - Accommodation
BEIS,UKRI - AHRC,06/08/2019,T&S UK - Accommodation,"History, Heritage, Languages and Literature",Corporate Travel Management (North) Ltd,98551236,0.50,T&S UK - Accommodation
BEIS,UKRI - AHRC,06/08/2019,T&S UK - Accommodation,International Development and Area Studies,Corporate Travel Management (North) Ltd,98551236,0.50,T&S UK - Accommodation
BEIS,UKRI - AHRC,06/08/2019,T&S UK - Accommodation,International Development and Area Studies,Corporate Travel Management (North) Ltd,98551236,0.10,T&S UK - Accommodation
BEIS,UKRI - AHRC,06/08/2019,T&S UK - Accommodation,Newton Programme,Corporate Travel Management (North) Ltd,98551236,0.50,T&S UK - Accommodation
BEIS,UKRI - AHRC,06/08/2019,T&S UK - Accommodation,Newton Programme,Corporate Travel Management (North) Ltd,98551236,75.00,T&S UK - Accommodation
BEIS,UKRI - AHRC,06/08/2019,T&S UK - Accommodation,Newton Programme,Corporate Travel Management (North) Ltd,98551236,0.50,T&S UK - Accommodation
BEIS,UKRI - AHRC,06/08/2019,T&S UK - Accommodation,Newton Programme,Corporate Travel Management (North) Ltd,98551236,75.00,T&S UK - Accommodation
BEIS,UKRI - AHRC,06/08/2019,T&S UK - Accommodation,Newton Programme,Corporate Travel Management (North) Ltd,98551236,0.50,T&S UK - Accommodation
BEIS,UKRI - AHRC,06/08/2019,T&S UK - Accommodation,Newton Programme,Corporate Travel Management (North) Ltd,98551236,75.00,T&S UK - Accommodation
BEIS,UKRI - AHRC,06/08/2019,T&S UK - Accommodation,Newton Programme,Corporate Travel Management (North) Ltd,98551236,0.30,T&S UK - Accommodation
BEIS,UKRI - AHRC,06/08/2019,T&S UK - Accommodation,PSU Project Office,Corporate Travel Management (North) Ltd,98551236,0.50,T&S UK - Accommodation
BEIS,UKRI - AHRC,06/08/2019,T&S UK - Accommodation,PSU Project Office,Corporate Travel Management (North) Ltd,98551236,77.75,T&S UK - Accommodation
BEIS,UKRI - AHRC,06/08/2019,T&S UK - Accommodation,PSU Project Office,Corporate Travel Management (North) Ltd,98551236,0.50,T&S UK - Accommodation
BEIS,UKRI - AHRC,06/08/2019,T&S UK - Accommodation,PSU Project Office,Corporate Travel Management (North) Ltd,98551236,162.24,T&S UK - Accommodation
BEIS,UKRI - AHRC,06/08/2019,T&S UK - Accommodation,PSU Project Office,Corporate Travel Management (North) Ltd,98551236,-65.25,T&S UK - Accommodation
BEIS,UKRI - AHRC,06/08/2019,T&S UK - Accommodation,PSU Project Office,Corporate Travel Management (North) Ltd,98551236,0.20,T&S UK - Accommodation
BEIS,UKRI - AHRC,06/08/2019,T&S UK - Accommodation,Public and Stakeholder Engagement,Corporate Travel Management (North) Ltd,98551236,0.50,T&S UK - Accommodation
BEIS,UKRI - AHRC,06/08/2019,T&S UK - Accommodation,Public and Stakeholder Engagement,Corporate Travel Management (North) Ltd,98551236,493.64,T&S UK - Accommodation
BEIS,UKRI - AHRC,06/08/2019,T&S UK - Accommodation,Public and Stakeholder Engagement,Corporate Travel Management (North) Ltd,98551236,0.50,T&S UK - Accommodation
BEIS,UKRI - AHRC,06/08/2019,T&S UK - Accommodation,Public and Stakeholder Engagement,Corporate Travel Management (North) Ltd,98551236,229.24,T&S UK - Accommodation
BEIS,UKRI - AHRC,06/08/2019,T&S UK - Accommodation,Public and Stakeholder Engagement,Corporate Travel Management (North) Ltd,98551236,0.20,T&S UK - Accommodation
BEIS,UKRI - AHRC,06/08/2019,T&S UK - Accommodation,SMT,Corporate Travel Management (North) Ltd,98551236,0.50,T&S UK - Accommodation
BEIS,UKRI - AHRC,06/08/2019,T&S UK - Accommodation,SMT,Corporate Travel Management (North) Ltd,98551236,178.00,T&S UK - Accommodation
BEIS,UKRI - AHRC,06/08/2019,T&S UK - Accommodation,SMT,Corporate Travel Management (North) Ltd,98551236,0.50,T&S UK - Accommodation
BEIS,UKRI - AHRC,06/08/2019,T&S UK - Accommodation,SMT,Corporate Travel Management (North) Ltd,98551236,99.00,T&S UK - Accommodation
BEIS,UKRI - AHRC,06/08/2019,T&S UK - Accommodation,SMT,Corporate Travel Management (North) Ltd,98551236,0.50,T&S UK - Accommodation
BEIS,UKRI - AHRC,06/08/2019,T&S UK - Accommodation,SMT,Corporate Travel Management (North) Ltd,98551236,99.00,T&S UK - Accommodation
BEIS,UKRI - AHRC,06/08/2019,T&S UK - Accommodation,SMT,Corporate Travel Management (North) Ltd,98551236,0.50,T&S UK - Accommodation
BEIS,UKRI - AHRC,06/08/2019,T&S UK - Accommodation,SMT,Corporate Travel Management (North) Ltd,98551236,99.00,T&S UK - Accommodation
BEIS,UKRI - AHRC,06/08/2019,T&S UK - Accommodation,SMT,Corporate Travel Management (North) Ltd,98551236,0.50,T&S UK - Accommodation
BEIS,UKRI - AHRC,06/08/2019,T&S UK - Accommodation,SMT,Corporate Travel Management (North) Ltd,98551236,99.00,T&S UK - Accommodation
BEIS,UKRI - AHRC,06/08/2019,T&S UK - Accommodation,SMT,Corporate Travel Management (North) Ltd,98551236,0.50,T&S UK - Accommodation
BEIS,UKRI - AHRC,06/08/2019,T&S UK - Accommodation,SMT,Corporate Travel Management (North) Ltd,98551236,99.00,T&S UK - Accommodation
BEIS,UKRI - AHRC,06/08/2019,T&S UK - Accommodation,SMT,Corporate Travel Management (North) Ltd,98551236,0.50,T&S UK - Accommodation
BEIS,UKRI - AHRC,06/08/2019,T&S UK - Accommodation,SMT,Corporate Travel Management (North) Ltd,98551236,99.00,T&S UK - Accommodation
BEIS,UKRI - AHRC,06/08/2019,T&S UK - Accommodation,SMT,Corporate Travel Management (North) Ltd,98551236,0.50,T&S UK - Accommodation
BEIS,UKRI - AHRC,06/08/2019,T&S UK - Accommodation,SMT,Corporate Travel Management (North) Ltd,98551236,178.00,T&S UK - Accommodation
BEIS,UKRI - AHRC,06/08/2019,T&S UK - Accommodation,SMT,Corporate Travel Management (North) Ltd,98551236,0.70,T&S UK - Accommodation
BEIS,UKRI - AHRC,06/08/2019,T&S UK - Accommodation,SMT,Corporate Travel Management (North) Ltd,98551236,0.50,T&S UK - Accommodation
BEIS,UKRI - AHRC,06/08/2019,T&S UK - Accommodation,SMT,Corporate Travel Management (North) Ltd,98551236,208.25,T&S UK - Accommodation
BEIS,UKRI - AHRC,06/08/2019,T&S UK - Accommodation,SMT,Corporate Travel Management (North) Ltd,98551236,0.50,T&S UK - Accommodation
BEIS,UKRI - AHRC,06/08/2019,T&S UK - Accommodation,SMT,Corporate Travel Management (North) Ltd,98551236,370.00,T&S UK - Accommodation
BEIS,UKRI - AHRC,06/08/2019,T&S UK - Accommodation,SMT,Corporate Travel Management (North) Ltd,98551236,0.50,T&S UK - Accommodation
BEIS,UKRI - AHRC,06/08/2019,T&S UK - Accommodation,SMT,Corporate Travel Management (North) Ltd,98551236,185.00,T&S UK - Accommodation
BEIS,UKRI - AHRC,06/08/2019,T&S UK - Accommodation,SMT,Corporate Travel Management (North) Ltd,98551236,0.50,T&S UK - Accommodation
BEIS,UKRI - AHRC,06/08/2019,T&S UK - Accommodation,SMT,Corporate Travel Management (North) Ltd,98551236,934.00,T&S UK - Accommodation
BEIS,UKRI - AHRC,06/08/2019,T&S UK - Accommodation,SMT,Corporate Travel Management (North) Ltd,98551236,0.50,T&S UK - Accommodation
BEIS,UKRI - AHRC,06/08/2019,T&S UK - Accommodation,SMT,Corporate Travel Management (North) Ltd,98551236,69.00,T&S UK - Accommodation
BEIS,UKRI - AHRC,06/08/2019,T&S UK - Accommodation,SMT,Corporate Travel Management (North) Ltd,98551236,0.80,T&S UK - Accommodation
BEIS,UKRI - AHRC,06/08/2019,T&S UK - Accommodation,SMT,Corporate Travel Management (North) Ltd,98551236,65.00,T&S UK - Accommodation
BEIS,UKRI - AHRC,06/08/2019,T&S UK - Accommodation,SMT,Corporate Travel Management (North) Ltd,98551236,1.46,T&S UK - Accommodation
BEIS,UKRI - AHRC,06/08/2019,T&S UK - Accommodation,Secretariat,Corporate Travel Management (North) Ltd,98551236,0.50,T&S UK - Accommodation
BEIS,UKRI - AHRC,06/08/2019,T&S UK - Accommodation,Secretariat,Corporate Travel Management (North) Ltd,98551236,89.00,T&S UK - Accommodation
BEIS,UKRI - AHRC,06/08/2019,T&S UK - Accommodation,Secretariat,Corporate Travel Management (North) Ltd,98551236,0.50,T&S UK - Accommodation
BEIS,UKRI - AHRC,06/08/2019,T&S UK - Accommodation,Secretariat,Corporate Travel Management (North) Ltd,98551236,2.00,T&S UK - Accommodation
BEIS,UKRI - AHRC,06/08/2019,T&S UK - Accommodation,Secretariat,Corporate Travel Management (North) Ltd,98551236,89.00,T&S UK - Accommodation
BEIS,UKRI - AHRC,06/08/2019,T&S UK - Accommodation,Secretariat,Corporate Travel Management (North) Ltd,98551236,0.50,T&S UK - Accommodation
BEIS,UKRI - AHRC,06/08/2019,T&S UK - Accommodation,Secretariat,Corporate Travel Management (North) Ltd,98551236,1.44,T&S UK - Accommodation
BEIS,UKRI - AHRC,06/08/2019,T&S UK - Accommodation,Secretariat,Corporate Travel Management (North) Ltd,98551236,89.00,T&S UK - Accommodation
BEIS,UKRI - AHRC,06/08/2019,T&S UK - Accommodation,Secretariat,Corporate Travel Management (North) Ltd,98551236,0.50,T&S UK - Accommodation
BEIS,UKRI - AHRC,06/08/2019,T&S UK - Accommodation,Secretariat,Corporate Travel Management (North) Ltd,98551236,99.00,T&S UK - Accommodation
BEIS,UKRI - AHRC,06/08/2019,T&S UK - Accommodation,Secretariat,Corporate Travel Management (North) Ltd,98551236,0.50,T&S UK - Accommodation
BEIS,UKRI - AHRC,06/08/2019,T&S UK - Accommodation,Secretariat,Corporate Travel Management (North) Ltd,98551236,89.00,T&S UK - Accommodation
BEIS,UKRI - AHRC,06/08/2019,T&S UK - Accommodation,Secretariat,Corporate Travel Management (North) Ltd,98551236,0.50,T&S UK - Accommodation
BEIS,UKRI - AHRC,06/08/2019,T&S UK - Accommodation,Secretariat,Corporate Travel Management (North) Ltd,98551236,178.00,T&S UK - Accommodation
BEIS,UKRI - AHRC,06/08/2019,T&S UK - Accommodation,Secretariat,Corporate Travel Management (North) Ltd,98551236,0.50,T&S UK - Accommodation
BEIS,UKRI - AHRC,06/08/2019,T&S UK - Accommodation,Secretariat,Corporate Travel Management (North) Ltd,98551236,178.00,T&S UK - Accommodation
BEIS,UKRI - AHRC,06/08/2019,T&S UK - Accommodation,Secretariat,Corporate Travel Management (North) Ltd,98551236,0.50,T&S UK - Accommodation
BEIS,UKRI - AHRC,06/08/2019,T&S UK - Accommodation,Secretariat,Corporate Travel Management (North) Ltd,98551236,89.00,T&S UK - Accommodation
BEIS,UKRI - AHRC,06/08/2019,T&S UK - Accommodation,Secretariat,Corporate Travel Management (North) Ltd,98551236,0.50,T&S UK - Accommodation
BEIS,UKRI - AHRC,06/08/2019,T&S UK - Accommodation,Secretariat,Corporate Travel Management (North) Ltd,98551236,89.00,T&S UK - Accommodation
BEIS,UKRI - AHRC,06/08/2019,T&S UK - Accommodation,Secretariat,Corporate Travel Management (North) Ltd,98551236,0.50,T&S UK - Accommodation
BEIS,UKRI - AHRC,06/08/2019,T&S UK - Accommodation,Secretariat,Corporate Travel Management (North) Ltd,98551236,178.00,T&S UK - Accommodation
BEIS,UKRI - AHRC,06/08/2019,T&S UK - Accommodation,Secretariat,Corporate Travel Management (North) Ltd,98551236,0.50,T&S UK - Accommodation
BEIS,UKRI - AHRC,06/08/2019,T&S UK - Accommodation,Secretariat,Corporate Travel Management (North) Ltd,98551236,178.00,T&S UK - Accommodation
BEIS,UKRI - AHRC,06/08/2019,T&S UK - Accommodation,Secretariat,Corporate Travel Management (North) Ltd,98551236,0.50,T&S UK - Accommodation
BEIS,UKRI - AHRC,06/08/2019,T&S UK - Accommodation,Secretariat,Corporate Travel Management (North) Ltd,98551236,178.00,T&S UK - Accommodation
BEIS,UKRI - AHRC,06/08/2019,T&S UK - Accommodation,Secretariat,Corporate Travel Management (North) Ltd,98551236,0.50,T&S UK - Accommodation
BEIS,UKRI - AHRC,06/08/2019,T&S UK - Accommodation,Secretariat,Corporate Travel Management (North) Ltd,98551236,99.00,T&S UK - Accommodation
BEIS,UKRI - AHRC,06/08/2019,T&S UK - Accommodation,Secretariat,Corporate Travel Management (North) Ltd,98551236,0.50,T&S UK - Accommodation
BEIS,UKRI - AHRC,06/08/2019,T&S UK - Accommodation,Secretariat,Corporate Travel Management (North) Ltd,98551236,170.10,T&S UK - Accommodation
BEIS,UKRI - AHRC,06/08/2019,T&S UK - Accommodation,Secretariat,Corporate Travel Management (North) Ltd,98551236,0.50,T&S UK - Accommodation
BEIS,UKRI - AHRC,06/08/2019,T&S UK - Accommodation,Secretariat,Corporate Travel Management (North) Ltd,98551236,1.44,T&S UK - Accommodation
BEIS,UKRI - AHRC,06/08/2019,T&S UK - Accommodation,Secretariat,Corporate Travel Management (North) Ltd,98551236,170.10,T&S UK - Accommodation
BEIS,UKRI - AHRC,06/08/2019,T&S UK - Accommodation,Secretariat,Corporate Travel Management (North) Ltd,98551236,0.50,T&S UK - Accommodation
BEIS,UKRI - AHRC,06/08/2019,T&S UK - Accommodation,Secretariat,Corporate Travel Management (North) Ltd,98551236,1.44,T&S UK - Accommodation
BEIS,UKRI - AHRC,06/08/2019,T&S UK - Accommodation,Secretariat,Corporate Travel Management (North) Ltd,98551236,170.10,T&S UK - Accommodation
BEIS,UKRI - AHRC,06/08/2019,T&S UK - Accommodation,Secretariat,Corporate Travel Management (North) Ltd,98551236,0.50,T&S UK - Accommodation
BEIS,UKRI - AHRC,06/08/2019,T&S UK - Accommodation,Secretariat,Corporate Travel Management (North) Ltd,98551236,185.00,T&S UK - Accommodation
BEIS,UKRI - AHRC,06/08/2019,T&S UK - Accommodation,Secretariat,Corporate Travel Management (North) Ltd,98551236,0.50,T&S UK - Accommodation
BEIS,UKRI - AHRC,06/08/2019,T&S UK - Accommodation,Secretariat,Corporate Travel Management (North) Ltd,98551236,140.00,T&S UK - Accommodation
BEIS,UKRI - AHRC,06/08/2019,T&S UK - Accommodation,Secretariat,Corporate Travel Management (North) Ltd,98551236,3.07,T&S UK - Accommodation
BEIS,UKRI - AHRC,06/08/2019,T&S UK - Flights,Digital Arts and Humanities and Creative Industries,Corporate Travel Management (North) Ltd,98551236,141.44,T&S UK - Flights
BEIS,UKRI - AHRC,06/08/2019,T&S UK - Flights,Digital Arts and Humanities and Creative Industries,Corporate Travel Management (North) Ltd,98551236,140.62,T&S UK - Flights
BEIS,UKRI - AHRC,06/08/2019,T&S UK - Flights,Secretariat,Corporate Travel Management (North) Ltd,98551236,527.31,T&S UK - Flights
BEIS,UKRI - AHRC,06/08/2019,T&S UK - Public Transport,Digital Arts and Humanities and Creative Industries,Corporate Travel Management (North) Ltd,98551236,1.00,T&S UK - Public Transport
BEIS,UKRI - AHRC,06/08/2019,T&S UK - Public Transport,Digital Arts and Humanities and Creative Industries,Corporate Travel Management (North) Ltd,98551236,144.00,T&S UK - Public Transport
BEIS,UKRI - AHRC,06/08/2019,T&S UK - Public Transport,Digital Arts and Humanities and Creative Industries,Corporate Travel Management (North) Ltd,98551236,1.00,T&S UK - Public Transport
BEIS,UKRI - AHRC,06/08/2019,T&S UK - Public Transport,Digital Arts and Humanities and Creative Industries,Corporate Travel Management (North) Ltd,98551236,54.10,T&S UK - Public Transport
BEIS,UKRI - AHRC,06/08/2019,T&S UK - Public Transport,Digital Arts and Humanities and Creative Industries,Corporate Travel Management (North) Ltd,98551236,-64.90,T&S UK - Public Transport
BEIS,UKRI - AHRC,06/08/2019,T&S UK - Public Transport,Digital Arts and Humanities and Creative Industries,Corporate Travel Management (North) Ltd,98551236,1.00,T&S UK - Public Transport
BEIS,UKRI - AHRC,06/08/2019,T&S UK - Public Transport,Digital Arts and Humanities and Creative Industries,Corporate Travel Management (North) Ltd,98551236,144.00,T&S UK - Public Transport
BEIS,UKRI - AHRC,06/08/2019,T&S UK - Public Transport,Digital Arts and Humanities and Creative Industries,Corporate Travel Management (North) Ltd,98551236,69.90,T&S UK - Public Transport
BEIS,UKRI - AHRC,06/08/2019,T&S UK - Public Transport,Digital Arts and Humanities and Creative Industries,Corporate Travel Management (North) Ltd,98551236,-67.00,T&S UK - Public Transport
BEIS,UKRI - AHRC,06/08/2019,T&S UK - Public Transport,Digital Arts and Humanities and Creative Industries,Corporate Travel Management (North) Ltd,98551236,-64.80,T&S UK - Public Transport
BEIS,UKRI - AHRC,06/08/2019,T&S UK - Public Transport,Digital Arts and Humanities and Creative Industries,Corporate Travel Management (North) Ltd,98551236,10.00,T&S UK - Public Transport
BEIS,UKRI - AHRC,06/08/2019,T&S UK - Public Transport,Digital Arts and Humanities and Creative Industries,Corporate Travel Management (North) Ltd,98551236,-104.40,T&S UK - Public Transport
BEIS,UKRI - AHRC,06/08/2019,T&S UK - Public Transport,Digital Arts and Humanities and Creative Industries,Corporate Travel Management (North) Ltd,98551236,0.50,T&S UK - Public Transport
BEIS,UKRI - AHRC,06/08/2019,T&S UK - Public Transport,Digital Arts and Humanities and Creative Industries,Corporate Travel Management (North) Ltd,98551236,32.10,T&S UK - Public Transport
BEIS,UKRI - AHRC,06/08/2019,T&S UK - Public Transport,Digital Arts and Humanities and Creative Industries,Corporate Travel Management (North) Ltd,98551236,12.50,T&S UK - Public Transport
BEIS,UKRI - AHRC,06/08/2019,T&S UK - Public Transport,Digital Arts and Humanities and Creative Industries,Corporate Travel Management (North) Ltd,98551236,0.25,T&S UK - Public Transport
BEIS,UKRI - AHRC,06/08/2019,T&S UK - Public Transport,Digital Arts and Humanities and Creative Industries,Corporate Travel Management (North) Ltd,98551236,120.00,T&S UK - Public Transport
BEIS,UKRI - AHRC,06/08/2019,T&S UK - Public Transport,Executive Office,Corporate Travel Management (North) Ltd,98551236,-26.80,T&S UK - Public Transport
BEIS,UKRI - AHRC,06/08/2019,T&S UK - Public Transport,Executive Office,Corporate Travel Management (North) Ltd,98551236,-107.00,T&S UK - Public Transport
BEIS,UKRI - AHRC,06/08/2019,T&S UK - Public Transport,Finance,Corporate Travel Management (North) Ltd,98551236,16.50,T&S UK - Public Transport
BEIS,UKRI - AHRC,06/08/2019,T&S UK - Public Transport,Finance,Corporate Travel Management (North) Ltd,98551236,23.70,T&S UK - Public Transport
BEIS,UKRI - AHRC,06/08/2019,T&S UK - Public Transport,Finance,Corporate Travel Management (North) Ltd,98551236,23.70,T&S UK - Public Transport
BEIS,UKRI - AHRC,06/08/2019,T&S UK - Public Transport,Finance,Corporate Travel Management (North) Ltd,98551236,23.70,T&S UK - Public Transport
BEIS,UKRI - AHRC,06/08/2019,T&S UK - Public Transport,Finance,Corporate Travel Management (North) Ltd,98551236,0.25,T&S UK - Public Transport
BEIS,UKRI - AHRC,06/08/2019,T&S UK - Public Transport,Finance,Corporate Travel Management (North) Ltd,98551236,23.70,T&S UK - Public Transport
BEIS,UKRI - AHRC,06/08/2019,T&S UK - Public Transport,Finance,Corporate Travel Management (North) Ltd,98551236,0.25,T&S UK - Public Transport
BEIS,UKRI - AHRC,06/08/2019,T&S UK - Public Transport,Finance,Corporate Travel Management (North) Ltd,98551236,23.70,T&S UK - Public Transport
BEIS,UKRI - AHRC,06/08/2019,T&S UK - Public Transport,GCRF - Programme Delivery,Corporate Travel Management (North) Ltd,98551236,69.90,T&S UK - Public Transport
BEIS,UKRI - AHRC,06/08/2019,T&S UK - Public Transport,GCRF - Programme Delivery,Corporate Travel Management (North) Ltd,98551236,69.25,T&S UK - Public Transport
BEIS,UKRI - AHRC,06/08/2019,T&S UK - Public Transport,GCRF - Programme Delivery,Corporate Travel Management (North) Ltd,98551236,0.25,T&S UK - Public Transport
BEIS,UKRI - AHRC,06/08/2019,T&S UK - Public Transport,GCRF - Programme Delivery,Corporate Travel Management (North) Ltd,98551236,88.30,T&S UK - Public Transport
BEIS,UKRI - AHRC,06/08/2019,T&S UK - Public Transport,HR,Corporate Travel Management (North) Ltd,98551236,131.00,T&S UK - Public Transport
BEIS,UKRI - AHRC,06/08/2019,T&S UK - Public Transport,HR,Corporate Travel Management (North) Ltd,98551236,1.00,T&S UK - Public Transport
BEIS,UKRI - AHRC,06/08/2019,T&S UK - Public Transport,HR,Corporate Travel Management (North) Ltd,98551236,103.80,T&S UK - Public Transport
BEIS,UKRI - AHRC,06/08/2019,T&S UK - Public Transport,HR,Corporate Travel Management (North) Ltd,98551236,74.20,T&S UK - Public Transport
BEIS,UKRI - AHRC,06/08/2019,T&S UK - Public Transport,HR,Corporate Travel Management (North) Ltd,98551236,28.80,T&S UK - Public Transport
BEIS,UKRI - AHRC,06/08/2019,T&S UK - Public Transport,HR,Corporate Travel Management (North) Ltd,98551236,39.40,T&S UK - Public Transport
BEIS,UKRI - AHRC,06/08/2019,T&S UK - Public Transport,HR,Corporate Travel Management (North) Ltd,98551236,151.10,T&S UK - Public Transport
BEIS,UKRI - AHRC,06/08/2019,T&S UK - Public Transport,HR,Corporate Travel Management (North) Ltd,98551236,1.00,T&S UK - Public Transport
BEIS,UKRI - AHRC,06/08/2019,T&S UK - Public Transport,HR,Corporate Travel Management (North) Ltd,98551236,96.10,T&S UK - Public Transport
BEIS,UKRI - AHRC,06/08/2019,T&S UK - Public Transport,HR,Corporate Travel Management (North) Ltd,98551236,-18.70,T&S UK - Public Transport
BEIS,UKRI - AHRC,06/08/2019,T&S UK - Public Transport,HR,Corporate Travel Management (North) Ltd,98551236,23.70,T&S UK - Public Transport
BEIS,UKRI - AHRC,06/08/2019,T&S UK - Public Transport,HR,Corporate Travel Management (North) Ltd,98551236,1.00,T&S UK - Public Transport
BEIS,UKRI - AHRC,06/08/2019,T&S UK - Public Transport,HR,Corporate Travel Management (North) Ltd,98551236,96.10,T&S UK - Public Transport
BEIS,UKRI - AHRC,06/08/2019,T&S UK - Public Transport,HR,Corporate Travel Management (North) Ltd,98551236,110.40,T&S UK - Public Transport
BEIS,UKRI - AHRC,06/08/2019,T&S UK - Public Transport,HR,Corporate Travel Management (North) Ltd,98551236,110.40,T&S UK - Public Transport
BEIS,UKRI - AHRC,06/08/2019,T&S UK - Public Transport,HR,Corporate Travel Management (North) Ltd,98551236,0.13,T&S UK - Public Transport
BEIS,UKRI - AHRC,06/08/2019,T&S UK - Public Transport,HR,Corporate Travel Management (North) Ltd,98551236,23.70,T&S UK - Public Transport
BEIS,UKRI - AHRC,06/08/2019,T&S UK - Public Transport,HR,Corporate Travel Management (North) Ltd,98551236,0.12,T&S UK - Public Transport
BEIS,UKRI - AHRC,06/08/2019,T&S UK - Public Transport,HR,Corporate Travel Management (North) Ltd,98551236,23.70,T&S UK - Public Transport
BEIS,UKRI - AHRC,06/08/2019,T&S UK - Public Transport,HR,Corporate Travel Management (North) Ltd,98551236,23.70,T&S UK - Public Transport
BEIS,UKRI - AHRC,06/08/2019,T&S UK - Public Transport,"History, Heritage, Languages and Literature",Corporate Travel Management (North) Ltd,98551236,0.25,T&S UK - Public Transport
BEIS,UKRI - AHRC,06/08/2019,T&S UK - Public Transport,"History, Heritage, Languages and Literature",Corporate Travel Management (North) Ltd,98551236,70.50,T&S UK - Public Transport
BEIS,UKRI - AHRC,06/08/2019,T&S UK - Public Transport,"History, Heritage, Languages and Literature",Corporate Travel Management (North) Ltd,98551236,103.80,T&S UK - Public Transport
BEIS,UKRI - AHRC,06/08/2019,T&S UK - Public Transport,"History, Heritage, Languages and Literature",Corporate Travel Management (North) Ltd,98551236,21.00,T&S UK - Public Transport
BEIS,UKRI - AHRC,06/08/2019,T&S UK - Public Transport,"History, Heritage, Languages and Literature",Corporate Travel Management (North) Ltd,98551236,23.70,T&S UK - Public Transport
BEIS,UKRI - AHRC,06/08/2019,T&S UK - Public Transport,"History, Heritage, Languages and Literature",Corporate Travel Management (North) Ltd,98551236,144.00,T&S UK - Public Transport
BEIS,UKRI - AHRC,06/08/2019,T&S UK - Public Transport,"History, Heritage, Languages and Literature",Corporate Travel Management (North) Ltd,98551236,28.20,T&S UK - Public Transport
BEIS,UKRI - AHRC,06/08/2019,T&S UK - Public Transport,"History, Heritage, Languages and Literature",Corporate Travel Management (North) Ltd,98551236,138.00,T&S UK - Public Transport
BEIS,UKRI - AHRC,06/08/2019,T&S UK - Public Transport,"History, Heritage, Languages and Literature",Corporate Travel Management (North) Ltd,98551236,1.00,T&S UK - Public Transport
BEIS,UKRI - AHRC,06/08/2019,T&S UK - Public Transport,"History, Heritage, Languages and Literature",Corporate Travel Management (North) Ltd,98551236,71.80,T&S UK - Public Transport
BEIS,UKRI - AHRC,06/08/2019,T&S UK - Public Transport,"History, Heritage, Languages and Literature",Corporate Travel Management (North) Ltd,98551236,1.00,T&S UK - Public Transport
BEIS,UKRI - AHRC,06/08/2019,T&S UK - Public Transport,"History, Heritage, Languages and Literature",Corporate Travel Management (North) Ltd,98551236,144.00,T&S UK - Public Transport
BEIS,UKRI - AHRC,06/08/2019,T&S UK - Public Transport,"History, Heritage, Languages and Literature",Corporate Travel Management (North) Ltd,98551236,165.40,T&S UK - Public Transport
BEIS,UKRI - AHRC,06/08/2019,T&S UK - Public Transport,IS,Corporate Travel Management (North) Ltd,98551236,9.80,T&S UK - Public Transport
BEIS,UKRI - AHRC,06/08/2019,T&S UK - Public Transport,IS,Corporate Travel Management (North) Ltd,98551236,68.20,T&S UK - Public Transport
BEIS,UKRI - AHRC,06/08/2019,T&S UK - Public Transport,Industrial Strategy Challenge Fund (ISCF) - Creative Clusters,Corporate Travel Management (North) Ltd,98551236,1.00,T&S UK - Public Transport
BEIS,UKRI - AHRC,06/08/2019,T&S UK - Public Transport,Industrial Strategy Challenge Fund (ISCF) - Creative Clusters,Corporate Travel Management (North) Ltd,98551236,103.80,T&S UK - Public Transport
BEIS,UKRI - AHRC,06/08/2019,T&S UK - Public Transport,Industrial Strategy Challenge Fund (ISCF) - Creative Clusters,Corporate Travel Management (North) Ltd,98551236,0.25,T&S UK - Public Transport
BEIS,UKRI - AHRC,06/08/2019,T&S UK - Public Transport,Industrial Strategy Challenge Fund (ISCF) - Creative Clusters,Corporate Travel Management (North) Ltd,98551236,150.50,T&S UK - Public Transport
BEIS,UKRI - AHRC,06/08/2019,T&S UK - Public Transport,Industrial Strategy Challenge Fund (ISCF) - Creative Clusters,Corporate Travel Management (North) Ltd,98551236,120.20,T&S UK - Public Transport
BEIS,UKRI - AHRC,06/08/2019,T&S UK - Public Transport,Industrial Strategy Challenge Fund (ISCF) - Creative Clusters,Corporate Travel Management (North) Ltd,98551236,1.00,T&S UK - Public Transport
BEIS,UKRI - AHRC,06/08/2019,T&S UK - Public Transport,Industrial Strategy Challenge Fund (ISCF) - Creative Clusters,Corporate Travel Management (North) Ltd,98551236,171.00,T&S UK - Public Transport
BEIS,UKRI - AHRC,06/08/2019,T&S UK - Public Transport,Industrial Strategy Challenge Fund (ISCF) - Creative Clusters,Corporate Travel Management (North) Ltd,98551236,1.00,T&S UK - Public Transport
BEIS,UKRI - AHRC,06/08/2019,T&S UK - Public Transport,Industrial Strategy Challenge Fund (ISCF) - Creative Clusters,Corporate Travel Management (North) Ltd,98551236,27.50,T&S UK - Public Transport
BEIS,UKRI - AHRC,06/08/2019,T&S UK - Public Transport,Industrial Strategy Challenge Fund (ISCF) - Creative Clusters,Corporate Travel Management (North) Ltd,98551236,1.00,T&S UK - Public Transport
BEIS,UKRI - AHRC,06/08/2019,T&S UK - Public Transport,Industrial Strategy Challenge Fund (ISCF) - Creative Clusters,Corporate Travel Management (North) Ltd,98551236,92.10,T&S UK - Public Transport
BEIS,UKRI - AHRC,06/08/2019,T&S UK - Public Transport,International Development and Area Studies,Corporate Travel Management (North) Ltd,98551236,5.00,T&S UK - Public Transport
BEIS,UKRI - AHRC,06/08/2019,T&S UK - Public Transport,International Development and Area Studies,Corporate Travel Management (North) Ltd,98551236,-93.80,T&S UK - Public Transport
BEIS,UKRI - AHRC,06/08/2019,T&S UK - Public Transport,International Development and Area Studies,Corporate Travel Management (North) Ltd,98551236,-67.00,T&S UK - Public Transport
BEIS,UKRI - AHRC,06/08/2019,T&S UK - Public Transport,International Development and Area Studies,Corporate Travel Management (North) Ltd,98551236,1.00,T&S UK - Public Transport
BEIS,UKRI - AHRC,06/08/2019,T&S UK - Public Transport,International Development and Area Studies,Corporate Travel Management (North) Ltd,98551236,144.00,T&S UK - Public Transport
BEIS,UKRI - AHRC,06/08/2019,T&S UK - Public Transport,International Development and Area Studies,Corporate Travel Management (North) Ltd,98551236,103.80,T&S UK - Public Transport
BEIS,UKRI - AHRC,06/08/2019,T&S UK - Public Transport,International Partnership and Engagement,Corporate Travel Management (North) Ltd,98551236,-18.40,T&S UK - Public Transport
BEIS,UKRI - AHRC,06/08/2019,T&S UK - Public Transport,International Partnership and Engagement,Corporate Travel Management (North) Ltd,98551236,-9.90,T&S UK - Public Transport
BEIS,UKRI - AHRC,06/08/2019,T&S UK - Public Transport,International Partnership and Engagement,Corporate Travel Management (North) Ltd,98551236,69.90,T&S UK - Public Transport
BEIS,UKRI - AHRC,06/08/2019,T&S UK - Public Transport,PSU Project Office,Corporate Travel Management (North) Ltd,98551236,0.25,T&S UK - Public Transport
BEIS,UKRI - AHRC,06/08/2019,T&S UK - Public Transport,PSU Project Office,Corporate Travel Management (North) Ltd,98551236,144.70,T&S UK - Public Transport
BEIS,UKRI - AHRC,06/08/2019,T&S UK - Public Transport,PSU Project Office,Corporate Travel Management (North) Ltd,98551236,91.10,T&S UK - Public Transport
BEIS,UKRI - AHRC,06/08/2019,T&S UK - Public Transport,PSU Project Office,Corporate Travel Management (North) Ltd,98551236,114.40,T&S UK - Public Transport
BEIS,UKRI - AHRC,06/08/2019,T&S UK - Public Transport,PSU Project Office,Corporate Travel Management (North) Ltd,98551236,156.60,T&S UK - Public Transport
BEIS,UKRI - AHRC,06/08/2019,T&S UK - Public Transport,PSU Project Office,Corporate Travel Management (North) Ltd,98551236,144.70,T&S UK - Public Transport
BEIS,UKRI - AHRC,06/08/2019,T&S UK - Public Transport,PSU Project Office,Corporate Travel Management (North) Ltd,98551236,144.70,T&S UK - Public Transport
BEIS,UKRI - AHRC,06/08/2019,T&S UK - Public Transport,PSU Project Office,Corporate Travel Management (North) Ltd,98551236,2.60,T&S UK - Public Transport
BEIS,UKRI - AHRC,06/08/2019,T&S UK - Public Transport,PSU Project Office,Corporate Travel Management (North) Ltd,98551236,177.00,T&S UK - Public Transport
BEIS,UKRI - AHRC,06/08/2019,T&S UK - Public Transport,PSU Project Office,Corporate Travel Management (North) Ltd,98551236,23.70,T&S UK - Public Transport
BEIS,UKRI - AHRC,06/08/2019,T&S UK - Public Transport,PSU Project Office,Corporate Travel Management (North) Ltd,98551236,144.00,T&S UK - Public Transport
BEIS,UKRI - AHRC,06/08/2019,T&S UK - Public Transport,PSU Project Office,Corporate Travel Management (North) Ltd,98551236,156.60,T&S UK - Public Transport
BEIS,UKRI - AHRC,06/08/2019,T&S UK - Public Transport,PSU Project Office,Corporate Travel Management (North) Ltd,98551236,91.10,T&S UK - Public Transport
BEIS,UKRI - AHRC,06/08/2019,T&S UK - Public Transport,PSU Project Office,Corporate Travel Management (North) Ltd,98551236,144.00,T&S UK - Public Transport
BEIS,UKRI - AHRC,06/08/2019,T&S UK - Public Transport,PSU Project Office,Corporate Travel Management (North) Ltd,98551236,127.60,T&S UK - Public Transport
BEIS,UKRI - AHRC,06/08/2019,T&S UK - Public Transport,PSU Project Office,Corporate Travel Management (North) Ltd,98551236,144.70,T&S UK - Public Transport
BEIS,UKRI - AHRC,06/08/2019,T&S UK - Public Transport,PSU Project Office,Corporate Travel Management (North) Ltd,98551236,144.70,T&S UK - Public Transport
BEIS,UKRI - AHRC,06/08/2019,T&S UK - Public Transport,PSU Project Office,Corporate Travel Management (North) Ltd,98551236,0.25,T&S UK - Public Transport
BEIS,UKRI - AHRC,06/08/2019,T&S UK - Public Transport,PSU Project Office,Corporate Travel Management (North) Ltd,98551236,91.10,T&S UK - Public Transport
BEIS,UKRI - AHRC,06/08/2019,T&S UK - Public Transport,PSU Project Office,Corporate Travel Management (North) Ltd,98551236,0.25,T&S UK - Public Transport
BEIS,UKRI - AHRC,06/08/2019,T&S UK - Public Transport,PSU Project Office,Corporate Travel Management (North) Ltd,98551236,144.00,T&S UK - Public Transport
BEIS,UKRI - AHRC,06/08/2019,T&S UK - Public Transport,PSU Project Office,Corporate Travel Management (North) Ltd,98551236,2.60,T&S UK - Public Transport
BEIS,UKRI - AHRC,06/08/2019,T&S UK - Public Transport,PSU Project Office,Corporate Travel Management (North) Ltd,98551236,138.00,T&S UK - Public Transport
BEIS,UKRI - AHRC,06/08/2019,T&S UK - Public Transport,PSU Project Office,Corporate Travel Management (North) Ltd,98551236,0.25,T&S UK - Public Transport
BEIS,UKRI - AHRC,06/08/2019,T&S UK - Public Transport,PSU Project Office,Corporate Travel Management (North) Ltd,98551236,127.60,T&S UK - Public Transport
BEIS,UKRI - AHRC,06/08/2019,T&S UK - Public Transport,PSU Project Office,Corporate Travel Management (North) Ltd,98551236,0.25,T&S UK - Public Transport
BEIS,UKRI - AHRC,06/08/2019,T&S UK - Public Transport,PSU Project Office,Corporate Travel Management (North) Ltd,98551236,12.50,T&S UK - Public Transport
BEIS,UKRI - AHRC,06/08/2019,T&S UK - Public Transport,Public and Stakeholder Engagement,Corporate Travel Management (North) Ltd,98551236,87.00,T&S UK - Public Transport
BEIS,UKRI - AHRC,06/08/2019,T&S UK - Public Transport,Public and Stakeholder Engagement,Corporate Travel Management (North) Ltd,98551236,12.00,T&S UK - Public Transport
BEIS,UKRI - AHRC,06/08/2019,T&S UK - Public Transport,Public and Stakeholder Engagement,Corporate Travel Management (North) Ltd,98551236,87.00,T&S UK - Public Transport
BEIS,UKRI - AHRC,06/08/2019,T&S UK - Public Transport,Public and Stakeholder Engagement,Corporate Travel Management (North) Ltd,98551236,16.75,T&S UK - Public Transport
BEIS,UKRI - AHRC,06/08/2019,T&S UK - Public Transport,Public and Stakeholder Engagement,Corporate Travel Management (North) Ltd,98551236,82.30,T&S UK - Public Transport
BEIS,UKRI - AHRC,06/08/2019,T&S UK - Public Transport,Public and Stakeholder Engagement,Corporate Travel Management (North) Ltd,98551236,13.10,T&S UK - Public Transport
BEIS,UKRI - AHRC,06/08/2019,T&S UK - Public Transport,Public and Stakeholder Engagement,Corporate Travel Management (North) Ltd,98551236,82.30,T&S UK - Public Transport
BEIS,UKRI - AHRC,06/08/2019,T&S UK - Public Transport,Public and Stakeholder Engagement,Corporate Travel Management (North) Ltd,98551236,16.75,T&S UK - Public Transport
BEIS,UKRI - AHRC,06/08/2019,T&S UK - Public Transport,Public and Stakeholder Engagement,Corporate Travel Management (North) Ltd,98551236,91.10,T&S UK - Public Transport
BEIS,UKRI - AHRC,06/08/2019,T&S UK - Public Transport,Public and Stakeholder Engagement,Corporate Travel Management (North) Ltd,98551236,87.00,T&S UK - Public Transport
BEIS,UKRI - AHRC,06/08/2019,T&S UK - Public Transport,Public and Stakeholder Engagement,Corporate Travel Management (North) Ltd,98551236,189.25,T&S UK - Public Transport
BEIS,UKRI - AHRC,06/08/2019,T&S UK - Public Transport,Public and Stakeholder Engagement,Corporate Travel Management (North) Ltd,98551236,142.90,T&S UK - Public Transport
BEIS,UKRI - AHRC,06/08/2019,T&S UK - Public Transport,Public and Stakeholder Engagement,Corporate Travel Management (North) Ltd,98551236,0.25,T&S UK - Public Transport
BEIS,UKRI - AHRC,06/08/2019,T&S UK - Public Transport,Public and Stakeholder Engagement,Corporate Travel Management (North) Ltd,98551236,151.60,T&S UK - Public Transport
BEIS,UKRI - AHRC,06/08/2019,T&S UK - Public Transport,SMT,Corporate Travel Management (North) Ltd,98551236,65.20,T&S UK - Public Transport
BEIS,UKRI - AHRC,06/08/2019,T&S UK - Public Transport,SMT,Corporate Travel Management (North) Ltd,98551236,-64.00,T&S UK - Public Transport
BEIS,UKRI - AHRC,06/08/2019,T&S UK - Public Transport,SMT,Corporate Travel Management (North) Ltd,98551236,218.00,T&S UK - Public Transport
BEIS,UKRI - AHRC,06/08/2019,T&S UK - Public Transport,SMT,Corporate Travel Management (North) Ltd,98551236,23.40,T&S UK - Public Transport
BEIS,UKRI - AHRC,06/08/2019,T&S UK - Public Transport,SMT,Corporate Travel Management (North) Ltd,98551236,23.40,T&S UK - Public Transport
BEIS,UKRI - AHRC,06/08/2019,T&S UK - Public Transport,SMT,Corporate Travel Management (North) Ltd,98551236,127.50,T&S UK - Public Transport
BEIS,UKRI - AHRC,06/08/2019,T&S UK - Public Transport,SMT,Corporate Travel Management (North) Ltd,98551236,123.50,T&S UK - Public Transport
BEIS,UKRI - AHRC,06/08/2019,T&S UK - Public Transport,SMT,Corporate Travel Management (North) Ltd,98551236,-23.80,T&S UK - Public Transport
BEIS,UKRI - AHRC,06/08/2019,T&S UK - Public Transport,SMT,Corporate Travel Management (North) Ltd,98551236,-103.70,T&S UK - Public Transport
BEIS,UKRI - AHRC,06/08/2019,T&S UK - Public Transport,SMT,Corporate Travel Management (North) Ltd,98551236,13.06,T&S UK - Public Transport
BEIS,UKRI - AHRC,06/08/2019,T&S UK - Public Transport,SMT,Corporate Travel Management (North) Ltd,98551236,1.00,T&S UK - Public Transport
BEIS,UKRI - AHRC,06/08/2019,T&S UK - Public Transport,SMT,Corporate Travel Management (North) Ltd,98551236,71.10,T&S UK - Public Transport
BEIS,UKRI - AHRC,06/08/2019,T&S UK - Public Transport,SMT,Corporate Travel Management (North) Ltd,98551236,98.00,T&S UK - Public Transport
BEIS,UKRI - AHRC,06/08/2019,T&S UK - Public Transport,SMT,Corporate Travel Management (North) Ltd,98551236,159.10,T&S UK - Public Transport
BEIS,UKRI - AHRC,06/08/2019,T&S UK - Public Transport,SMT,Corporate Travel Management (North) Ltd,98551236,1.00,T&S UK - Public Transport
BEIS,UKRI - AHRC,06/08/2019,T&S UK - Public Transport,SMT,Corporate Travel Management (North) Ltd,98551236,71.10,T&S UK - Public Transport
BEIS,UKRI - AHRC,06/08/2019,T&S UK - Public Transport,SMT,Corporate Travel Management (North) Ltd,98551236,133.10,T&S UK - Public Transport
BEIS,UKRI - AHRC,06/08/2019,T&S UK - Public Transport,SMT,Corporate Travel Management (North) Ltd,98551236,138.00,T&S UK - Public Transport
BEIS,UKRI - AHRC,06/08/2019,T&S UK - Public Transport,SMT,Corporate Travel Management (North) Ltd,98551236,97.80,T&S UK - Public Transport
BEIS,UKRI - AHRC,06/08/2019,T&S UK - Public Transport,SMT,Corporate Travel Management (North) Ltd,98551236,-18.40,T&S UK - Public Transport
BEIS,UKRI - AHRC,06/08/2019,T&S UK - Public Transport,SMT,Corporate Travel Management (North) Ltd,98551236,28.80,T&S UK - Public Transport
BEIS,UKRI - AHRC,06/08/2019,T&S UK - Public Transport,SMT,Corporate Travel Management (North) Ltd,98551236,97.80,T&S UK - Public Transport
BEIS,UKRI - AHRC,06/08/2019,T&S UK - Public Transport,SMT,Corporate Travel Management (North) Ltd,98551236,4.90,T&S UK - Public Transport
BEIS,UKRI - AHRC,06/08/2019,T&S UK - Public Transport,SMT,Corporate Travel Management (North) Ltd,98551236,108.40,T&S UK - Public Transport
BEIS,UKRI - AHRC,06/08/2019,T&S UK - Public Transport,SMT,Corporate Travel Management (North) Ltd,98551236,78.80,T&S UK - Public Transport
BEIS,UKRI - AHRC,06/08/2019,T&S UK - Public Transport,SMT,Corporate Travel Management (North) Ltd,98551236,78.80,T&S UK - Public Transport
BEIS,UKRI - AHRC,06/08/2019,T&S UK - Public Transport,SMT,Corporate Travel Management (North) Ltd,98551236,4.90,T&S UK - Public Transport
BEIS,UKRI - AHRC,06/08/2019,T&S UK - Public Transport,SMT,Corporate Travel Management (North) Ltd,98551236,89.00,T&S UK - Public Transport
BEIS,UKRI - AHRC,06/08/2019,T&S UK - Public Transport,SMT,Corporate Travel Management (North) Ltd,98551236,5.00,T&S UK - Public Transport
BEIS,UKRI - AHRC,06/08/2019,T&S UK - Public Transport,SMT,Corporate Travel Management (North) Ltd,98551236,-66.70,T&S UK - Public Transport
BEIS,UKRI - AHRC,06/08/2019,T&S UK - Public Transport,SMT,Corporate Travel Management (North) Ltd,98551236,97.80,T&S UK - Public Transport
BEIS,UKRI - AHRC,06/08/2019,T&S UK - Public Transport,SMT,Corporate Travel Management (North) Ltd,98551236,5.00,T&S UK - Public Transport
BEIS,UKRI - AHRC,06/08/2019,T&S UK - Public Transport,SMT,Corporate Travel Management (North) Ltd,98551236,-20.00,T&S UK - Public Transport
BEIS,UKRI - AHRC,06/08/2019,T&S UK - Public Transport,SMT,Corporate Travel Management (North) Ltd,98551236,76.70,T&S UK - Public Transport
BEIS,UKRI - AHRC,06/08/2019,T&S UK - Public Transport,SMT,Corporate Travel Management (North) Ltd,98551236,108.40,T&S UK - Public Transport
BEIS,UKRI - AHRC,06/08/2019,T&S UK - Public Transport,SMT,Corporate Travel Management (North) Ltd,98551236,108.40,T&S UK - Public Transport
BEIS,UKRI - AHRC,06/08/2019,T&S UK - Public Transport,SMT,Corporate Travel Management (North) Ltd,98551236,0.25,T&S UK - Public Transport
BEIS,UKRI - AHRC,06/08/2019,T&S UK - Public Transport,SMT,Corporate Travel Management (North) Ltd,98551236,38.10,T&S UK - Public Transport
BEIS,UKRI - AHRC,06/08/2019,T&S UK - Public Transport,SMT,Corporate Travel Management (North) Ltd,98551236,23.70,T&S UK - Public Transport
BEIS,UKRI - AHRC,06/08/2019,T&S UK - Public Transport,SMT,Corporate Travel Management (North) Ltd,98551236,138.00,T&S UK - Public Transport
BEIS,UKRI - AHRC,06/08/2019,T&S UK - Public Transport,SMT,Corporate Travel Management (North) Ltd,98551236,0.50,T&S UK - Public Transport
BEIS,UKRI - AHRC,06/08/2019,T&S UK - Public Transport,SMT,Corporate Travel Management (North) Ltd,98551236,227.00,T&S UK - Public Transport
BEIS,UKRI - AHRC,06/08/2019,T&S UK - Public Transport,SMT,Corporate Travel Management (North) Ltd,98551236,213.20,T&S UK - Public Transport
BEIS,UKRI - AHRC,06/08/2019,T&S UK - Public Transport,SMT,Corporate Travel Management (North) Ltd,98551236,0.25,T&S UK - Public Transport
BEIS,UKRI - AHRC,06/08/2019,T&S UK - Public Transport,SMT,Corporate Travel Management (North) Ltd,98551236,97.80,T&S UK - Public Transport
BEIS,UKRI - AHRC,06/08/2019,T&S UK - Public Transport,SMT,Corporate Travel Management (North) Ltd,98551236,0.50,T&S UK - Public Transport
BEIS,UKRI - AHRC,06/08/2019,T&S UK - Public Transport,SMT,Corporate Travel Management (North) Ltd,98551236,33.70,T&S UK - Public Transport
BEIS,UKRI - AHRC,06/08/2019,T&S UK - Public Transport,SMT,Corporate Travel Management (North) Ltd,98551236,27.30,T&S UK - Public Transport
BEIS,UKRI - AHRC,06/08/2019,T&S UK - Public Transport,Secretariat,Corporate Travel Management (North) Ltd,98551236,94.00,T&S UK - Public Transport
BEIS,UKRI - AHRC,06/08/2019,T&S UK - Public Transport,Skills Strategy,Corporate Travel Management (North) Ltd,98551236,0.25,T&S UK - Public Transport
BEIS,UKRI - AHRC,06/08/2019,T&S UK - Public Transport,Skills Strategy,Corporate Travel Management (North) Ltd,98551236,97.30,T&S UK - Public Transport
BEIS,UKRI - AHRC,06/08/2019,T&S UK - Public Transport,Skills Strategy,Corporate Travel Management (North) Ltd,98551236,184.00,T&S UK - Public Transport
BEIS,UKRI - AHRC,06/08/2019,Non-staff travel and subsistance,GCRF - Programme Delivery,Non Employee Expenses Supplier,98551322,134.95,Non-staff travel and subsistance
BEIS,UKRI - AHRC,06/08/2019,Non-staff travel and subsistance,GCRF - Programme Delivery,Non Employee Expenses Supplier,98551323,191.40,Non-staff travel and subsistance
BEIS,UKRI - AHRC,06/08/2019,Non-staff travel and subsistance,GCRF - Programme Delivery,Non Employee Expenses Supplier,98551324,940.94,Non-staff travel and subsistance
BEIS,UKRI - AHRC,06/08/2019,Legal & Professional Services,SMT,Unspecified,98551415,2337.96,Legal & Professional Services
BEIS,UKRI - AHRC,06/08/2019,Health & Safety (inc. Medicals & Opticians),SMT,Unspecified,98551769,100.00,Health & Safety (inc. Medicals & Opticians)
BEIS,UKRI - AHRC,08/08/2019,Advertising & Promotion,Public and Stakeholder Engagement,Unspecified,98552846,2600.00,Advertising & Promotion
BEIS,UKRI - AHRC,09/08/2019,Printing & Stationery,PSU Project Office,RS Components,98551382,31.39,Printing & Stationery
BEIS,UKRI - AHRC,09/08/2019,Non-staff travel and subsistance,GCRF - Programme Delivery,Non Employee Expenses Supplier,98554233,85.50,Non-staff travel and subsistance
BEIS,UKRI - AHRC,09/08/2019,Agency Staff,Finance,Hays Specialist Recruitment Ltd,98554270,1089.90,Agency Staff
BEIS,UKRI - AHRC,09/08/2019,Agency Staff,Finance,Hays Specialist Recruitment Ltd,98554271,1089.90,Agency Staff
BEIS,UKRI - AHRC,09/08/2019,Agency Staff,Finance,Hays Specialist Recruitment Ltd,98554272,1453.20,Agency Staff
BEIS,UKRI - AHRC,09/08/2019,Agency Staff,Finance,Hays Specialist Recruitment Ltd,98554273,1816.50,Agency Staff
BEIS,UKRI - AHRC,09/08/2019,Agency Staff,Finance,Hays Specialist Recruitment Ltd,98554276,1725.67,Agency Staff
BEIS,UKRI - AHRC,09/08/2019,Agency Staff,Finance,Hays Specialist Recruitment Ltd,98554278,1816.50,Agency Staff
BEIS,UKRI - AHRC,09/08/2019,Agency Staff,Finance,Hays Specialist Recruitment Ltd,98554279,1089.90,Agency Staff
BEIS,UKRI - AHRC,09/08/2019,T&S UK - Subsistence,SMT,Unspecified,98554337,38.75,T&S UK - Subsistence
BEIS,UKRI - AHRC,09/08/2019,T&S UK - Subsistence,SMT,Unspecified,98554337,50.00,T&S UK - Subsistence
BEIS,UKRI - AHRC,09/08/2019,T&S UK - Subsistence,SMT,Unspecified,98554337,23.50,T&S UK - Subsistence
BEIS,UKRI - AHRC,09/08/2019,T&S UK - Subsistence,SMT,Unspecified,98554337,10.00,T&S UK - Subsistence
BEIS,UKRI - AHRC,09/08/2019,T&S Overseas - Public Transport,International Development and Area Studies,Unspecified,98554338,59.40,T&S Overseas - Public Transport
BEIS,UKRI - AHRC,09/08/2019,T&S Overseas - Subsistence,International Development and Area Studies,Unspecified,98554338,33.27,T&S Overseas - Subsistence
BEIS,UKRI - AHRC,09/08/2019,T&S Overseas - Subsistence,International Development and Area Studies,Unspecified,98554338,20.70,T&S Overseas - Subsistence
BEIS,UKRI - AHRC,09/08/2019,T&S UK - Other Charges,International Development and Area Studies,Unspecified,98554338,11.09,T&S UK - Other Charges
BEIS,UKRI - AHRC,09/08/2019,T&S UK - Public Transport,International Development and Area Studies,Unspecified,98554339,3.50,T&S UK - Public Transport
BEIS,UKRI - AHRC,09/08/2019,T&S UK - Subsistence,International Development and Area Studies,Unspecified,98554339,3.79,T&S UK - Subsistence
BEIS,UKRI - AHRC,09/08/2019,T&S UK - Subsistence,International Development and Area Studies,Unspecified,98554339,9.00,T&S UK - Subsistence
BEIS,UKRI - AHRC,09/08/2019,T&S UK - Subsistence,International Development and Area Studies,Unspecified,98554339,10.00,T&S UK - Subsistence
BEIS,UKRI - AHRC,09/08/2019,Non-staff travel and subsistance,International,Non Employee Expenses Supplier,98554917,330.02,Non-staff travel and subsistance
BEIS,UKRI - AHRC,09/08/2019,Non-staff travel and subsistance,Operations,Non Employee Expenses Supplier,98554918,102.20,Non-staff travel and subsistance
BEIS,UKRI - AHRC,12/08/2019,Contract Staff,PSU JRS,Alexander Mann Solutions Ltd,98554503,3423.12,Contract Staff
BEIS,UKRI - AHRC,12/08/2019,Contract Staff,PSU Project Office,Alexander Mann Solutions Ltd,98554529,2795.58,Contract Staff
BEIS,UKRI - AHRC,13/08/2019,Other Programme Costs,JPI Cultural Heritage Project,Unspecified,98556021,500.00,Other Programme Costs
BEIS,UKRI - AHRC,13/08/2019,T&S UK - Mileage,Digital Arts and Humanities and Creative Industries,Unspecified,98556224,18.00,T&S UK - Mileage
BEIS,UKRI - AHRC,13/08/2019,T&S UK - Subsistence,Digital Arts and Humanities and Creative Industries,Unspecified,98556224,9.40,T&S UK - Subsistence
BEIS,UKRI - AHRC,13/08/2019,T&S UK - Subsistence,Digital Arts and Humanities and Creative Industries,Unspecified,98556224,4.23,T&S UK - Subsistence
BEIS,UKRI - AHRC,13/08/2019,T&S UK - Subsistence,Digital Arts and Humanities and Creative Industries,Unspecified,98556224,10.00,T&S UK - Subsistence
BEIS,UKRI - AHRC,13/08/2019,Staff Training,Corporate Services,ACAS,98556730,1032.00,Staff Training
BEIS,UKRI - AHRC,14/08/2019,Non-staff travel and subsistance,GCRF - Programme Delivery,Non Employee Expenses Supplier,98555496,1000.68,Non-staff travel and subsistance
BEIS,UKRI - AHRC,14/08/2019,NI Payable Salaries,Balance Sheet,HM Revenue & Customs,98555736,47648.47,NI Payable Salaries
BEIS,UKRI - AHRC,14/08/2019,PAYE Payable Salaries,Balance Sheet,HM Revenue & Customs,98555737,33496.82,PAYE Payable Salaries
BEIS,UKRI - AHRC,14/08/2019,Student Loans,Balance Sheet,HM Revenue & Customs,98555738,4244.00,Student Loans
BEIS,UKRI - AHRC,14/08/2019,Apprenticeship Levy,Corporate Services,HM Revenue & Customs,98555739,1201.00,Apprenticeship Levy
BEIS,UKRI - AHRC,14/08/2019,Health & Safety (inc. Medicals & Opticians),Digital Arts and Humanities and Creative Industries,Unspecified,98556609,100.00,Health & Safety (inc. Medicals & Opticians)
BEIS,UKRI - AHRC,14/08/2019,Non-staff travel and subsistance,Fund for International Collaboration,Non Employee Expenses Supplier,98557025,805.18,Non-staff travel and subsistance
BEIS,UKRI - AHRC,15/08/2019,Union Deductions,Balance Sheet,PCS Union,98555741,97.08,Union Deductions
BEIS,UKRI - AHRC,15/08/2019,Ees Pension Deductions - JSS,Balance Sheet,RCPS Pension,98555742,10140.19,Ees Pension Deductions - JSS
BEIS,UKRI - AHRC,15/08/2019,Ers Pension Deductions - JSS,Balance Sheet,RCPS Pension,98555743,45280.88,Ers Pension Deductions - JSS
BEIS,UKRI - AHRC,15/08/2019,Partnership Pension Deductions,Balance Sheet,Scottish Widows,98555744,369.68,Partnership Pension Deductions
BEIS,UKRI - AHRC,15/08/2019,Ers Pension Deductions - JSS,Balance Sheet,Cabinet Office RM Shared Services,98555745,12.83,Ers Pension Deductions - JSS
BEIS,UKRI - AHRC,15/08/2019,Ees Pension Deductions - MyCSP,Balance Sheet,Cabinet Office RM Shared Services,98555746,3842.75,Ees Pension Deductions - MyCSP
BEIS,UKRI - AHRC,15/08/2019,Ers Pension Deductions - MyCSP,Balance Sheet,Cabinet Office RM Shared Services,98555747,21250.64,Ers Pension Deductions - MyCSP
BEIS,UKRI - AHRC,15/08/2019,Ees Pension Deductions - MRC,Balance Sheet,UKRI - Medical Research Council,98555748,335.23,Ees Pension Deductions - MRC
BEIS,UKRI - AHRC,15/08/2019,Ers Pension Deductions - MRC,Balance Sheet,UKRI - Medical Research Council,98555749,773.61,Ers Pension Deductions - MRC
BEIS,UKRI - AHRC,15/08/2019,Advertising & Promotion,Public and Stakeholder Engagement,Unspecified,98557415,400.00,Advertising & Promotion
BEIS,UKRI - AHRC,15/08/2019,Non-staff travel and subsistance,Fund for International Collaboration,Non Employee Expenses Supplier,98557875,889.34,Non-staff travel and subsistance
BEIS,UKRI - AHRC,16/08/2019,Agency Staff,Finance,Hays Specialist Recruitment Ltd,98489477,1725.67,Agency Staff
BEIS,UKRI - AHRC,16/08/2019,Recruitment Costs,Digital Arts and Humanities and Creative Industries,Onefix Recruitment Ltd,98548025,1827.60,Recruitment Costs
BEIS,UKRI - AHRC,16/08/2019,T&S UK - Vehicle Hire,Operations,Enterprise Rent-A-Car UK Ltd,98550919,55.18,T&S UK - Vehicle Hire
BEIS,UKRI - AHRC,16/08/2019,T&S UK - Other Charges,"History, Heritage, Languages and Literature",Unspecified,98558638,2.90,T&S UK - Other Charges
BEIS,UKRI - AHRC,16/08/2019,T&S UK - Parking Tolls Congestion Charges,"History, Heritage, Languages and Literature",Unspecified,98558638,3.30,T&S UK - Parking Tolls Congestion Charges
BEIS,UKRI - AHRC,16/08/2019,T&S UK - Subsistence,"History, Heritage, Languages and Literature",Unspecified,98558638,11.70,T&S UK - Subsistence
BEIS,UKRI - AHRC,16/08/2019,Recruitment Costs,Digital Arts and Humanities and Creative Industries,Onefix Recruitment Ltd,98558783,-729.60,Recruitment Costs
BEIS,UKRI - AHRC,16/08/2019,Contract Staff,PSU Project Office,Alexander Mann Solutions Ltd,98558820,1677.35,Contract Staff
BEIS,UKRI - AHRC,19/08/2019,Non-staff travel and subsistance,SMT,Non Employee Expenses Supplier,98559721,383.25,Non-staff travel and subsistance
BEIS,UKRI - AHRC,19/08/2019,Non-staff travel and subsistance,SMT,Non Employee Expenses Supplier,98559722,27.60,Non-staff travel and subsistance
BEIS,UKRI - AHRC,19/08/2019,Non-staff travel and subsistance,Executive Office,Non Employee Expenses Supplier,98559723,279.94,Non-staff travel and subsistance
BEIS,UKRI - AHRC,19/08/2019,Non-staff travel and subsistance,Executive Office,Non Employee Expenses Supplier,98559724,104.50,Non-staff travel and subsistance
BEIS,UKRI - AHRC,19/08/2019,Non-staff travel and subsistance,SMT,Non Employee Expenses Supplier,98559725,501.17,Non-staff travel and subsistance
BEIS,UKRI - AHRC,19/08/2019,Non-staff travel and subsistance,SMT,Non Employee Expenses Supplier,98559726,176.93,Non-staff travel and subsistance
BEIS,UKRI - AHRC,19/08/2019,Non-staff travel and subsistance,SMT,Non Employee Expenses Supplier,98559727,230.53,Non-staff travel and subsistance
BEIS,UKRI - AHRC,19/08/2019,Non-staff travel and subsistance,Executive Office,Non Employee Expenses Supplier,98559728,323.51,Non-staff travel and subsistance
BEIS,UKRI - AHRC,19/08/2019,Research Grant Expenditure,GCRF - Programme Delivery,Royal Botanic Gardens Kew,98559807,1868.00,Research Grant Expenditure
BEIS,UKRI - AHRC,19/08/2019,Nursery Deductions,Balance Sheet,EDENRED (UK GROUP) LTD,98559820,2198.73,Nursery Deductions
BEIS,UKRI - AHRC,20/08/2019,Printing & Stationery,Corporate Services,Banner Group Ltd,98556816,52.42,Printing & Stationery
BEIS,UKRI - AHRC,20/08/2019,Printing & Stationery,Corporate Services,Banner Group Ltd,98558368,34.94,Printing & Stationery
BEIS,UKRI - AHRC,20/08/2019,Financial Services,Corporate Services,CCI Credit Management Ltd,98561024,1.32,Financial Services
BEIS,UKRI - AHRC,20/08/2019,T&S UK - Mileage,Digital Arts and Humanities and Creative Industries,Unspecified,98562143,6.75,T&S UK - Mileage
BEIS,UKRI - AHRC,20/08/2019,T&S UK - Parking Tolls Congestion Charges,Digital Arts and Humanities and Creative Industries,Unspecified,98562143,6.40,T&S UK - Parking Tolls Congestion Charges
BEIS,UKRI - AHRC,20/08/2019,T&S UK - Subsistence,Digital Arts and Humanities and Creative Industries,Unspecified,98562143,8.88,T&S UK - Subsistence
BEIS,UKRI - AHRC,20/08/2019,T&S UK - Subsistence,Digital Arts and Humanities and Creative Industries,Unspecified,98562143,5.00,T&S UK - Subsistence
BEIS,UKRI - AHRC,21/08/2019,Marketing & PR,SMT,Westminster Publications Ltd,98561281,1140.00,Marketing & PR
BEIS,UKRI - AHRC,21/08/2019,Other Staff Benefits,Corporate Services,EDENRED (UK GROUP) LTD,98562483,7.12,Other Staff Benefits
BEIS,UKRI - AHRC,22/08/2019,Non-staff travel and subsistance,SMT,Non Employee Expenses Supplier,98562651,28.00,Non-staff travel and subsistance
BEIS,UKRI - AHRC,22/08/2019,Non-staff travel and subsistance,SMT,Non Employee Expenses Supplier,98562652,1484.68,Non-staff travel and subsistance
BEIS,UKRI - AHRC,23/08/2019,Recruitment Costs,Operations,Onefix Recruitment Ltd,98564931,150.00,Recruitment Costs
BEIS,UKRI - AHRC,27/08/2019,Provision for Early Retirement Liability,Corporate Services,RCPS Pension,98504519,3027.40,Provision for Early Retirement Liability
BEIS,UKRI - AHRC,27/08/2019,Voluntary Deductions,Balance Sheet,Swindon Office Sports and Social Club,98555740,40.00,Voluntary Deductions
BEIS,UKRI - AHRC,27/08/2019,Contract Staff,PSU Project Office,Alexander Mann Solutions Ltd,98564693,2795.58,Contract Staff
BEIS,UKRI - AHRC,27/08/2019,Contract Staff,PSU JRS,Alexander Mann Solutions Ltd,98564702,2053.87,Contract Staff
BEIS,UKRI - AHRC,27/08/2019,Health & Safety (inc. Medicals & Opticians),Digital Arts and Humanities and Creative Industries,Unspecified,98564822,100.00,Health & Safety (inc. Medicals & Opticians)
BEIS,UKRI - AHRC,27/08/2019,Provision for Early Retirement Liability,Corporate Services,RCPS Pension,98565328,1288.69,Provision for Early Retirement Liability
BEIS,UKRI - AHRC,28/08/2019,Other Staff Benefits,HR,EDENRED (UK GROUP) LTD,98532599,879.06,Other Staff Benefits
BEIS,UKRI - AHRC,28/08/2019,Nursery Deductions,Balance Sheet,EDENRED (UK GROUP) LTD,98536914,-243.00,Nursery Deductions
BEIS,UKRI - AHRC,29/08/2019,Contract Staff,PSU JRS,Alexander Mann Solutions Ltd,98558819,684.62,Contract Staff
BEIS,UKRI - AHRC,29/08/2019,T&S UK - Mileage,Industrial Strategy Challenge Fund (ISCF) - Creative Clusters,Unspecified,98566798,36.72,T&S UK - Mileage
BEIS,UKRI - AHRC,29/08/2019,T&S UK - Parking Tolls Congestion Charges,Industrial Strategy Challenge Fund (ISCF) - Creative Clusters,Unspecified,98566798,60.29,T&S UK - Parking Tolls Congestion Charges
BEIS,UKRI - AHRC,29/08/2019,T&S UK - Public Transport,Industrial Strategy Challenge Fund (ISCF) - Creative Clusters,Unspecified,98566798,8.50,T&S UK - Public Transport
BEIS,UKRI - AHRC,29/08/2019,T&S UK - Subsistence,Industrial Strategy Challenge Fund (ISCF) - Creative Clusters,Unspecified,98566798,36.50,T&S UK - Subsistence
BEIS,UKRI - AHRC,29/08/2019,T&S UK - Subsistence,Industrial Strategy Challenge Fund (ISCF) - Creative Clusters,Unspecified,98566798,4.05,T&S UK - Subsistence
BEIS,UKRI - AHRC,29/08/2019,T&S UK - Subsistence,Industrial Strategy Challenge Fund (ISCF) - Creative Clusters,Unspecified,98566798,5.00,T&S UK - Subsistence
BEIS,UKRI - AHRC,30/08/2019,Non-staff travel and subsistance,SMT,Non Employee Expenses Supplier,98567370,99.30,Non-staff travel and subsistance
BEIS,UKRI - AHRC,30/08/2019,Non-staff travel and subsistance,SMT,Non Employee Expenses Supplier,98567371,290.05,Non-staff travel and subsistance
BEIS,UKRI - AHRC,30/08/2019,T&S UK - Mileage,Public and Stakeholder Engagement,Unspecified,98567472,28.80,T&S UK - Mileage
BEIS,UKRI - AHRC,30/08/2019,T&S UK - Parking Tolls Congestion Charges,Public and Stakeholder Engagement,Unspecified,98567472,14.00,T&S UK - Parking Tolls Congestion Charges
BEIS,UKRI - AHRC,30/08/2019,T&S UK - Subsistence,Public and Stakeholder Engagement,Unspecified,98567472,9.80,T&S UK - Subsistence
BEIS,UKRI - BBSRC,01/08/2019,Other Programme Costs,Innovation and Skills Group CDSU,Calder Conference Ltd,98547482,6453.68,Other Programme Costs
BEIS,UKRI - BBSRC,01/08/2019,Recruitment Costs,PDG - Director,Warwick University Services Ltd,98548414,294.00,Recruitment Costs
BEIS,UKRI - BBSRC,01/08/2019,T&S UK - Public Transport,CE - IRU,Unspecified,98548523,14.00,T&S UK - Public Transport
BEIS,UKRI - BBSRC,01/08/2019,T&S UK - Subsistence,CE - IRU,Unspecified,98548523,3.99,T&S UK - Subsistence
BEIS,UKRI - BBSRC,02/08/2019,Data Storage & Recovery,CIMG - Information Management,Iron Mountain (UK) PLC,98528806,498.82,Data Storage & Recovery
BEIS,UKRI - BBSRC,02/08/2019,Legal & Professional Services,FG - Estates,Pricewaterhouse Coopers LLP,98545720,6824.40,Legal & Professional Services
BEIS,UKRI - BBSRC,02/08/2019,Legal & Professional Services,FG - Estates,Pricewaterhouse Coopers LLP,98545720,10800.00,Legal & Professional Services
BEIS,UKRI - BBSRC,02/08/2019,Health & Safety (inc. Medicals & Opticians),PDG - Director,Abbey Business Interiors Ltd,98547956,1725.60,Health & Safety (inc. Medicals & Opticians)
BEIS,UKRI - BBSRC,02/08/2019,Other Programme Costs,Innovation and Skills Group,NNFCC Ltd,98548371,18485.71,Other Programme Costs
BEIS,UKRI - BBSRC,02/08/2019,Non-staff travel and subsistance,Science Group - Delivery Function,Non Employee Expenses Supplier,98548633,128.80,Non-staff travel and subsistance
BEIS,UKRI - BBSRC,02/08/2019,Non-staff travel and subsistance,Science Group - Delivery Function,Non Employee Expenses Supplier,98548634,26.69,Non-staff travel and subsistance
BEIS,UKRI - BBSRC,02/08/2019,Non-staff travel and subsistance,CE - CPS,Non Employee Expenses Supplier,98548635,278.05,Non-staff travel and subsistance
BEIS,UKRI - BBSRC,02/08/2019,Non-staff travel and subsistance,CE - CPS,Non Employee Expenses Supplier,98548636,39.40,Non-staff travel and subsistance
BEIS,UKRI - BBSRC,02/08/2019,Non-staff travel and subsistance,CE - CPS,Non Employee Expenses Supplier,98548637,59.90,Non-staff travel and subsistance
BEIS,UKRI - BBSRC,02/08/2019,Other Programme Costs,Science Group,Calder Conference Ltd,98548734,6078.74,Other Programme Costs
BEIS,UKRI - BBSRC,02/08/2019,Research Grant Expenditure,ISCF Wave 1: Agri-food Technology Catalyst,Technology Strategy Board (Innovate UK),98549080,9794.95,Research Grant Expenditure
BEIS,UKRI - BBSRC,02/08/2019,Research Grant Expenditure,ISCF Wave 1: Agri-food Technology Catalyst,Technology Strategy Board (Innovate UK),98549084,171871.39,Research Grant Expenditure
BEIS,UKRI - BBSRC,02/08/2019,Other Programme Costs,Innovation and Skills Group CDSU,Jisc Services Ltd,98549244,8790.00,Other Programme Costs
BEIS,UKRI - BBSRC,02/08/2019,T&S UK - Public Transport,Innovation and Skills Group,Unspecified,98549854,4.90,T&S UK - Public Transport
BEIS,UKRI - BBSRC,02/08/2019,T&S UK - Subsistence,Innovation and Skills Group,Unspecified,98549854,5.00,T&S UK - Subsistence
BEIS,UKRI - BBSRC,02/08/2019,T&S UK - Mileage,Innovation and Skills Group,Unspecified,98549855,119.70,T&S UK - Mileage
BEIS,UKRI - BBSRC,02/08/2019,T&S UK - Subsistence,Innovation and Skills Group,Unspecified,98549855,11.00,T&S UK - Subsistence
BEIS,UKRI - BBSRC,02/08/2019,T&S UK - Subsistence,Innovation and Skills Group,Unspecified,98549855,46.94,T&S UK - Subsistence
BEIS,UKRI - BBSRC,02/08/2019,T&S UK - Subsistence,Innovation and Skills Group,Unspecified,98549855,66.20,T&S UK - Subsistence
BEIS,UKRI - BBSRC,02/08/2019,T&S UK - Subsistence,Innovation and Skills Group,Unspecified,98549855,10.00,T&S UK - Subsistence
BEIS,UKRI - BBSRC,02/08/2019,T&S UK - Subsistence,Innovation and Skills Group,Unspecified,98549855,18.49,T&S UK - Subsistence
BEIS,UKRI - BBSRC,05/08/2019,Meetings & Catering,Innovation and Skills Group,Baxter Storey Ltd,98549999,350.52,Meetings & Catering
BEIS,UKRI - BBSRC,05/08/2019,Conferences & Seminars,CIMG - External Relations,Leaf (Linking Environment and Farming),98550176,20000.00,Conferences & Seminars
BEIS,UKRI - BBSRC,05/08/2019,Mobile Phone Costs,JBOS - Administration,Vodafone Ltd,98550192,43.20,Mobile Phone Costs
BEIS,UKRI - BBSRC,05/08/2019,Research & Scientific Equipment,Science Group - Delivery Function,Barnes Coaches Ltd,98550265,385.00,Research & Scientific Equipment
BEIS,UKRI - BBSRC,05/08/2019,Research & Scientific Equipment,Science Group - Delivery Function,Barnes Coaches Ltd,98550266,385.00,Research & Scientific Equipment
BEIS,UKRI - BBSRC,05/08/2019,T&S UK - Public Transport,Science Group,Unspecified,98550465,10.00,T&S UK - Public Transport
BEIS,UKRI - BBSRC,05/08/2019,T&S UK - Subsistence,Science Group,Unspecified,98550465,8.10,T&S UK - Subsistence
BEIS,UKRI - BBSRC,05/08/2019,T&S UK - Subsistence,Science Group,Unspecified,98550465,10.00,T&S UK - Subsistence
BEIS,UKRI - BBSRC,05/08/2019,T&S UK - Vehicle Hire,JBOS Health and Safety,Cross Street Cars,98550913,40.40,T&S UK - Vehicle Hire
BEIS,UKRI - BBSRC,06/08/2019,Research Grant Expenditure,Science Group,UKRI - Engineering & Physical Sciences Research Council,98538756,7903.86,Research Grant Expenditure
BEIS,UKRI - BBSRC,06/08/2019,Research Grant Expenditure,FG - Accounts & Business Planning,UKRI - Medical Research Council,98547815,8403.66,Research Grant Expenditure
BEIS,UKRI - BBSRC,06/08/2019,Compensation Payments,FG - Accounts & Business Planning,RCPS Pension,98548723,3820.53,Compensation Payments
BEIS,UKRI - BBSRC,06/08/2019,Telecoms - Tele/ Video conferencing,CE - IRU,MeetingZone Ltd,98550328,63.54,Telecoms - Tele/ Video conferencing
BEIS,UKRI - BBSRC,06/08/2019,Telecoms - Tele/ Video conferencing,CE - IRU,MeetingZone Ltd,98550328,150.11,Telecoms - Tele/ Video conferencing
BEIS,UKRI - BBSRC,06/08/2019,Telecoms - Tele/ Video conferencing,Science Group,MeetingZone Ltd,98550328,358.79,Telecoms - Tele/ Video conferencing
BEIS,UKRI - BBSRC,06/08/2019,Other Programme Costs,Science Group,Calder Conference Ltd,98550613,360.00,Other Programme Costs
BEIS,UKRI - BBSRC,06/08/2019,Non-staff travel and subsistance,Science Group - Delivery Function,Non Employee Expenses Supplier,98550630,169.54,Non-staff travel and subsistance
BEIS,UKRI - BBSRC,06/08/2019,Meetings & Catering,Innovation and Skills Group,Baxter Storey Ltd,98551060,198.18,Meetings & Catering
BEIS,UKRI - BBSRC,06/08/2019,Meetings & Catering,Science Group - Delivery Function,Baxter Storey Ltd,98551060,4.02,Meetings & Catering
BEIS,UKRI - BBSRC,06/08/2019,Research Institutes - Capital Grants: Major Works,JIC,John Innes Centre,98551295,2674.29,Research Institutes - Capital Grants: Major Works
BEIS,UKRI - BBSRC,06/08/2019,T&S UK - Accommodation,Science Group,Unspecified,98551770,277.06,T&S UK - Accommodation
BEIS,UKRI - BBSRC,06/08/2019,T&S UK - Public Transport,Science Group,Unspecified,98551770,11.00,T&S UK - Public Transport
BEIS,UKRI - BBSRC,06/08/2019,T&S UK - Public Transport,Science Group,Unspecified,98551770,8.78,T&S UK - Public Transport
BEIS,UKRI - BBSRC,06/08/2019,T&S UK - Subsistence,Science Group,Unspecified,98551770,3.99,T&S UK - Subsistence
BEIS,UKRI - BBSRC,06/08/2019,T&S UK - Subsistence,Science Group,Unspecified,98551770,13.99,T&S UK - Subsistence
BEIS,UKRI - BBSRC,06/08/2019,T&S UK - Subsistence,Science Group,Unspecified,98551770,22.87,T&S UK - Subsistence
BEIS,UKRI - BBSRC,06/08/2019,T&S UK - Subsistence,Science Group,Unspecified,98551770,6.36,T&S UK - Subsistence
BEIS,UKRI - BBSRC,06/08/2019,T&S UK - Subsistence,CE - CPS,Unspecified,98551771,5.00,T&S UK - Subsistence
BEIS,UKRI - BBSRC,07/08/2019,Legal & Professional Services,CIMG - External Relations,The Society of Biology / The Royal Society of Biology,98549329,18000.00,Legal & Professional Services
BEIS,UKRI - BBSRC,07/08/2019,Non-staff travel and subsistance,Innovation and Skills Group CDSU,Non Employee Expenses Supplier,98551943,63.00,Non-staff travel and subsistance
BEIS,UKRI - BBSRC,07/08/2019,Non-staff travel and subsistance,Innovation and Skills Group CDSU,Non Employee Expenses Supplier,98551944,119.50,Non-staff travel and subsistance
BEIS,UKRI - BBSRC,07/08/2019,Non-staff travel and subsistance,Innovation and Skills Group CDSU,Non Employee Expenses Supplier,98551945,177.33,Non-staff travel and subsistance
BEIS,UKRI - BBSRC,07/08/2019,Non-staff travel and subsistance,Innovation and Skills Group CDSU,Non Employee Expenses Supplier,98551946,70.90,Non-staff travel and subsistance
BEIS,UKRI - BBSRC,07/08/2019,Non-staff travel and subsistance,Innovation and Skills Group CDSU,Non Employee Expenses Supplier,98551947,58.10,Non-staff travel and subsistance
BEIS,UKRI - BBSRC,07/08/2019,Non-staff travel and subsistance,Innovation and Skills Group CDSU,Non Employee Expenses Supplier,98551948,240.31,Non-staff travel and subsistance
BEIS,UKRI - BBSRC,07/08/2019,Non-staff travel and subsistance,Innovation and Skills Group CDSU,Non Employee Expenses Supplier,98551949,177.30,Non-staff travel and subsistance
BEIS,UKRI - BBSRC,07/08/2019,Non-staff travel and subsistance,Innovation and Skills Group CDSU,Non Employee Expenses Supplier,98551950,122.50,Non-staff travel and subsistance
BEIS,UKRI - BBSRC,07/08/2019,Non-staff travel and subsistance,Innovation and Skills Group CDSU,Non Employee Expenses Supplier,98551951,197.50,Non-staff travel and subsistance
BEIS,UKRI - BBSRC,07/08/2019,Non-staff travel and subsistance,Innovation and Skills Group CDSU,Non Employee Expenses Supplier,98551952,321.20,Non-staff travel and subsistance
BEIS,UKRI - BBSRC,07/08/2019,Non-staff travel and subsistance,Innovation and Skills Group CDSU,Non Employee Expenses Supplier,98551953,80.60,Non-staff travel and subsistance
BEIS,UKRI - BBSRC,07/08/2019,Non-staff travel and subsistance,Innovation and Skills Group CDSU,Non Employee Expenses Supplier,98551954,29.30,Non-staff travel and subsistance
BEIS,UKRI - BBSRC,07/08/2019,Non-staff travel and subsistance,Innovation and Skills Group CDSU,Non Employee Expenses Supplier,98551955,25.40,Non-staff travel and subsistance
BEIS,UKRI - BBSRC,07/08/2019,Non-staff travel and subsistance,Innovation and Skills Group CDSU,Non Employee Expenses Supplier,98551956,106.78,Non-staff travel and subsistance
BEIS,UKRI - BBSRC,07/08/2019,Non-staff travel and subsistance,Innovation and Skills Group CDSU,Non Employee Expenses Supplier,98551957,350.15,Non-staff travel and subsistance
BEIS,UKRI - BBSRC,07/08/2019,Non-staff travel and subsistance,Innovation and Skills Group CDSU,Non Employee Expenses Supplier,98551958,65.20,Non-staff travel and subsistance
BEIS,UKRI - BBSRC,07/08/2019,Non-staff travel and subsistance,Innovation and Skills Group CDSU,Non Employee Expenses Supplier,98551959,65.20,Non-staff travel and subsistance
BEIS,UKRI - BBSRC,07/08/2019,Non-staff travel and subsistance,Innovation and Skills Group CDSU,Non Employee Expenses Supplier,98551960,251.20,Non-staff travel and subsistance
BEIS,UKRI - BBSRC,07/08/2019,Non-staff travel and subsistance,Innovation and Skills Group CDSU,Non Employee Expenses Supplier,98551961,182.34,Non-staff travel and subsistance
BEIS,UKRI - BBSRC,07/08/2019,Non-staff travel and subsistance,Innovation and Skills Group CDSU,Non Employee Expenses Supplier,98551962,109.60,Non-staff travel and subsistance
BEIS,UKRI - BBSRC,07/08/2019,Non-staff travel and subsistance,Innovation and Skills Group CDSU,Non Employee Expenses Supplier,98551963,39.51,Non-staff travel and subsistance
BEIS,UKRI - BBSRC,07/08/2019,Non-staff travel and subsistance,Innovation and Skills Group CDSU,Non Employee Expenses Supplier,98551964,84.10,Non-staff travel and subsistance
BEIS,UKRI - BBSRC,07/08/2019,Non-staff travel and subsistance,Science Group - Delivery Function,Non Employee Expenses Supplier,98551965,54.60,Non-staff travel and subsistance
BEIS,UKRI - BBSRC,07/08/2019,Non-staff travel and subsistance,Science Group - Delivery Function,Non Employee Expenses Supplier,98551966,394.84,Non-staff travel and subsistance
BEIS,UKRI - BBSRC,07/08/2019,Non-staff travel and subsistance,CE - CPS,Non Employee Expenses Supplier,98551967,178.75,Non-staff travel and subsistance
BEIS,UKRI - BBSRC,07/08/2019,Postage & Courier Services,JBOS - Post Room,Unspecified,98552075,134.29,Postage & Courier Services
BEIS,UKRI - BBSRC,07/08/2019,Postage & Courier Services,JBOS - Post Room,Unspecified,98552075,-0.02,Postage & Courier Services
BEIS,UKRI - BBSRC,07/08/2019,T&S UK - Subsistence,CE - Chief Executive,Unspecified,98552281,60.00,T&S UK - Subsistence
BEIS,UKRI - BBSRC,08/08/2019,Non-staff travel and subsistance,Innovation and Skills Group CDSU,Agri-Food Solutions Ltd,98550507,331.30,Non-staff travel and subsistance
BEIS,UKRI - BBSRC,08/08/2019,Recruitment Costs,PDG - Director,Agenda Resource Management Ltd,98550668,155.91,Recruitment Costs
BEIS,UKRI - BBSRC,08/08/2019,T&S UK - Vehicle Hire,CE - CPS,Enterprise Rent-A-Car UK Ltd,98552327,69.55,T&S UK - Vehicle Hire
BEIS,UKRI - BBSRC,08/08/2019,T&S UK - Vehicle Hire,FG - Estates,Enterprise Rent-A-Car UK Ltd,98552327,56.62,T&S UK - Vehicle Hire
BEIS,UKRI - BBSRC,08/08/2019,Postage & Courier Services,JBOS - Post Room,Unspecified,98552816,1103.10,Postage & Courier Services
BEIS,UKRI - BBSRC,08/08/2019,Research Institutes - Capital Grants: Major Works,Pirbright,The Pirbright Institute,98553551,23117.22,Research Institutes - Capital Grants: Major Works
BEIS,UKRI - BBSRC,08/08/2019,T&S UK - Public Transport,CE - Chief Executive,Unspecified,98553622,27.50,T&S UK - Public Transport
BEIS,UKRI - BBSRC,08/08/2019,T&S UK - Subsistence,CE - Chief Executive,Unspecified,98553622,9.40,T&S UK - Subsistence
BEIS,UKRI - BBSRC,08/08/2019,T&S UK - Subsistence,CE - Chief Executive,Unspecified,98553624,6.15,T&S UK - Subsistence
BEIS,UKRI - BBSRC,08/08/2019,T&S UK - Parking Tolls Congestion Charges,FG - Estates,Unspecified,98553625,35.00,T&S UK - Parking Tolls Congestion Charges
BEIS,UKRI - BBSRC,08/08/2019,T&S UK - Subsistence,FG - Estates,Unspecified,98553625,8.20,T&S UK - Subsistence
BEIS,UKRI - BBSRC,08/08/2019,T&S UK - Subsistence,FG - Estates,Unspecified,98553625,145.99,T&S UK - Subsistence
BEIS,UKRI - BBSRC,08/08/2019,T&S UK - Subsistence,FG - Estates,Unspecified,98553625,87.61,T&S UK - Subsistence
BEIS,UKRI - BBSRC,08/08/2019,T&S UK - Subsistence,FG - Estates,Unspecified,98553625,35.00,T&S UK - Subsistence
BEIS,UKRI - BBSRC,08/08/2019,T&S UK - Vehicle Hire,FG - Estates,Unspecified,98553625,260.27,T&S UK - Vehicle Hire
BEIS,UKRI - BBSRC,09/08/2019,Research Institutes - Capital Grants: Major Works,Pirbright,The Pirbright Institute,98554116,6303.00,Research Institutes - Capital Grants: Major Works
BEIS,UKRI - BBSRC,09/08/2019,T&S UK - Other Charges,Science Group,Unspecified,98554332,3.79,T&S UK - Other Charges
BEIS,UKRI - BBSRC,09/08/2019,T&S UK - Subsistence,Science Group,Unspecified,98554332,10.15,T&S UK - Subsistence
BEIS,UKRI - BBSRC,09/08/2019,T&S UK - Subsistence,Science Group,Unspecified,98554332,10.00,T&S UK - Subsistence
BEIS,UKRI - BBSRC,09/08/2019,T&S UK - Public Transport,CIMG - Director,Unspecified,98554335,39.00,T&S UK - Public Transport
BEIS,UKRI - BBSRC,09/08/2019,T&S UK - Subsistence,CIMG - Director,Unspecified,98554335,6.98,T&S UK - Subsistence
BEIS,UKRI - BBSRC,09/08/2019,T&S UK - Subsistence,CIMG - Director,Unspecified,98554335,10.00,T&S UK - Subsistence
BEIS,UKRI - BBSRC,09/08/2019,Research Institutes - Capital Grants: Minor Works,Pirbright,The Pirbright Institute,98554705,45967.42,Research Institutes - Capital Grants: Minor Works
BEIS,UKRI - BBSRC,12/08/2019,T&S UK - Public Transport,Innovation and Skills Group CDSU,Unspecified,98555893,18.00,T&S UK - Public Transport
BEIS,UKRI - BBSRC,12/08/2019,T&S UK - Subsistence,Innovation and Skills Group CDSU,Unspecified,98555893,5.05,T&S UK - Subsistence
BEIS,UKRI - BBSRC,12/08/2019,T&S UK - Subsistence,Innovation and Skills Group CDSU,Unspecified,98555893,2.49,T&S UK - Subsistence
BEIS,UKRI - BBSRC,12/08/2019,T&S UK - Other Charges,CIMG - Director,Unspecified,98555894,9.00,T&S UK - Other Charges
BEIS,UKRI - BBSRC,12/08/2019,T&S UK - Public Transport,CIMG - Director,Unspecified,98555894,4.80,T&S UK - Public Transport
BEIS,UKRI - BBSRC,12/08/2019,T&S UK - Subsistence,CIMG - Director,Unspecified,98555894,5.75,T&S UK - Subsistence
BEIS,UKRI - BBSRC,13/08/2019,Non-staff travel and subsistance,Science Group - Delivery Function,Non Employee Expenses Supplier,98555508,175.90,Non-staff travel and subsistance
BEIS,UKRI - BBSRC,13/08/2019,Health & Safety (inc. Medicals & Opticians),PDG - Director,Swindon Occupational Medical Services Ltd,98555618,175.00,Health & Safety (inc. Medicals & Opticians)
BEIS,UKRI - BBSRC,13/08/2019,Non-staff travel and subsistance,Science Group - Delivery Function,Non Employee Expenses Supplier,98556073,435.85,Non-staff travel and subsistance
BEIS,UKRI - BBSRC,13/08/2019,Non-staff travel and subsistance,Innovation and Skills Group CDSU,Non Employee Expenses Supplier,98556074,368.20,Non-staff travel and subsistance
BEIS,UKRI - BBSRC,13/08/2019,Non-staff travel and subsistance,Innovation and Skills Group CDSU,Non Employee Expenses Supplier,98556075,96.10,Non-staff travel and subsistance
BEIS,UKRI - BBSRC,13/08/2019,T&S UK - Subsistence,FG - Estates,Unspecified,98556212,41.78,T&S UK - Subsistence
BEIS,UKRI - BBSRC,13/08/2019,T&S UK - Subsistence,FG - Estates,Unspecified,98556212,13.90,T&S UK - Subsistence
BEIS,UKRI - BBSRC,13/08/2019,T&S UK - Subsistence,FG - Estates,Unspecified,98556212,5.00,T&S UK - Subsistence
BEIS,UKRI - BBSRC,13/08/2019,T&S UK - Vehicle Hire,FG - Estates,Unspecified,98556212,42.33,T&S UK - Vehicle Hire
BEIS,UKRI - BBSRC,14/08/2019,Research Grant Expenditure,CE - IRU,Unspecified,98554668,3801.16,Research Grant Expenditure
BEIS,UKRI - BBSRC,14/08/2019,PAYE Payable Salaries,Balance Sheet,HM Revenue & Customs,98554877,7096.31,PAYE Payable Salaries
BEIS,UKRI - BBSRC,14/08/2019,NI Payable Salaries,Balance Sheet,HM Revenue & Customs,98554878,463.47,NI Payable Salaries
BEIS,UKRI - BBSRC,14/08/2019,Apprenticeship Levy,FG - Accounts & Business Planning,HM Revenue & Customs,98554879,104.00,Apprenticeship Levy
BEIS,UKRI - BBSRC,14/08/2019,PAYE Payable Salaries,Balance Sheet,HM Revenue & Customs,98556177,72693.20,PAYE Payable Salaries
BEIS,UKRI - BBSRC,14/08/2019,Student Loans,Balance Sheet,HM Revenue & Customs,98556178,4255.00,Student Loans
BEIS,UKRI - BBSRC,14/08/2019,NI Payable Salaries,Balance Sheet,HM Revenue & Customs,98556179,96308.79,NI Payable Salaries
BEIS,UKRI - BBSRC,14/08/2019,Apprenticeship Levy,FG - Accounts & Business Planning,HM Revenue & Customs,98556180,2602.00,Apprenticeship Levy
BEIS,UKRI - BBSRC,14/08/2019,Books Professional Journals & Guides,CE - CPS,The Economist Newspaper Ltd,98556548,145.00,Books Professional Journals & Guides
BEIS,UKRI - BBSRC,14/08/2019,Other Programme Costs,FG - Estates,John Innes Centre,98556576,62961.00,Other Programme Costs
BEIS,UKRI - BBSRC,14/08/2019,Nursery Deductions,Balance Sheet,EDENRED (UK GROUP) LTD,98557100,3489.00,Nursery Deductions
BEIS,UKRI - BBSRC,15/08/2019,Voluntary Deductions,Balance Sheet,St Elizabeth�s Centre,98554880,570.83,Voluntary Deductions
BEIS,UKRI - BBSRC,15/08/2019,Union Deductions,Balance Sheet,PCS Union,98556181,76.85,Union Deductions
BEIS,UKRI - BBSRC,15/08/2019,Ees Pension Deductions - JSS,Balance Sheet,RCPS Pension,98556183,28255.22,Ees Pension Deductions - JSS
BEIS,UKRI - BBSRC,15/08/2019,Ers Pension Deductions - JSS,Balance Sheet,RCPS Pension,98556184,116570.34,Ers Pension Deductions - JSS
BEIS,UKRI - BBSRC,15/08/2019,Partnership Pension Deductions,Balance Sheet,Scottish Widows Life Assurance,98556185,688.64,Partnership Pension Deductions
BEIS,UKRI - BBSRC,15/08/2019,Other Pension Deductions,Balance Sheet,Scottish Widows Life Assurance,98556186,10.00,Other Pension Deductions
BEIS,UKRI - BBSRC,15/08/2019,Ees Pension Deductions - MyCSP,Balance Sheet,Cabinet Office RM Shared Services,98556187,4394.94,Ees Pension Deductions - MyCSP
BEIS,UKRI - BBSRC,15/08/2019,Ers Pension Deductions - MyCSP,Balance Sheet,Cabinet Office RM Shared Services,98556188,21974.35,Ers Pension Deductions - MyCSP
BEIS,UKRI - BBSRC,15/08/2019,Ers Pension Deductions - JSS,Balance Sheet,Cabinet Office RM Shared Services,98556190,12.83,Ers Pension Deductions - JSS
BEIS,UKRI - BBSRC,15/08/2019,Non-Capital Building Construction,JBOS - Maintenance,Wernick Refurbished Buildings Ltd,98557353,17107.20,Non-Capital Building Construction
BEIS,UKRI - BBSRC,16/08/2019,Printing & Stationery,FG - Accounts & Business Planning,Allied Publicity Services (Manchester) Ltd t/a APS Group,98557639,379.60,Printing & Stationery
BEIS,UKRI - BBSRC,16/08/2019,Health & Safety (inc. Medicals & Opticians),PDG - Director,BMI Healthcare Limited,98558046,449.50,Health & Safety (inc. Medicals & Opticians)
BEIS,UKRI - BBSRC,16/08/2019,Other Programme Costs,Science Group,University of St Andrews,98558281,4000.00,Other Programme Costs
BEIS,UKRI - BBSRC,16/08/2019,Electricity,JBOS - Maintenance,EDF Energy,98558284,35569.04,Electricity
BEIS,UKRI - BBSRC,16/08/2019,T&S UK - Other Charges,FG - Estates,Unspecified,98558636,6.14,T&S UK - Other Charges
BEIS,UKRI - BBSRC,16/08/2019,T&S UK - Subsistence,FG - Estates,Unspecified,98558636,3.30,T&S UK - Subsistence
BEIS,UKRI - BBSRC,16/08/2019,T&S UK - Subsistence,FG - Estates,Unspecified,98558636,10.00,T&S UK - Subsistence
BEIS,UKRI - BBSRC,16/08/2019,Conferences & Seminars,FG - RCUK Assurance,Assured Events Ltd,98558746,474.00,Conferences & Seminars
BEIS,UKRI - BBSRC,16/08/2019,Conferences & Seminars,FG - RCUK Assurance,Assured Events Ltd,98558749,474.00,Conferences & Seminars
BEIS,UKRI - BBSRC,19/08/2019,Staff Training,PDG - Director,Calder Conference Ltd,98555326,95.00,Staff Training
BEIS,UKRI - BBSRC,19/08/2019,Legal & Professional Services,FG - Estates,MORTON FRASER LLP,98557677,600.00,Legal & Professional Services
BEIS,UKRI - BBSRC,19/08/2019,Mobile Phone Costs,CE - CPS,Telefonica UK Ltd (O2),98558920,5.00,Mobile Phone Costs
BEIS,UKRI - BBSRC,19/08/2019,Mobile Phone Costs,CE - CPS,Telefonica UK Ltd (O2),98558920,6.25,Mobile Phone Costs
BEIS,UKRI - BBSRC,19/08/2019,Mobile Phone Costs,CE - CPS,Telefonica UK Ltd (O2),98558920,5.00,Mobile Phone Costs
BEIS,UKRI - BBSRC,19/08/2019,Mobile Phone Costs,CE - CPS,Telefonica UK Ltd (O2),98558920,6.25,Mobile Phone Costs
BEIS,UKRI - BBSRC,19/08/2019,Mobile Phone Costs,CE - CPS,Telefonica UK Ltd (O2),98558920,5.00,Mobile Phone Costs
BEIS,UKRI - BBSRC,19/08/2019,Mobile Phone Costs,CE - CPS,Telefonica UK Ltd (O2),98558920,5.00,Mobile Phone Costs
BEIS,UKRI - BBSRC,19/08/2019,Mobile Phone Costs,CE - CPS,Telefonica UK Ltd (O2),98558920,5.00,Mobile Phone Costs
BEIS,UKRI - BBSRC,19/08/2019,Mobile Phone Costs,CE - CPS,Telefonica UK Ltd (O2),98558920,10.76,Mobile Phone Costs
BEIS,UKRI - BBSRC,19/08/2019,Mobile Phone Costs,CE - CPS,Telefonica UK Ltd (O2),98558920,6.40,Mobile Phone Costs
BEIS,UKRI - BBSRC,19/08/2019,Mobile Phone Costs,CE - CPS,Telefonica UK Ltd (O2),98558920,3.25,Mobile Phone Costs
BEIS,UKRI - BBSRC,19/08/2019,Mobile Phone Costs,CE - Chief Executive,Telefonica UK Ltd (O2),98558920,6.25,Mobile Phone Costs
BEIS,UKRI - BBSRC,19/08/2019,Mobile Phone Costs,CE - Chief Executive,Telefonica UK Ltd (O2),98558920,6.25,Mobile Phone Costs
BEIS,UKRI - BBSRC,19/08/2019,Mobile Phone Costs,CE - Chief Executive,Telefonica UK Ltd (O2),98558920,12.50,Mobile Phone Costs
BEIS,UKRI - BBSRC,19/08/2019,Mobile Phone Costs,CE - Chief Executive,Telefonica UK Ltd (O2),98558920,5.00,Mobile Phone Costs
BEIS,UKRI - BBSRC,19/08/2019,Mobile Phone Costs,CE - Chief Executive,Telefonica UK Ltd (O2),98558920,4.50,Mobile Phone Costs
BEIS,UKRI - BBSRC,19/08/2019,Mobile Phone Costs,CE - IRU,Telefonica UK Ltd (O2),98558920,5.00,Mobile Phone Costs
BEIS,UKRI - BBSRC,19/08/2019,Mobile Phone Costs,CE - IRU,Telefonica UK Ltd (O2),98558920,5.00,Mobile Phone Costs
BEIS,UKRI - BBSRC,19/08/2019,Mobile Phone Costs,CE - IRU,Telefonica UK Ltd (O2),98558920,5.00,Mobile Phone Costs
BEIS,UKRI - BBSRC,19/08/2019,Mobile Phone Costs,CE - IRU,Telefonica UK Ltd (O2),98558920,5.00,Mobile Phone Costs
BEIS,UKRI - BBSRC,19/08/2019,Mobile Phone Costs,CE - IRU,Telefonica UK Ltd (O2),98558920,20.00,Mobile Phone Costs
BEIS,UKRI - BBSRC,19/08/2019,Mobile Phone Costs,CE - IRU,Telefonica UK Ltd (O2),98558920,5.00,Mobile Phone Costs
BEIS,UKRI - BBSRC,19/08/2019,Mobile Phone Costs,CE - IRU,Telefonica UK Ltd (O2),98558920,6.25,Mobile Phone Costs
BEIS,UKRI - BBSRC,19/08/2019,Mobile Phone Costs,CE - IRU,Telefonica UK Ltd (O2),98558920,6.25,Mobile Phone Costs
BEIS,UKRI - BBSRC,19/08/2019,Mobile Phone Costs,CE - IRU,Telefonica UK Ltd (O2),98558920,42.50,Mobile Phone Costs
BEIS,UKRI - BBSRC,19/08/2019,Mobile Phone Costs,CE - IRU,Telefonica UK Ltd (O2),98558920,9.50,Mobile Phone Costs
BEIS,UKRI - BBSRC,19/08/2019,Mobile Phone Costs,CIMG - Council Secretariat,Telefonica UK Ltd (O2),98558920,5.00,Mobile Phone Costs
BEIS,UKRI - BBSRC,19/08/2019,Mobile Phone Costs,CIMG - Council Secretariat,Telefonica UK Ltd (O2),98558920,1.00,Mobile Phone Costs
BEIS,UKRI - BBSRC,19/08/2019,Mobile Phone Costs,CIMG - Director,Telefonica UK Ltd (O2),98558920,6.25,Mobile Phone Costs
BEIS,UKRI - BBSRC,19/08/2019,Mobile Phone Costs,CIMG - Director,Telefonica UK Ltd (O2),98558920,5.00,Mobile Phone Costs
BEIS,UKRI - BBSRC,19/08/2019,Mobile Phone Costs,CIMG - Director,Telefonica UK Ltd (O2),98558920,2.25,Mobile Phone Costs
BEIS,UKRI - BBSRC,19/08/2019,Mobile Phone Costs,CIMG - External Relations,Telefonica UK Ltd (O2),98558920,5.00,Mobile Phone Costs
BEIS,UKRI - BBSRC,19/08/2019,Mobile Phone Costs,CIMG - External Relations,Telefonica UK Ltd (O2),98558920,5.00,Mobile Phone Costs
BEIS,UKRI - BBSRC,19/08/2019,Mobile Phone Costs,CIMG - External Relations,Telefonica UK Ltd (O2),98558920,6.25,Mobile Phone Costs
BEIS,UKRI - BBSRC,19/08/2019,Mobile Phone Costs,CIMG - External Relations,Telefonica UK Ltd (O2),98558920,5.00,Mobile Phone Costs
BEIS,UKRI - BBSRC,19/08/2019,Mobile Phone Costs,CIMG - External Relations,Telefonica UK Ltd (O2),98558920,8.00,Mobile Phone Costs
BEIS,UKRI - BBSRC,19/08/2019,Mobile Phone Costs,CIMG - External Relations,Telefonica UK Ltd (O2),98558920,5.00,Mobile Phone Costs
BEIS,UKRI - BBSRC,19/08/2019,Mobile Phone Costs,CIMG - External Relations,Telefonica UK Ltd (O2),98558920,5.00,Mobile Phone Costs
BEIS,UKRI - BBSRC,19/08/2019,Mobile Phone Costs,CIMG - External Relations,Telefonica UK Ltd (O2),98558920,7.85,Mobile Phone Costs
BEIS,UKRI - BBSRC,19/08/2019,Mobile Phone Costs,CIMG - Information Systems,Telefonica UK Ltd (O2),98558920,5.00,Mobile Phone Costs
BEIS,UKRI - BBSRC,19/08/2019,Mobile Phone Costs,CIMG - Information Systems,Telefonica UK Ltd (O2),98558920,-3.78,Mobile Phone Costs
BEIS,UKRI - BBSRC,19/08/2019,Mobile Phone Costs,CIMG - Information Systems,Telefonica UK Ltd (O2),98558920,0.24,Mobile Phone Costs
BEIS,UKRI - BBSRC,19/08/2019,Mobile Phone Costs,CIMG - Programme Office,Telefonica UK Ltd (O2),98558920,6.85,Mobile Phone Costs
BEIS,UKRI - BBSRC,19/08/2019,Mobile Phone Costs,CIMG - Programme Office,Telefonica UK Ltd (O2),98558920,1.37,Mobile Phone Costs
BEIS,UKRI - BBSRC,19/08/2019,Mobile Phone Costs,FG - Director,Telefonica UK Ltd (O2),98558920,6.25,Mobile Phone Costs
BEIS,UKRI - BBSRC,19/08/2019,Mobile Phone Costs,FG - Director,Telefonica UK Ltd (O2),98558920,6.25,Mobile Phone Costs
BEIS,UKRI - BBSRC,19/08/2019,Mobile Phone Costs,FG - Director,Telefonica UK Ltd (O2),98558920,5.00,Mobile Phone Costs
BEIS,UKRI - BBSRC,19/08/2019,Mobile Phone Costs,FG - Director,Telefonica UK Ltd (O2),98558920,5.00,Mobile Phone Costs
BEIS,UKRI - BBSRC,19/08/2019,Mobile Phone Costs,FG - Director,Telefonica UK Ltd (O2),98558920,4.50,Mobile Phone Costs
BEIS,UKRI - BBSRC,19/08/2019,Mobile Phone Costs,FG - Estates,Telefonica UK Ltd (O2),98558920,9.91,Mobile Phone Costs
BEIS,UKRI - BBSRC,19/08/2019,Mobile Phone Costs,FG - Estates,Telefonica UK Ltd (O2),98558920,6.25,Mobile Phone Costs
BEIS,UKRI - BBSRC,19/08/2019,Mobile Phone Costs,FG - Estates,Telefonica UK Ltd (O2),98558920,5.36,Mobile Phone Costs
BEIS,UKRI - BBSRC,19/08/2019,Mobile Phone Costs,FG - Estates,Telefonica UK Ltd (O2),98558920,5.00,Mobile Phone Costs
BEIS,UKRI - BBSRC,19/08/2019,Mobile Phone Costs,FG - Estates,Telefonica UK Ltd (O2),98558920,8.00,Mobile Phone Costs
BEIS,UKRI - BBSRC,19/08/2019,Mobile Phone Costs,FG - Estates,Telefonica UK Ltd (O2),98558920,8.00,Mobile Phone Costs
BEIS,UKRI - BBSRC,19/08/2019,Mobile Phone Costs,FG - Estates,Telefonica UK Ltd (O2),98558920,8.00,Mobile Phone Costs
BEIS,UKRI - BBSRC,19/08/2019,Mobile Phone Costs,FG - Estates,Telefonica UK Ltd (O2),98558920,1.00,Mobile Phone Costs
BEIS,UKRI - BBSRC,19/08/2019,Mobile Phone Costs,FG - Estates,Telefonica UK Ltd (O2),98558920,9.10,Mobile Phone Costs
BEIS,UKRI - BBSRC,19/08/2019,Mobile Phone Costs,FG - RCUK Assurance,Telefonica UK Ltd (O2),98558920,5.00,Mobile Phone Costs
BEIS,UKRI - BBSRC,19/08/2019,Mobile Phone Costs,FG - RCUK Assurance,Telefonica UK Ltd (O2),98558920,6.25,Mobile Phone Costs
BEIS,UKRI - BBSRC,19/08/2019,Mobile Phone Costs,FG - RCUK Assurance,Telefonica UK Ltd (O2),98558920,6.25,Mobile Phone Costs
BEIS,UKRI - BBSRC,19/08/2019,Mobile Phone Costs,FG - RCUK Assurance,Telefonica UK Ltd (O2),98558920,3.50,Mobile Phone Costs
BEIS,UKRI - BBSRC,19/08/2019,Mobile Phone Costs,Innovation and Skills Group,Telefonica UK Ltd (O2),98558920,5.00,Mobile Phone Costs
BEIS,UKRI - BBSRC,19/08/2019,Mobile Phone Costs,Innovation and Skills Group,Telefonica UK Ltd (O2),98558920,5.00,Mobile Phone Costs
BEIS,UKRI - BBSRC,19/08/2019,Mobile Phone Costs,Innovation and Skills Group,Telefonica UK Ltd (O2),98558920,5.00,Mobile Phone Costs
BEIS,UKRI - BBSRC,19/08/2019,Mobile Phone Costs,Innovation and Skills Group,Telefonica UK Ltd (O2),98558920,5.00,Mobile Phone Costs
BEIS,UKRI - BBSRC,19/08/2019,Mobile Phone Costs,Innovation and Skills Group,Telefonica UK Ltd (O2),98558920,15.63,Mobile Phone Costs
BEIS,UKRI - BBSRC,19/08/2019,Mobile Phone Costs,Innovation and Skills Group,Telefonica UK Ltd (O2),98558920,5.00,Mobile Phone Costs
BEIS,UKRI - BBSRC,19/08/2019,Mobile Phone Costs,Innovation and Skills Group,Telefonica UK Ltd (O2),98558920,5.00,Mobile Phone Costs
BEIS,UKRI - BBSRC,19/08/2019,Mobile Phone Costs,Innovation and Skills Group,Telefonica UK Ltd (O2),98558920,6.25,Mobile Phone Costs
BEIS,UKRI - BBSRC,19/08/2019,Mobile Phone Costs,Innovation and Skills Group,Telefonica UK Ltd (O2),98558920,5.00,Mobile Phone Costs
BEIS,UKRI - BBSRC,19/08/2019,Mobile Phone Costs,Innovation and Skills Group,Telefonica UK Ltd (O2),98558920,6.25,Mobile Phone Costs
BEIS,UKRI - BBSRC,19/08/2019,Mobile Phone Costs,Innovation and Skills Group,Telefonica UK Ltd (O2),98558920,5.00,Mobile Phone Costs
BEIS,UKRI - BBSRC,19/08/2019,Mobile Phone Costs,Innovation and Skills Group,Telefonica UK Ltd (O2),98558920,6.25,Mobile Phone Costs
BEIS,UKRI - BBSRC,19/08/2019,Mobile Phone Costs,Innovation and Skills Group,Telefonica UK Ltd (O2),98558920,6.25,Mobile Phone Costs
BEIS,UKRI - BBSRC,19/08/2019,Mobile Phone Costs,Innovation and Skills Group,Telefonica UK Ltd (O2),98558920,5.00,Mobile Phone Costs
BEIS,UKRI - BBSRC,19/08/2019,Mobile Phone Costs,Innovation and Skills Group,Telefonica UK Ltd (O2),98558920,6.65,Mobile Phone Costs
BEIS,UKRI - BBSRC,19/08/2019,Mobile Phone Costs,Innovation and Skills Group,Telefonica UK Ltd (O2),98558920,5.00,Mobile Phone Costs
BEIS,UKRI - BBSRC,19/08/2019,Mobile Phone Costs,Innovation and Skills Group,Telefonica UK Ltd (O2),98558920,5.00,Mobile Phone Costs
BEIS,UKRI - BBSRC,19/08/2019,Mobile Phone Costs,Innovation and Skills Group,Telefonica UK Ltd (O2),98558920,37.18,Mobile Phone Costs
BEIS,UKRI - BBSRC,19/08/2019,Mobile Phone Costs,Innovation and Skills Group,Telefonica UK Ltd (O2),98558920,5.00,Mobile Phone Costs
BEIS,UKRI - BBSRC,19/08/2019,Mobile Phone Costs,Innovation and Skills Group,Telefonica UK Ltd (O2),98558920,5.00,Mobile Phone Costs
BEIS,UKRI - BBSRC,19/08/2019,Mobile Phone Costs,Innovation and Skills Group,Telefonica UK Ltd (O2),98558920,5.00,Mobile Phone Costs
BEIS,UKRI - BBSRC,19/08/2019,Mobile Phone Costs,Innovation and Skills Group,Telefonica UK Ltd (O2),98558920,5.00,Mobile Phone Costs
BEIS,UKRI - BBSRC,19/08/2019,Mobile Phone Costs,Innovation and Skills Group,Telefonica UK Ltd (O2),98558920,5.00,Mobile Phone Costs
BEIS,UKRI - BBSRC,19/08/2019,Mobile Phone Costs,Innovation and Skills Group,Telefonica UK Ltd (O2),98558920,6.25,Mobile Phone Costs
BEIS,UKRI - BBSRC,19/08/2019,Mobile Phone Costs,Innovation and Skills Group,Telefonica UK Ltd (O2),98558920,34.15,Mobile Phone Costs
BEIS,UKRI - BBSRC,19/08/2019,Mobile Phone Costs,PDG - Director,Telefonica UK Ltd (O2),98558920,-5.35,Mobile Phone Costs
BEIS,UKRI - BBSRC,19/08/2019,Mobile Phone Costs,PDG - Director,Telefonica UK Ltd (O2),98558920,-4.28,Mobile Phone Costs
BEIS,UKRI - BBSRC,19/08/2019,Mobile Phone Costs,PDG - Director,Telefonica UK Ltd (O2),98558920,5.00,Mobile Phone Costs
BEIS,UKRI - BBSRC,19/08/2019,Mobile Phone Costs,PDG - Director,Telefonica UK Ltd (O2),98558920,-0.93,Mobile Phone Costs
BEIS,UKRI - BBSRC,19/08/2019,Mobile Phone Costs,Science Group,Telefonica UK Ltd (O2),98558920,13.49,Mobile Phone Costs
BEIS,UKRI - BBSRC,19/08/2019,Mobile Phone Costs,Science Group,Telefonica UK Ltd (O2),98558920,23.00,Mobile Phone Costs
BEIS,UKRI - BBSRC,19/08/2019,Mobile Phone Costs,Science Group,Telefonica UK Ltd (O2),98558920,6.25,Mobile Phone Costs
BEIS,UKRI - BBSRC,19/08/2019,Mobile Phone Costs,Science Group,Telefonica UK Ltd (O2),98558920,5.00,Mobile Phone Costs
BEIS,UKRI - BBSRC,19/08/2019,Mobile Phone Costs,Science Group,Telefonica UK Ltd (O2),98558920,8.00,Mobile Phone Costs
BEIS,UKRI - BBSRC,19/08/2019,Mobile Phone Costs,Science Group,Telefonica UK Ltd (O2),98558920,1.75,Mobile Phone Costs
BEIS,UKRI - BBSRC,19/08/2019,Mobile Phone Costs,Science Group,Telefonica UK Ltd (O2),98558920,5.00,Mobile Phone Costs
BEIS,UKRI - BBSRC,19/08/2019,Mobile Phone Costs,Science Group,Telefonica UK Ltd (O2),98558920,5.00,Mobile Phone Costs
BEIS,UKRI - BBSRC,19/08/2019,Mobile Phone Costs,Science Group,Telefonica UK Ltd (O2),98558920,1.75,Mobile Phone Costs
BEIS,UKRI - BBSRC,19/08/2019,Mobile Phone Costs,Science Group,Telefonica UK Ltd (O2),98558920,5.96,Mobile Phone Costs
BEIS,UKRI - BBSRC,19/08/2019,Mobile Phone Costs,Science Group,Telefonica UK Ltd (O2),98558920,16.53,Mobile Phone Costs
BEIS,UKRI - BBSRC,19/08/2019,Mobile Phone Costs,Science Group,Telefonica UK Ltd (O2),98558920,5.00,Mobile Phone Costs
BEIS,UKRI - BBSRC,19/08/2019,Mobile Phone Costs,Science Group,Telefonica UK Ltd (O2),98558920,5.00,Mobile Phone Costs
BEIS,UKRI - BBSRC,19/08/2019,Mobile Phone Costs,Science Group,Telefonica UK Ltd (O2),98558920,50.00,Mobile Phone Costs
BEIS,UKRI - BBSRC,19/08/2019,Mobile Phone Costs,Science Group,Telefonica UK Ltd (O2),98558920,6.25,Mobile Phone Costs
BEIS,UKRI - BBSRC,19/08/2019,Mobile Phone Costs,Science Group,Telefonica UK Ltd (O2),98558920,5.00,Mobile Phone Costs
BEIS,UKRI - BBSRC,19/08/2019,Mobile Phone Costs,Science Group,Telefonica UK Ltd (O2),98558920,5.00,Mobile Phone Costs
BEIS,UKRI - BBSRC,19/08/2019,Mobile Phone Costs,Science Group,Telefonica UK Ltd (O2),98558920,6.25,Mobile Phone Costs
BEIS,UKRI - BBSRC,19/08/2019,Mobile Phone Costs,Science Group,Telefonica UK Ltd (O2),98558920,5.00,Mobile Phone Costs
BEIS,UKRI - BBSRC,19/08/2019,Mobile Phone Costs,Science Group,Telefonica UK Ltd (O2),98558920,5.00,Mobile Phone Costs
BEIS,UKRI - BBSRC,19/08/2019,Mobile Phone Costs,Science Group,Telefonica UK Ltd (O2),98558920,6.25,Mobile Phone Costs
BEIS,UKRI - BBSRC,19/08/2019,Mobile Phone Costs,Science Group,Telefonica UK Ltd (O2),98558920,8.00,Mobile Phone Costs
BEIS,UKRI - BBSRC,19/08/2019,Mobile Phone Costs,Science Group,Telefonica UK Ltd (O2),98558920,8.00,Mobile Phone Costs
BEIS,UKRI - BBSRC,19/08/2019,Mobile Phone Costs,Science Group,Telefonica UK Ltd (O2),98558920,8.00,Mobile Phone Costs
BEIS,UKRI - BBSRC,19/08/2019,Mobile Phone Costs,Science Group,Telefonica UK Ltd (O2),98558920,-0.82,Mobile Phone Costs
BEIS,UKRI - BBSRC,19/08/2019,Mobile Phone Costs,Science Group,Telefonica UK Ltd (O2),98558920,6.25,Mobile Phone Costs
BEIS,UKRI - BBSRC,19/08/2019,Mobile Phone Costs,Science Group,Telefonica UK Ltd (O2),98558920,31.99,Mobile Phone Costs
BEIS,UKRI - BBSRC,19/08/2019,Other Programme Costs,Innovation and Skills Group CDSU,Cambridge Network Ltd,98558982,3600.00,Other Programme Costs
BEIS,UKRI - BBSRC,19/08/2019,Conferences & Seminars,Innovation and Skills Group CDSU,Bioindustry Association (BIA),98559198,7200.00,Conferences & Seminars
BEIS,UKRI - BBSRC,19/08/2019,Printing & Stationery,JBOS - Administration,Banner Group Ltd,98559270,9.18,Printing & Stationery
BEIS,UKRI - BBSRC,19/08/2019,Printing & Stationery,JBOS - Administration,Banner Group Ltd,98559270,8.04,Printing & Stationery
BEIS,UKRI - BBSRC,19/08/2019,Printing & Stationery,JBOS - Administration,Banner Group Ltd,98559270,7.56,Printing & Stationery
BEIS,UKRI - BBSRC,19/08/2019,Printing & Stationery,JBOS - Administration,Banner Group Ltd,98559270,7.56,Printing & Stationery
BEIS,UKRI - BBSRC,19/08/2019,Printing & Stationery,JBOS - Administration,Banner Group Ltd,98559270,3.80,Printing & Stationery
BEIS,UKRI - BBSRC,19/08/2019,Printing & Stationery,JBOS - Administration,Banner Group Ltd,98559270,2.70,Printing & Stationery
BEIS,UKRI - BBSRC,19/08/2019,Printing & Stationery,JBOS - Administration,Banner Group Ltd,98559270,21.96,Printing & Stationery
BEIS,UKRI - BBSRC,19/08/2019,Printing & Stationery,JBOS - Administration,Banner Group Ltd,98559270,4.62,Printing & Stationery
BEIS,UKRI - BBSRC,19/08/2019,Printing & Stationery,JBOS - Administration,Banner Group Ltd,98559270,4.62,Printing & Stationery
BEIS,UKRI - BBSRC,19/08/2019,Printing & Stationery,JBOS - Administration,Banner Group Ltd,98559270,4.62,Printing & Stationery
BEIS,UKRI - BBSRC,19/08/2019,Printing & Stationery,JBOS - Administration,Banner Group Ltd,98559270,4.62,Printing & Stationery
BEIS,UKRI - BBSRC,19/08/2019,Printing & Stationery,JBOS - Administration,Banner Group Ltd,98559270,16.56,Printing & Stationery
BEIS,UKRI - BBSRC,19/08/2019,Printing & Stationery,JBOS - Administration,Banner Group Ltd,98559270,10.92,Printing & Stationery
BEIS,UKRI - BBSRC,19/08/2019,Printing & Stationery,JBOS - Administration,Banner Group Ltd,98559270,10.68,Printing & Stationery
BEIS,UKRI - BBSRC,19/08/2019,Mechanical & Electrical Maintenance,JBOS - Administration,Banner Group Ltd,98559276,21.96,Mechanical & Electrical Maintenance
BEIS,UKRI - BBSRC,19/08/2019,Mechanical & Electrical Maintenance,JBOS - Administration,Banner Group Ltd,98559276,6.24,Mechanical & Electrical Maintenance
BEIS,UKRI - BBSRC,19/08/2019,Printing & Stationery,JBOS - Administration,Banner Group Ltd,98559276,5.76,Printing & Stationery
BEIS,UKRI - BBSRC,19/08/2019,Printing & Stationery,JBOS - Administration,Banner Group Ltd,98559276,3.84,Printing & Stationery
BEIS,UKRI - BBSRC,19/08/2019,Printing & Stationery,JBOS - Administration,Banner Group Ltd,98559276,46.44,Printing & Stationery
BEIS,UKRI - BBSRC,19/08/2019,Printing & Stationery,JBOS - Administration,Banner Group Ltd,98559276,20.40,Printing & Stationery
BEIS,UKRI - BBSRC,19/08/2019,Printing & Stationery,JBOS - Administration,Banner Group Ltd,98559276,10.58,Printing & Stationery
BEIS,UKRI - BBSRC,19/08/2019,Printing & Stationery,JBOS - Administration,Banner Group Ltd,98559276,13.61,Printing & Stationery
BEIS,UKRI - BBSRC,19/08/2019,Printing & Stationery,JBOS - Administration,Banner Group Ltd,98559276,9.07,Printing & Stationery
BEIS,UKRI - BBSRC,19/08/2019,Printing & Stationery,JBOS - Administration,Banner Group Ltd,98559276,7.61,Printing & Stationery
BEIS,UKRI - BBSRC,19/08/2019,Printing & Stationery,JBOS - Administration,Banner Group Ltd,98559276,1.92,Printing & Stationery
BEIS,UKRI - BBSRC,19/08/2019,Printing & Stationery,JBOS - Administration,Banner Group Ltd,98559276,5.28,Printing & Stationery
BEIS,UKRI - BBSRC,19/08/2019,Printing & Stationery,JBOS - Administration,Banner Group Ltd,98559276,18.60,Printing & Stationery
BEIS,UKRI - BBSRC,19/08/2019,Printing & Stationery,JBOS - Administration,Banner Group Ltd,98559276,24.48,Printing & Stationery
BEIS,UKRI - BBSRC,19/08/2019,Printing & Stationery,JBOS - Administration,Banner Group Ltd,98559276,38.76,Printing & Stationery
BEIS,UKRI - BBSRC,19/08/2019,Printing & Stationery,JBOS - Administration,Banner Group Ltd,98559276,13.50,Printing & Stationery
BEIS,UKRI - BBSRC,19/08/2019,Printing & Stationery,JBOS - Administration,Banner Group Ltd,98559276,9.55,Printing & Stationery
BEIS,UKRI - BBSRC,19/08/2019,Printing & Stationery,JBOS - Administration,Banner Group Ltd,98559276,10.08,Printing & Stationery
BEIS,UKRI - BBSRC,19/08/2019,Printing & Stationery,JBOS - Administration,Banner Group Ltd,98559276,6.30,Printing & Stationery
BEIS,UKRI - BBSRC,19/08/2019,Printing & Stationery,JBOS - Administration,Banner Group Ltd,98559276,4.50,Printing & Stationery
BEIS,UKRI - BBSRC,19/08/2019,Printing & Stationery,JBOS - Administration,Banner Group Ltd,98559276,7.20,Printing & Stationery
BEIS,UKRI - BBSRC,19/08/2019,Printing & Stationery,JBOS - Administration,Banner Group Ltd,98559276,0.72,Printing & Stationery
BEIS,UKRI - BBSRC,19/08/2019,Printing & Stationery,JBOS - Administration,Banner Group Ltd,98559276,9.24,Printing & Stationery
BEIS,UKRI - BBSRC,19/08/2019,Printing & Stationery,JBOS - Administration,Banner Group Ltd,98559276,9.24,Printing & Stationery
BEIS,UKRI - BBSRC,19/08/2019,Printing & Stationery,JBOS - Administration,Banner Group Ltd,98559276,9.24,Printing & Stationery
BEIS,UKRI - BBSRC,19/08/2019,Printing & Stationery,JBOS - Administration,Banner Group Ltd,98559276,9.24,Printing & Stationery
BEIS,UKRI - BBSRC,19/08/2019,Printing & Stationery,JBOS - Administration,Banner Group Ltd,98559276,12.00,Printing & Stationery
BEIS,UKRI - BBSRC,19/08/2019,Printing & Stationery,JBOS - Administration,Banner Group Ltd,98559276,3.36,Printing & Stationery
BEIS,UKRI - BBSRC,19/08/2019,Printing & Stationery,JBOS - Administration,Banner Group Ltd,98559276,12.48,Printing & Stationery
BEIS,UKRI - BBSRC,19/08/2019,Printing & Stationery,JBOS - Administration,Banner Group Ltd,98559276,21.60,Printing & Stationery
BEIS,UKRI - BBSRC,19/08/2019,Printing & Stationery,JBOS - Administration,Banner Group Ltd,98559276,14.22,Printing & Stationery
BEIS,UKRI - BBSRC,19/08/2019,T&S UK - Public Transport,Science Group,Unspecified,98559291,15.45,T&S UK - Public Transport
BEIS,UKRI - BBSRC,19/08/2019,T&S UK - Subsistence,Science Group,Unspecified,98559291,5.95,T&S UK - Subsistence
BEIS,UKRI - BBSRC,19/08/2019,T&S UK - Subsistence,Science Group,Unspecified,98559291,25.00,T&S UK - Subsistence
BEIS,UKRI - BBSRC,19/08/2019,T&S UK - Subsistence,Science Group,Unspecified,98559291,38.03,T&S UK - Subsistence
BEIS,UKRI - BBSRC,19/08/2019,T&S UK - Public Transport,Science Group,Unspecified,98559292,14.00,T&S UK - Public Transport
BEIS,UKRI - BBSRC,19/08/2019,T&S UK - Public Transport,Science Group,Unspecified,98559292,8.50,T&S UK - Public Transport
BEIS,UKRI - BBSRC,19/08/2019,T&S UK - Subsistence,Science Group,Unspecified,98559292,4.78,T&S UK - Subsistence
BEIS,UKRI - BBSRC,19/08/2019,T&S UK - Subsistence,Science Group,Unspecified,98559292,31.44,T&S UK - Subsistence
BEIS,UKRI - BBSRC,19/08/2019,T&S UK - Subsistence,Science Group,Unspecified,98559292,7.78,T&S UK - Subsistence
BEIS,UKRI - BBSRC,19/08/2019,T&S UK - Subsistence,Science Group,Unspecified,98559292,10.00,T&S UK - Subsistence
BEIS,UKRI - BBSRC,19/08/2019,T&S UK - Subsistence,Science Group,Unspecified,98559292,4.98,T&S UK - Subsistence
BEIS,UKRI - BBSRC,19/08/2019,Printing & Stationery,JBOS - Administration,Banner Group Ltd,98559817,7.61,Printing & Stationery
BEIS,UKRI - BBSRC,19/08/2019,Printing & Stationery,JBOS - Administration,Banner Group Ltd,98559817,5.28,Printing & Stationery
BEIS,UKRI - BBSRC,19/08/2019,Printing & Stationery,JBOS - Administration,Banner Group Ltd,98559817,7.44,Printing & Stationery
BEIS,UKRI - BBSRC,19/08/2019,Printing & Stationery,JBOS - Administration,Banner Group Ltd,98559817,9.96,Printing & Stationery
BEIS,UKRI - BBSRC,19/08/2019,Printing & Stationery,JBOS - Administration,Banner Group Ltd,98559817,9.96,Printing & Stationery
BEIS,UKRI - BBSRC,19/08/2019,Printing & Stationery,JBOS - Administration,Banner Group Ltd,98559817,82.26,Printing & Stationery
BEIS,UKRI - BBSRC,19/08/2019,Printing & Stationery,JBOS - Administration,Banner Group Ltd,98559817,8.10,Printing & Stationery
BEIS,UKRI - BBSRC,19/08/2019,Printing & Stationery,JBOS - Administration,Banner Group Ltd,98559817,144.00,Printing & Stationery
BEIS,UKRI - BBSRC,19/08/2019,Printing & Stationery,JBOS - Administration,Banner Group Ltd,98559817,6.06,Printing & Stationery
BEIS,UKRI - BBSRC,19/08/2019,Printing & Stationery,JBOS - Administration,Banner Group Ltd,98559817,6.36,Printing & Stationery
BEIS,UKRI - BBSRC,19/08/2019,Printing & Stationery,JBOS - Administration,Banner Group Ltd,98559817,6.06,Printing & Stationery
BEIS,UKRI - BBSRC,19/08/2019,Printing & Stationery,JBOS - Administration,Banner Group Ltd,98559817,6.06,Printing & Stationery
BEIS,UKRI - BBSRC,19/08/2019,Printing & Stationery,JBOS - Administration,Banner Group Ltd,98559817,4.62,Printing & Stationery
BEIS,UKRI - BBSRC,19/08/2019,Printing & Stationery,JBOS - Administration,Banner Group Ltd,98559817,4.62,Printing & Stationery
BEIS,UKRI - BBSRC,19/08/2019,Printing & Stationery,JBOS - Administration,Banner Group Ltd,98559817,4.62,Printing & Stationery
BEIS,UKRI - BBSRC,19/08/2019,Printing & Stationery,JBOS - Administration,Banner Group Ltd,98559817,4.62,Printing & Stationery
BEIS,UKRI - BBSRC,19/08/2019,Printing & Stationery,JBOS - Administration,Banner Group Ltd,98559817,18.00,Printing & Stationery
BEIS,UKRI - BBSRC,19/08/2019,Printing & Stationery,JBOS - Administration,Banner Group Ltd,98559817,9.72,Printing & Stationery
BEIS,UKRI - BBSRC,19/08/2019,Printing & Stationery,JBOS - Administration,Banner Group Ltd,98559817,24.84,Printing & Stationery
BEIS,UKRI - BBSRC,19/08/2019,Printing & Stationery,JBOS - Administration,Banner Group Ltd,98559817,16.38,Printing & Stationery
BEIS,UKRI - BBSRC,19/08/2019,Other Programme Costs,Innovation and Skills Group CDSU,Business Funding Research Ltd T/A Beauhurst,98559929,8550.00,Other Programme Costs
BEIS,UKRI - BBSRC,20/08/2019,Research Institutes - Competitive Strategic Grant,Babraham Institute,Babraham Institute,98549406,352459.91,Research Institutes - Competitive Strategic Grant
BEIS,UKRI - BBSRC,20/08/2019,Research Institutes - Competitive Strategic Grant,Babraham Institute,Babraham Institute,98549406,48750.01,Research Institutes - Competitive Strategic Grant
BEIS,UKRI - BBSRC,20/08/2019,Research Institutes - Competitive Strategic Grant,Babraham Institute,Babraham Institute,98549406,395666.75,Research Institutes - Competitive Strategic Grant
BEIS,UKRI - BBSRC,20/08/2019,Research Institutes - Competitive Strategic Grant,Babraham Institute,Babraham Institute,98549406,5833.33,Research Institutes - Competitive Strategic Grant
BEIS,UKRI - BBSRC,20/08/2019,Research Institutes - Competitive Strategic Grant,Babraham Institute,Earlham Institute,98550744,33333.33,Research Institutes - Competitive Strategic Grant
BEIS,UKRI - BBSRC,20/08/2019,Research Institutes - Competitive Strategic Grant,Babraham Institute,Earlham Institute,98550744,2916.67,Research Institutes - Competitive Strategic Grant
BEIS,UKRI - BBSRC,20/08/2019,Research Institutes - Competitive Strategic Grant,TGAC,Earlham Institute,98550744,171390.75,Research Institutes - Competitive Strategic Grant
BEIS,UKRI - BBSRC,20/08/2019,Research Institutes - Competitive Strategic Grant,TGAC,Earlham Institute,98550744,75286.58,Research Institutes - Competitive Strategic Grant
BEIS,UKRI - BBSRC,20/08/2019,Research Institutes - Competitive Strategic Grant,TGAC,Earlham Institute,98550744,40250.00,Research Institutes - Competitive Strategic Grant
BEIS,UKRI - BBSRC,20/08/2019,Research Institutes - Competitive Strategic Grant,TGAC,Earlham Institute,98550744,114572.67,Research Institutes - Competitive Strategic Grant
BEIS,UKRI - BBSRC,20/08/2019,Research Institutes - Competitive Strategic Grant,JIC,John Innes Centre,98550773,20998.41,Research Institutes - Competitive Strategic Grant
BEIS,UKRI - BBSRC,20/08/2019,Research Institutes - Competitive Strategic Grant,JIC,John Innes Centre,98550773,489129.70,Research Institutes - Competitive Strategic Grant
BEIS,UKRI - BBSRC,20/08/2019,Research Institutes - Competitive Strategic Grant,JIC,John Innes Centre,98550773,65328.40,Research Institutes - Competitive Strategic Grant
BEIS,UKRI - BBSRC,20/08/2019,Research Institutes - Competitive Strategic Grant,JIC,John Innes Centre,98550773,524543.69,Research Institutes - Competitive Strategic Grant
BEIS,UKRI - BBSRC,20/08/2019,Research Institutes - Competitive Strategic Grant,JIC,John Innes Centre,98550773,7082.80,Research Institutes - Competitive Strategic Grant
BEIS,UKRI - BBSRC,20/08/2019,Research Institutes - Competitive Strategic Grant,JIC,John Innes Centre,98550774,41667.00,Research Institutes - Competitive Strategic Grant
BEIS,UKRI - BBSRC,20/08/2019,Research Institutes - Capital Grants: Major Works,IFR,Quadram Institute Bioscience,98550775,121433.25,Research Institutes - Capital Grants: Major Works
BEIS,UKRI - BBSRC,20/08/2019,Research Institutes - Competitive Strategic Grant,IFR,Quadram Institute Bioscience,98550776,22677.06,Research Institutes - Competitive Strategic Grant
BEIS,UKRI - BBSRC,20/08/2019,Research Institutes - Competitive Strategic Grant,IFR,Quadram Institute Bioscience,98550776,338994.67,Research Institutes - Competitive Strategic Grant
BEIS,UKRI - BBSRC,20/08/2019,Research Institutes - Competitive Strategic Grant,IFR,Quadram Institute Bioscience,98550776,46083.29,Research Institutes - Competitive Strategic Grant
BEIS,UKRI - BBSRC,20/08/2019,Research Institutes - Competitive Strategic Grant,IFR,Quadram Institute Bioscience,98550776,271377.65,Research Institutes - Competitive Strategic Grant
BEIS,UKRI - BBSRC,20/08/2019,Research Institutes - Competitive Strategic Grant,IFR,Quadram Institute Bioscience,98550776,5833.33,Research Institutes - Competitive Strategic Grant
BEIS,UKRI - BBSRC,20/08/2019,Research Institutes - Competitive Strategic Grant,IBERS,Ibers - Aberystwyth University,98550918,86360.99,Research Institutes - Competitive Strategic Grant
BEIS,UKRI - BBSRC,20/08/2019,Research Institutes - Competitive Strategic Grant,IBERS,Ibers - Aberystwyth University,98550918,46980.67,Research Institutes - Competitive Strategic Grant
BEIS,UKRI - BBSRC,20/08/2019,Research Institutes - Competitive Strategic Grant,IBERS,Ibers - Aberystwyth University,98550918,2916.67,Research Institutes - Competitive Strategic Grant
BEIS,UKRI - BBSRC,20/08/2019,Research Institutes - Competitive Strategic Grant,Pirbright,The Pirbright Institute,98552121,819250.00,Research Institutes - Competitive Strategic Grant
BEIS,UKRI - BBSRC,20/08/2019,Research Institutes - Competitive Strategic Grant,Pirbright,The Pirbright Institute,98552121,232083.33,Research Institutes - Competitive Strategic Grant
BEIS,UKRI - BBSRC,20/08/2019,Research Institutes - Competitive Strategic Grant,Pirbright,The Pirbright Institute,98552121,33333.33,Research Institutes - Competitive Strategic Grant
BEIS,UKRI - BBSRC,20/08/2019,Research Institutes - Competitive Strategic Grant,Pirbright,The Pirbright Institute,98552121,198583.33,Research Institutes - Competitive Strategic Grant
BEIS,UKRI - BBSRC,20/08/2019,Research Institutes - Competitive Strategic Grant,Pirbright,The Pirbright Institute,98552121,4166.67,Research Institutes - Competitive Strategic Grant
BEIS,UKRI - BBSRC,20/08/2019,Research Institutes - Competitive Strategic Grant,EBRC (Roslin),University of Edinburgh,98553450,206087.50,Research Institutes - Competitive Strategic Grant
BEIS,UKRI - BBSRC,20/08/2019,Research Institutes - Competitive Strategic Grant,EBRC (Roslin),University of Edinburgh,98553450,5833.33,Research Institutes - Competitive Strategic Grant
BEIS,UKRI - BBSRC,20/08/2019,Research Institutes - Competitive Strategic Grant,EBRC (Roslin),University of Edinburgh,98553450,277179.92,Research Institutes - Competitive Strategic Grant
BEIS,UKRI - BBSRC,20/08/2019,Institute Grant Expenditure,Rothamsted Research,Rothamsted Research Ltd,98557601,49250.00,Institute Grant Expenditure
BEIS,UKRI - BBSRC,20/08/2019,Research Grant Expenditure,Rothamsted Research,Rothamsted Research Ltd,98557604,202583.33,Research Grant Expenditure
BEIS,UKRI - BBSRC,20/08/2019,Research Institutes - Competitive Strategic Grant,Rothamsted Research,Rothamsted Research Ltd,98557605,111068.15,Research Institutes - Competitive Strategic Grant
BEIS,UKRI - BBSRC,20/08/2019,Research Institutes - Competitive Strategic Grant,Rothamsted Research,Rothamsted Research Ltd,98557605,417720.20,Research Institutes - Competitive Strategic Grant
BEIS,UKRI - BBSRC,20/08/2019,Research Institutes - Competitive Strategic Grant,Rothamsted Research,Rothamsted Research Ltd,98557605,64559.03,Research Institutes - Competitive Strategic Grant
BEIS,UKRI - BBSRC,20/08/2019,Research Institutes - Competitive Strategic Grant,Rothamsted Research,Rothamsted Research Ltd,98557605,196672.09,Research Institutes - Competitive Strategic Grant
BEIS,UKRI - BBSRC,20/08/2019,Research Institutes - Competitive Strategic Grant,Rothamsted Research,Rothamsted Research Ltd,98557605,7071.54,Research Institutes - Competitive Strategic Grant
BEIS,UKRI - BBSRC,20/08/2019,T&S UK - Vehicle Hire,CIMG - Director,Enterprise Rent-A-Car UK Ltd,98560967,35.80,T&S UK - Vehicle Hire
BEIS,UKRI - BBSRC,20/08/2019,T&S UK - Vehicle Hire,CIMG - Director,Enterprise Rent-A-Car UK Ltd,98560967,7.16,T&S UK - Vehicle Hire
BEIS,UKRI - BBSRC,20/08/2019,T&S UK - Vehicle Hire,FG - Estates,Enterprise Rent-A-Car UK Ltd,98560967,106.02,T&S UK - Vehicle Hire
BEIS,UKRI - BBSRC,20/08/2019,T&S UK - Vehicle Hire,FG - Estates,Enterprise Rent-A-Car UK Ltd,98560967,82.44,T&S UK - Vehicle Hire
BEIS,UKRI - BBSRC,20/08/2019,T&S UK - Vehicle Hire,FG - Estates,Enterprise Rent-A-Car UK Ltd,98560967,37.69,T&S UK - Vehicle Hire
BEIS,UKRI - BBSRC,20/08/2019,T&S UK - Public Transport,Science Group,Unspecified,98561102,55.90,T&S UK - Public Transport
BEIS,UKRI - BBSRC,20/08/2019,T&S Overseas - Public Transport,European Initiatives,Unspecified,98561103,23.00,T&S Overseas - Public Transport
BEIS,UKRI - BBSRC,20/08/2019,T&S Overseas - Public Transport,European Initiatives,Unspecified,98561103,5.40,T&S Overseas - Public Transport
BEIS,UKRI - BBSRC,20/08/2019,T&S Overseas - Subsistence,European Initiatives,Unspecified,98561103,5.75,T&S Overseas - Subsistence
BEIS,UKRI - BBSRC,21/08/2019,Non-Capital Building Construction,JBOS - Maintenance,ISS Mediclean Ltd,98529353,38687.38,Non-Capital Building Construction
BEIS,UKRI - BBSRC,21/08/2019,Non-Capital Building Construction,JBOS - Maintenance,ISS Mediclean Ltd,98548008,8701.96,Non-Capital Building Construction
BEIS,UKRI - BBSRC,21/08/2019,Research Institutes - Capital Grants: Major Works,Pirbright,The Pirbright Institute,98553550,224984.00,Research Institutes - Capital Grants: Major Works
BEIS,UKRI - BBSRC,21/08/2019,Research Institutes - Capital Grants: Minor Works,Estates - Projects,Anglia Innovation Partnership LLP,98553576,107645.54,Research Institutes - Capital Grants: Minor Works
BEIS,UKRI - BBSRC,21/08/2019,Legal & Professional Services,FG - Estates,Womble Bond Dickinson LLP,98554049,3627.38,Legal & Professional Services
BEIS,UKRI - BBSRC,21/08/2019,Legal & Professional Services,FG - Estates,Womble Bond Dickinson LLP,98554051,1162.80,Legal & Professional Services
BEIS,UKRI - BBSRC,21/08/2019,T&S UK - Vehicle Hire,FG - Director,Enterprise Rent-A-Car UK Ltd,98555692,16.50,T&S UK - Vehicle Hire
BEIS,UKRI - BBSRC,21/08/2019,T&S UK - Vehicle Hire,FG - Director,Enterprise Rent-A-Car UK Ltd,98555692,82.51,T&S UK - Vehicle Hire
BEIS,UKRI - BBSRC,21/08/2019,T&S UK - Vehicle Hire,FG - Estates,Enterprise Rent-A-Car UK Ltd,98555692,45.63,T&S UK - Vehicle Hire
BEIS,UKRI - BBSRC,21/08/2019,T&S UK - Vehicle Hire,FG - Estates,Enterprise Rent-A-Car UK Ltd,98555692,73.35,T&S UK - Vehicle Hire
BEIS,UKRI - BBSRC,21/08/2019,T&S UK - Vehicle Hire,FG - Estates,Enterprise Rent-A-Car UK Ltd,98555692,62.86,T&S UK - Vehicle Hire
BEIS,UKRI - BBSRC,21/08/2019,T&S UK - Vehicle Hire,FG - Estates,Enterprise Rent-A-Car UK Ltd,98555692,91.94,T&S UK - Vehicle Hire
BEIS,UKRI - BBSRC,21/08/2019,Conferences & Seminars,FG - RCUK Assurance,"European Academy for Taxes, Economics & Law",98559893,1162.07,Conferences & Seminars
BEIS,UKRI - BBSRC,21/08/2019,Conferences & Seminars,FG - RCUK Assurance,"European Academy for Taxes, Economics & Law",98559893,1162.07,Conferences & Seminars
BEIS,UKRI - BBSRC,21/08/2019,General Building Maintenance,JBOS - Maintenance,ISS Mediclean Ltd,98561185,530.89,General Building Maintenance
BEIS,UKRI - BBSRC,21/08/2019,General Building Maintenance,JBOS - Maintenance,ISS Mediclean Ltd,98561192,767.57,General Building Maintenance
BEIS,UKRI - BBSRC,21/08/2019,General Building Maintenance,JBOS - Maintenance,ISS Mediclean Ltd,98561193,876.29,General Building Maintenance
BEIS,UKRI - BBSRC,21/08/2019,Fire Protection Services,JBOS - Maintenance,ISS Mediclean Ltd,98561198,2255.23,Fire Protection Services
BEIS,UKRI - BBSRC,21/08/2019,Mechanical & Electrical Maintenance,JBOS - Maintenance,ISS Mediclean Ltd,98561201,2101.63,Mechanical & Electrical Maintenance
BEIS,UKRI - BBSRC,21/08/2019,Mechanical & Electrical Maintenance,JBOS - Maintenance,ISS Mediclean Ltd,98561202,2255.23,Mechanical & Electrical Maintenance
BEIS,UKRI - BBSRC,21/08/2019,Mechanical & Electrical Maintenance,JBOS - Maintenance,ISS Mediclean Ltd,98561207,773.95,Mechanical & Electrical Maintenance
BEIS,UKRI - BBSRC,21/08/2019,Non-Capital Building Construction,JBOS - Maintenance,ISS Mediclean Ltd,98561209,3463.84,Non-Capital Building Construction
BEIS,UKRI - BBSRC,21/08/2019,General Building Maintenance,JBOS - Maintenance,ISS Mediclean Ltd,98561226,1147.50,General Building Maintenance
BEIS,UKRI - BBSRC,21/08/2019,Mechanical & Electrical Maintenance,JBOS - Maintenance,ISS Mediclean Ltd,98561228,2788.15,Mechanical & Electrical Maintenance
BEIS,UKRI - BBSRC,21/08/2019,Non-Capital Building Construction,JBOS - Maintenance,ISS Mediclean Ltd,98561348,-1520.80,Non-Capital Building Construction
BEIS,UKRI - BBSRC,21/08/2019,T&S Overseas - Other Charges,Science Group,Unspecified,98561423,0.98,T&S Overseas - Other Charges
BEIS,UKRI - BBSRC,21/08/2019,T&S Overseas - Public Transport,Science Group,Unspecified,98561423,39.14,T&S Overseas - Public Transport
BEIS,UKRI - BBSRC,21/08/2019,T&S Overseas - Subsistence,Science Group,Unspecified,98561423,10.00,T&S Overseas - Subsistence
BEIS,UKRI - BBSRC,21/08/2019,T&S Overseas - Subsistence,Science Group,Unspecified,98561423,8.70,T&S Overseas - Subsistence
BEIS,UKRI - BBSRC,21/08/2019,T&S Overseas - Subsistence,Science Group,Unspecified,98561423,6.02,T&S Overseas - Subsistence
BEIS,UKRI - BBSRC,21/08/2019,Mobile Phone Costs,CE - CPS,Telefonica UK Ltd (O2),98562302,5.00,Mobile Phone Costs
BEIS,UKRI - BBSRC,21/08/2019,Mobile Phone Costs,CE - CPS,Telefonica UK Ltd (O2),98562302,6.25,Mobile Phone Costs
BEIS,UKRI - BBSRC,21/08/2019,Mobile Phone Costs,CE - CPS,Telefonica UK Ltd (O2),98562302,40.54,Mobile Phone Costs
BEIS,UKRI - BBSRC,21/08/2019,Mobile Phone Costs,CE - CPS,Telefonica UK Ltd (O2),98562302,6.25,Mobile Phone Costs
BEIS,UKRI - BBSRC,21/08/2019,Mobile Phone Costs,CE - CPS,Telefonica UK Ltd (O2),98562302,5.00,Mobile Phone Costs
BEIS,UKRI - BBSRC,21/08/2019,Mobile Phone Costs,CE - CPS,Telefonica UK Ltd (O2),98562302,5.00,Mobile Phone Costs
BEIS,UKRI - BBSRC,21/08/2019,Mobile Phone Costs,CE - CPS,Telefonica UK Ltd (O2),98562302,5.00,Mobile Phone Costs
BEIS,UKRI - BBSRC,21/08/2019,Mobile Phone Costs,CE - CPS,Telefonica UK Ltd (O2),98562302,5.25,Mobile Phone Costs
BEIS,UKRI - BBSRC,21/08/2019,Mobile Phone Costs,CE - CPS,Telefonica UK Ltd (O2),98562302,5.30,Mobile Phone Costs
BEIS,UKRI - BBSRC,21/08/2019,Mobile Phone Costs,CE - CPS,Telefonica UK Ltd (O2),98562302,10.35,Mobile Phone Costs
BEIS,UKRI - BBSRC,21/08/2019,Mobile Phone Costs,CE - Chief Executive,Telefonica UK Ltd (O2),98562302,6.25,Mobile Phone Costs
BEIS,UKRI - BBSRC,21/08/2019,Mobile Phone Costs,CE - Chief Executive,Telefonica UK Ltd (O2),98562302,6.25,Mobile Phone Costs
BEIS,UKRI - BBSRC,21/08/2019,Mobile Phone Costs,CE - Chief Executive,Telefonica UK Ltd (O2),98562302,42.50,Mobile Phone Costs
BEIS,UKRI - BBSRC,21/08/2019,Mobile Phone Costs,CE - Chief Executive,Telefonica UK Ltd (O2),98562302,5.39,Mobile Phone Costs
BEIS,UKRI - BBSRC,21/08/2019,Mobile Phone Costs,CE - Chief Executive,Telefonica UK Ltd (O2),98562302,4.58,Mobile Phone Costs
BEIS,UKRI - BBSRC,21/08/2019,Mobile Phone Costs,CE - IRU,Telefonica UK Ltd (O2),98562302,5.00,Mobile Phone Costs
BEIS,UKRI - BBSRC,21/08/2019,Mobile Phone Costs,CE - IRU,Telefonica UK Ltd (O2),98562302,42.50,Mobile Phone Costs
BEIS,UKRI - BBSRC,21/08/2019,Mobile Phone Costs,CE - IRU,Telefonica UK Ltd (O2),98562302,5.00,Mobile Phone Costs
BEIS,UKRI - BBSRC,21/08/2019,Mobile Phone Costs,CE - IRU,Telefonica UK Ltd (O2),98562302,57.59,Mobile Phone Costs
BEIS,UKRI - BBSRC,21/08/2019,Mobile Phone Costs,CE - IRU,Telefonica UK Ltd (O2),98562302,5.00,Mobile Phone Costs
BEIS,UKRI - BBSRC,21/08/2019,Mobile Phone Costs,CE - IRU,Telefonica UK Ltd (O2),98562302,6.25,Mobile Phone Costs
BEIS,UKRI - BBSRC,21/08/2019,Mobile Phone Costs,CE - IRU,Telefonica UK Ltd (O2),98562302,6.25,Mobile Phone Costs
BEIS,UKRI - BBSRC,21/08/2019,Mobile Phone Costs,CE - IRU,Telefonica UK Ltd (O2),98562302,5.00,Mobile Phone Costs
BEIS,UKRI - BBSRC,21/08/2019,Mobile Phone Costs,CE - IRU,Telefonica UK Ltd (O2),98562302,10.02,Mobile Phone Costs
BEIS,UKRI - BBSRC,21/08/2019,Mobile Phone Costs,CIMG - Council Secretariat,Telefonica UK Ltd (O2),98562302,5.00,Mobile Phone Costs
BEIS,UKRI - BBSRC,21/08/2019,Mobile Phone Costs,CIMG - Council Secretariat,Telefonica UK Ltd (O2),98562302,1.00,Mobile Phone Costs
BEIS,UKRI - BBSRC,21/08/2019,Mobile Phone Costs,CIMG - Director,Telefonica UK Ltd (O2),98562302,6.25,Mobile Phone Costs
BEIS,UKRI - BBSRC,21/08/2019,Mobile Phone Costs,CIMG - Director,Telefonica UK Ltd (O2),98562302,5.00,Mobile Phone Costs
BEIS,UKRI - BBSRC,21/08/2019,Mobile Phone Costs,CIMG - Director,Telefonica UK Ltd (O2),98562302,2.25,Mobile Phone Costs
BEIS,UKRI - BBSRC,21/08/2019,Mobile Phone Costs,CIMG - External Relations,Telefonica UK Ltd (O2),98562302,5.00,Mobile Phone Costs
BEIS,UKRI - BBSRC,21/08/2019,Mobile Phone Costs,CIMG - External Relations,Telefonica UK Ltd (O2),98562302,5.00,Mobile Phone Costs
BEIS,UKRI - BBSRC,21/08/2019,Mobile Phone Costs,CIMG - External Relations,Telefonica UK Ltd (O2),98562302,6.25,Mobile Phone Costs
BEIS,UKRI - BBSRC,21/08/2019,Mobile Phone Costs,CIMG - External Relations,Telefonica UK Ltd (O2),98562302,5.00,Mobile Phone Costs
BEIS,UKRI - BBSRC,21/08/2019,Mobile Phone Costs,CIMG - External Relations,Telefonica UK Ltd (O2),98562302,8.00,Mobile Phone Costs
BEIS,UKRI - BBSRC,21/08/2019,Mobile Phone Costs,CIMG - External Relations,Telefonica UK Ltd (O2),98562302,5.00,Mobile Phone Costs
BEIS,UKRI - BBSRC,21/08/2019,Mobile Phone Costs,CIMG - External Relations,Telefonica UK Ltd (O2),98562302,5.00,Mobile Phone Costs
BEIS,UKRI - BBSRC,21/08/2019,Mobile Phone Costs,CIMG - External Relations,Telefonica UK Ltd (O2),98562302,7.85,Mobile Phone Costs
BEIS,UKRI - BBSRC,21/08/2019,Mobile Phone Costs,CIMG - Information Systems,Telefonica UK Ltd (O2),98562302,5.00,Mobile Phone Costs
BEIS,UKRI - BBSRC,21/08/2019,Mobile Phone Costs,CIMG - Information Systems,Telefonica UK Ltd (O2),98562302,1.00,Mobile Phone Costs
BEIS,UKRI - BBSRC,21/08/2019,Mobile Phone Costs,CIMG - Programme Office,Telefonica UK Ltd (O2),98562302,5.00,Mobile Phone Costs
BEIS,UKRI - BBSRC,21/08/2019,Mobile Phone Costs,CIMG - Programme Office,Telefonica UK Ltd (O2),98562302,1.00,Mobile Phone Costs
BEIS,UKRI - BBSRC,21/08/2019,Mobile Phone Costs,FG - Director,Telefonica UK Ltd (O2),98562302,6.25,Mobile Phone Costs
BEIS,UKRI - BBSRC,21/08/2019,Mobile Phone Costs,FG - Director,Telefonica UK Ltd (O2),98562302,6.25,Mobile Phone Costs
BEIS,UKRI - BBSRC,21/08/2019,Mobile Phone Costs,FG - Director,Telefonica UK Ltd (O2),98562302,5.00,Mobile Phone Costs
BEIS,UKRI - BBSRC,21/08/2019,Mobile Phone Costs,FG - Director,Telefonica UK Ltd (O2),98562302,5.00,Mobile Phone Costs
BEIS,UKRI - BBSRC,21/08/2019,Mobile Phone Costs,FG - Director,Telefonica UK Ltd (O2),98562302,4.50,Mobile Phone Costs
BEIS,UKRI - BBSRC,21/08/2019,Mobile Phone Costs,FG - Estates,Telefonica UK Ltd (O2),98562302,5.00,Mobile Phone Costs
BEIS,UKRI - BBSRC,21/08/2019,Mobile Phone Costs,FG - Estates,Telefonica UK Ltd (O2),98562302,6.25,Mobile Phone Costs
BEIS,UKRI - BBSRC,21/08/2019,Mobile Phone Costs,FG - Estates,Telefonica UK Ltd (O2),98562302,140.00,Mobile Phone Costs
BEIS,UKRI - BBSRC,21/08/2019,Mobile Phone Costs,FG - Estates,Telefonica UK Ltd (O2),98562302,5.00,Mobile Phone Costs
BEIS,UKRI - BBSRC,21/08/2019,Mobile Phone Costs,FG - Estates,Telefonica UK Ltd (O2),98562302,8.00,Mobile Phone Costs
BEIS,UKRI - BBSRC,21/08/2019,Mobile Phone Costs,FG - Estates,Telefonica UK Ltd (O2),98562302,8.00,Mobile Phone Costs
BEIS,UKRI - BBSRC,21/08/2019,Mobile Phone Costs,FG - Estates,Telefonica UK Ltd (O2),98562302,8.00,Mobile Phone Costs
BEIS,UKRI - BBSRC,21/08/2019,Mobile Phone Costs,FG - Estates,Telefonica UK Ltd (O2),98562302,1.00,Mobile Phone Costs
BEIS,UKRI - BBSRC,21/08/2019,Mobile Phone Costs,FG - Estates,Telefonica UK Ltd (O2),98562302,8.05,Mobile Phone Costs
BEIS,UKRI - BBSRC,21/08/2019,Mobile Phone Costs,FG - RCUK Assurance,Telefonica UK Ltd (O2),98562302,5.00,Mobile Phone Costs
BEIS,UKRI - BBSRC,21/08/2019,Mobile Phone Costs,FG - RCUK Assurance,Telefonica UK Ltd (O2),98562302,6.25,Mobile Phone Costs
BEIS,UKRI - BBSRC,21/08/2019,Mobile Phone Costs,FG - RCUK Assurance,Telefonica UK Ltd (O2),98562302,6.25,Mobile Phone Costs
BEIS,UKRI - BBSRC,21/08/2019,Mobile Phone Costs,FG - RCUK Assurance,Telefonica UK Ltd (O2),98562302,3.50,Mobile Phone Costs
BEIS,UKRI - BBSRC,21/08/2019,Mobile Phone Costs,Innovation and Skills Group,Telefonica UK Ltd (O2),98562302,5.00,Mobile Phone Costs
BEIS,UKRI - BBSRC,21/08/2019,Mobile Phone Costs,Innovation and Skills Group,Telefonica UK Ltd (O2),98562302,5.00,Mobile Phone Costs
BEIS,UKRI - BBSRC,21/08/2019,Mobile Phone Costs,Innovation and Skills Group,Telefonica UK Ltd (O2),98562302,5.00,Mobile Phone Costs
BEIS,UKRI - BBSRC,21/08/2019,Mobile Phone Costs,Innovation and Skills Group,Telefonica UK Ltd (O2),98562302,8.00,Mobile Phone Costs
BEIS,UKRI - BBSRC,21/08/2019,Mobile Phone Costs,Innovation and Skills Group,Telefonica UK Ltd (O2),98562302,5.00,Mobile Phone Costs
BEIS,UKRI - BBSRC,21/08/2019,Mobile Phone Costs,Innovation and Skills Group,Telefonica UK Ltd (O2),98562302,6.25,Mobile Phone Costs
BEIS,UKRI - BBSRC,21/08/2019,Mobile Phone Costs,Innovation and Skills Group,Telefonica UK Ltd (O2),98562302,5.00,Mobile Phone Costs
BEIS,UKRI - BBSRC,21/08/2019,Mobile Phone Costs,Innovation and Skills Group,Telefonica UK Ltd (O2),98562302,6.25,Mobile Phone Costs
BEIS,UKRI - BBSRC,21/08/2019,Mobile Phone Costs,Innovation and Skills Group,Telefonica UK Ltd (O2),98562302,5.00,Mobile Phone Costs
BEIS,UKRI - BBSRC,21/08/2019,Mobile Phone Costs,Innovation and Skills Group,Telefonica UK Ltd (O2),98562302,6.25,Mobile Phone Costs
BEIS,UKRI - BBSRC,21/08/2019,Mobile Phone Costs,Innovation and Skills Group,Telefonica UK Ltd (O2),98562302,6.25,Mobile Phone Costs
BEIS,UKRI - BBSRC,21/08/2019,Mobile Phone Costs,Innovation and Skills Group,Telefonica UK Ltd (O2),98562302,5.00,Mobile Phone Costs
BEIS,UKRI - BBSRC,21/08/2019,Mobile Phone Costs,Innovation and Skills Group,Telefonica UK Ltd (O2),98562302,5.00,Mobile Phone Costs
BEIS,UKRI - BBSRC,21/08/2019,Mobile Phone Costs,Innovation and Skills Group,Telefonica UK Ltd (O2),98562302,5.00,Mobile Phone Costs
BEIS,UKRI - BBSRC,21/08/2019,Mobile Phone Costs,Innovation and Skills Group,Telefonica UK Ltd (O2),98562302,5.00,Mobile Phone Costs
BEIS,UKRI - BBSRC,21/08/2019,Mobile Phone Costs,Innovation and Skills Group,Telefonica UK Ltd (O2),98562302,5.00,Mobile Phone Costs
BEIS,UKRI - BBSRC,21/08/2019,Mobile Phone Costs,Innovation and Skills Group,Telefonica UK Ltd (O2),98562302,5.00,Mobile Phone Costs
BEIS,UKRI - BBSRC,21/08/2019,Mobile Phone Costs,Innovation and Skills Group,Telefonica UK Ltd (O2),98562302,5.00,Mobile Phone Costs
BEIS,UKRI - BBSRC,21/08/2019,Mobile Phone Costs,Innovation and Skills Group,Telefonica UK Ltd (O2),98562302,5.00,Mobile Phone Costs
BEIS,UKRI - BBSRC,21/08/2019,Mobile Phone Costs,Innovation and Skills Group,Telefonica UK Ltd (O2),98562302,5.00,Mobile Phone Costs
BEIS,UKRI - BBSRC,21/08/2019,Mobile Phone Costs,Innovation and Skills Group,Telefonica UK Ltd (O2),98562302,6.25,Mobile Phone Costs
BEIS,UKRI - BBSRC,21/08/2019,Mobile Phone Costs,Innovation and Skills Group,Telefonica UK Ltd (O2),98562302,22.85,Mobile Phone Costs
BEIS,UKRI - BBSRC,21/08/2019,Mobile Phone Costs,PDG - Director,Telefonica UK Ltd (O2),98562302,5.00,Mobile Phone Costs
BEIS,UKRI - BBSRC,21/08/2019,Mobile Phone Costs,PDG - Director,Telefonica UK Ltd (O2),98562302,1.00,Mobile Phone Costs
BEIS,UKRI - BBSRC,21/08/2019,Mobile Phone Costs,Science Group,Telefonica UK Ltd (O2),98562302,8.10,Mobile Phone Costs
BEIS,UKRI - BBSRC,21/08/2019,Mobile Phone Costs,Science Group,Telefonica UK Ltd (O2),98562302,15.50,Mobile Phone Costs
BEIS,UKRI - BBSRC,21/08/2019,Mobile Phone Costs,Science Group,Telefonica UK Ltd (O2),98562302,6.25,Mobile Phone Costs
BEIS,UKRI - BBSRC,21/08/2019,Mobile Phone Costs,Science Group,Telefonica UK Ltd (O2),98562302,5.00,Mobile Phone Costs
BEIS,UKRI - BBSRC,21/08/2019,Mobile Phone Costs,Science Group,Telefonica UK Ltd (O2),98562302,8.00,Mobile Phone Costs
BEIS,UKRI - BBSRC,21/08/2019,Mobile Phone Costs,Science Group,Telefonica UK Ltd (O2),98562302,1.75,Mobile Phone Costs
BEIS,UKRI - BBSRC,21/08/2019,Mobile Phone Costs,Science Group,Telefonica UK Ltd (O2),98562302,5.00,Mobile Phone Costs
BEIS,UKRI - BBSRC,21/08/2019,Mobile Phone Costs,Science Group,Telefonica UK Ltd (O2),98562302,5.00,Mobile Phone Costs
BEIS,UKRI - BBSRC,21/08/2019,Mobile Phone Costs,Science Group,Telefonica UK Ltd (O2),98562302,1.75,Mobile Phone Costs
BEIS,UKRI - BBSRC,21/08/2019,Mobile Phone Costs,Science Group,Telefonica UK Ltd (O2),98562302,5.00,Mobile Phone Costs
BEIS,UKRI - BBSRC,21/08/2019,Mobile Phone Costs,Science Group,Telefonica UK Ltd (O2),98562302,8.00,Mobile Phone Costs
BEIS,UKRI - BBSRC,21/08/2019,Mobile Phone Costs,Science Group,Telefonica UK Ltd (O2),98562302,5.00,Mobile Phone Costs
BEIS,UKRI - BBSRC,21/08/2019,Mobile Phone Costs,Science Group,Telefonica UK Ltd (O2),98562302,5.00,Mobile Phone Costs
BEIS,UKRI - BBSRC,21/08/2019,Mobile Phone Costs,Science Group,Telefonica UK Ltd (O2),98562302,5.00,Mobile Phone Costs
BEIS,UKRI - BBSRC,21/08/2019,Mobile Phone Costs,Science Group,Telefonica UK Ltd (O2),98562302,6.25,Mobile Phone Costs
BEIS,UKRI - BBSRC,21/08/2019,Mobile Phone Costs,Science Group,Telefonica UK Ltd (O2),98562302,5.00,Mobile Phone Costs
BEIS,UKRI - BBSRC,21/08/2019,Mobile Phone Costs,Science Group,Telefonica UK Ltd (O2),98562302,5.00,Mobile Phone Costs
BEIS,UKRI - BBSRC,21/08/2019,Mobile Phone Costs,Science Group,Telefonica UK Ltd (O2),98562302,6.25,Mobile Phone Costs
BEIS,UKRI - BBSRC,21/08/2019,Mobile Phone Costs,Science Group,Telefonica UK Ltd (O2),98562302,5.00,Mobile Phone Costs
BEIS,UKRI - BBSRC,21/08/2019,Mobile Phone Costs,Science Group,Telefonica UK Ltd (O2),98562302,5.00,Mobile Phone Costs
BEIS,UKRI - BBSRC,21/08/2019,Mobile Phone Costs,Science Group,Telefonica UK Ltd (O2),98562302,6.25,Mobile Phone Costs
BEIS,UKRI - BBSRC,21/08/2019,Mobile Phone Costs,Science Group,Telefonica UK Ltd (O2),98562302,8.00,Mobile Phone Costs
BEIS,UKRI - BBSRC,21/08/2019,Mobile Phone Costs,Science Group,Telefonica UK Ltd (O2),98562302,8.00,Mobile Phone Costs
BEIS,UKRI - BBSRC,21/08/2019,Mobile Phone Costs,Science Group,Telefonica UK Ltd (O2),98562302,8.00,Mobile Phone Costs
BEIS,UKRI - BBSRC,21/08/2019,Mobile Phone Costs,Science Group,Telefonica UK Ltd (O2),98562302,6.25,Mobile Phone Costs
BEIS,UKRI - BBSRC,21/08/2019,Mobile Phone Costs,Science Group,Telefonica UK Ltd (O2),98562302,29.17,Mobile Phone Costs
BEIS,UKRI - BBSRC,21/08/2019,Research Institutes - Capital Grants: Major Works,Estates - Projects,EMBL (European Molecular Biology Laboratory),98562410,11458.20,Research Institutes - Capital Grants: Major Works
BEIS,UKRI - BBSRC,21/08/2019,Research Institutes - Capital Grants: Major Works,Estates - Projects,EMBL (European Molecular Biology Laboratory),98562420,76843.37,Research Institutes - Capital Grants: Major Works
BEIS,UKRI - BBSRC,21/08/2019,Legal & Professional Services,FG - Estates,Powis Hughes Ltd,98562493,3664.26,Legal & Professional Services
BEIS,UKRI - BBSRC,22/08/2019,T&S UK - Vehicle Hire,CE - CPS,Enterprise Rent-A-Car UK Ltd,98539010,10.35,T&S UK - Vehicle Hire
BEIS,UKRI - BBSRC,22/08/2019,T&S UK - Vehicle Hire,CE - CPS,Enterprise Rent-A-Car UK Ltd,98539010,51.73,T&S UK - Vehicle Hire
BEIS,UKRI - BBSRC,22/08/2019,T&S UK - Vehicle Hire,FG - Director,Enterprise Rent-A-Car UK Ltd,98539010,65.83,T&S UK - Vehicle Hire
BEIS,UKRI - BBSRC,22/08/2019,T&S UK - Vehicle Hire,FG - Director,Enterprise Rent-A-Car UK Ltd,98539010,123.00,T&S UK - Vehicle Hire
BEIS,UKRI - BBSRC,22/08/2019,T&S UK - Vehicle Hire,FG - Director,Enterprise Rent-A-Car UK Ltd,98539010,123.66,T&S UK - Vehicle Hire
BEIS,UKRI - BBSRC,22/08/2019,T&S UK - Vehicle Hire,FG - Director,Enterprise Rent-A-Car UK Ltd,98539010,82.51,T&S UK - Vehicle Hire
BEIS,UKRI - BBSRC,22/08/2019,T&S UK - Vehicle Hire,FG - Estates,Enterprise Rent-A-Car UK Ltd,98539010,10.35,T&S UK - Vehicle Hire
BEIS,UKRI - BBSRC,22/08/2019,T&S UK - Vehicle Hire,FG - Estates,Enterprise Rent-A-Car UK Ltd,98539010,21.32,T&S UK - Vehicle Hire
BEIS,UKRI - BBSRC,22/08/2019,T&S UK - Vehicle Hire,FG - Estates,Enterprise Rent-A-Car UK Ltd,98539010,28.71,T&S UK - Vehicle Hire
BEIS,UKRI - BBSRC,22/08/2019,T&S UK - Vehicle Hire,FG - Estates,Enterprise Rent-A-Car UK Ltd,98539010,77.91,T&S UK - Vehicle Hire
BEIS,UKRI - BBSRC,22/08/2019,T&S UK - Vehicle Hire,FG - Estates,Enterprise Rent-A-Car UK Ltd,98539010,51.73,T&S UK - Vehicle Hire
BEIS,UKRI - BBSRC,22/08/2019,Non-staff travel and subsistance,Innovation and Skills Group CDSU,Non Employee Expenses Supplier,98562641,63.45,Non-staff travel and subsistance
BEIS,UKRI - BBSRC,22/08/2019,Non-staff travel and subsistance,Innovation and Skills Group CDSU,Non Employee Expenses Supplier,98562642,163.73,Non-staff travel and subsistance
BEIS,UKRI - BBSRC,22/08/2019,Non-staff travel and subsistance,Innovation and Skills Group CDSU,Non Employee Expenses Supplier,98562643,236.73,Non-staff travel and subsistance
BEIS,UKRI - BBSRC,22/08/2019,Non-staff travel and subsistance,Innovation and Skills Group CDSU,Non Employee Expenses Supplier,98562644,160.50,Non-staff travel and subsistance
BEIS,UKRI - BBSRC,23/08/2019,Mechanical & Electrical Maintenance,JBOS - Maintenance,ISS Mediclean Ltd,98561213,959.70,Mechanical & Electrical Maintenance
BEIS,UKRI - BBSRC,23/08/2019,Recruitment Costs,PDG - Director,Onefix Recruitment Ltd,98561634,300.00,Recruitment Costs
BEIS,UKRI - BBSRC,23/08/2019,Agency Staff,FG - Director,Reed Specialist Recruitment Ltd,98565046,1055.64,Agency Staff
BEIS,UKRI - BBSRC,23/08/2019,Agency Staff,FG - Director,Reed Specialist Recruitment Ltd,98565049,812.57,Agency Staff
BEIS,UKRI - BBSRC,23/08/2019,Telecoms - Tele/ Video conferencing,CE - Chief Executive,BT Conferencing,98565199,237.40,Telecoms - Tele/ Video conferencing
BEIS,UKRI - BBSRC,23/08/2019,Telecoms - Tele/ Video conferencing,FG - Director,BT Conferencing,98565199,19.45,Telecoms - Tele/ Video conferencing
BEIS,UKRI - BBSRC,23/08/2019,Telecoms - Tele/ Video conferencing,Science Group � Programme Function,BT Conferencing,98565199,135.35,Telecoms - Tele/ Video conferencing
BEIS,UKRI - BBSRC,27/08/2019,Secondments,RISD - UKRO,UKRI - Engineering & Physical Sciences Research Council,98394252,2591.72,Secondments
BEIS,UKRI - BBSRC,27/08/2019,Electricity,FG - Estates,SSE METERING LTD,98549389,800.23,Electricity
BEIS,UKRI - BBSRC,27/08/2019,Voluntary Deductions,Balance Sheet,Swindon Office Sports and Social Club,98556182,78.00,Voluntary Deductions
BEIS,UKRI - BBSRC,27/08/2019,General Building Maintenance,JBOS - Restaurant,Statius Management Services Ltd,98557236,1438.52,General Building Maintenance
BEIS,UKRI - BBSRC,27/08/2019,Compensation Payments,FG - Accounts & Business Planning,RCPS Pension,98564465,28348.17,Compensation Payments
BEIS,UKRI - BBSRC,27/08/2019,T&S UK - Subsistence,FG - Estates,Unspecified,98564879,10.00,T&S UK - Subsistence
BEIS,UKRI - BBSRC,28/08/2019,Conferences & Seminars,CIMG - Information Management,PDP Companies Ltd,98565456,1434.00,Conferences & Seminars
BEIS,UKRI - BBSRC,28/08/2019,Other Programme Costs,Science Group,Calder Conference Ltd,98565660,24.28,Other Programme Costs
BEIS,UKRI - BBSRC,28/08/2019,Conferences & Seminars,Science Group,Rothamsted Centre for Research and Enterprise Ltd,98566262,3700.62,Conferences & Seminars
BEIS,UKRI - BBSRC,28/08/2019,Rates,JBOS - Maintenance,Swindon Borough Council,98566489,74243.00,Rates
BEIS,UKRI - BBSRC,29/08/2019,Other Staff Benefits,PDG - Director,EDENRED (UK GROUP) LTD,98551934,622.57,Other Staff Benefits
BEIS,UKRI - BBSRC,29/08/2019,Agency Staff,FG - Director,Reed Specialist Recruitment Ltd,98566539,1027.86,Agency Staff
BEIS,UKRI - BBSRC,29/08/2019,Legal & Professional Services,CIMG - External Relations,Studio 108 Design Partnership,98566567,1740.00,Legal & Professional Services
BEIS,UKRI - BBSRC,29/08/2019,Books Professional Journals & Guides,CE - CPS,The Pirbright Institute,98566626,-51.65,Books Professional Journals & Guides
BEIS,UKRI - BBSRC,29/08/2019,Books Professional Journals & Guides,CE - CPS,The Pirbright Institute,98566626,1918.64,Books Professional Journals & Guides
BEIS,UKRI - BBSRC,29/08/2019,Books Professional Journals & Guides,CE - CPS,The Pirbright Institute,98566626,-263.14,Books Professional Journals & Guides
BEIS,UKRI - BBSRC,29/08/2019,Non-Capital Building Construction,JBOS - Maintenance,AR Electrical (Swindon) Ltd,98566718,1266.00,Non-Capital Building Construction
BEIS,UKRI - BBSRC,29/08/2019,T&S UK - Other Charges,CE - IRU,Unspecified,98566814,1.89,T&S UK - Other Charges
BEIS,UKRI - BBSRC,29/08/2019,T&S UK - Subsistence,CE - IRU,Unspecified,98566814,3.60,T&S UK - Subsistence
BEIS,UKRI - BBSRC,29/08/2019,T&S UK - Subsistence,CE - IRU,Unspecified,98566814,3.20,T&S UK - Subsistence
BEIS,UKRI - BBSRC,30/08/2019,Data Storage & Recovery,CIMG - Information Management,Iron Mountain (UK) PLC,98550517,498.82,Data Storage & Recovery
BEIS,UKRI - BBSRC,30/08/2019,General Building Maintenance,JBOS - Maintenance,ISS Mediclean Ltd,98561194,178.07,General Building Maintenance
BEIS,UKRI - BBSRC,30/08/2019,General Building Maintenance,JBOS - Maintenance,ISS Mediclean Ltd,98561196,1317.64,General Building Maintenance
BEIS,UKRI - BBSRC,30/08/2019,Postage & Courier Services,JBOS - Post Room,Unspecified,98561785,262.81,Postage & Courier Services
BEIS,UKRI - BBSRC,30/08/2019,Postage & Courier Services,JBOS - Post Room,Unspecified,98561786,846.50,Postage & Courier Services
BEIS,UKRI - BBSRC,30/08/2019,Postage & Courier Services,JBOS - Post Room,Unspecified,98561788,579.00,Postage & Courier Services
BEIS,UKRI - BBSRC,30/08/2019,Postage & Courier Services,JBOS - Post Room,Unspecified,98561795,574.57,Postage & Courier Services
BEIS,UKRI - BBSRC,30/08/2019,Postage & Courier Services,JBOS - Post Room,Unspecified,98561796,1097.21,Postage & Courier Services
BEIS,UKRI - BBSRC,30/08/2019,Postage & Courier Services,JBOS - Post Room,Unspecified,98566736,679.42,Postage & Courier Services
BEIS,UKRI - BBSRC,30/08/2019,Postage & Courier Services,JBOS - Post Room,Unspecified,98566742,47.22,Postage & Courier Services
BEIS,UKRI - BBSRC,30/08/2019,Postage & Courier Services,JBOS - Post Room,Unspecified,98566746,645.92,Postage & Courier Services
BEIS,UKRI - BBSRC,30/08/2019,Postage & Courier Services,JBOS - Post Room,Unspecified,98566750,756.30,Postage & Courier Services
BEIS,UKRI - BBSRC,30/08/2019,Postage & Courier Services,JBOS - Post Room,Unspecified,98566752,309.67,Postage & Courier Services
BEIS,UKRI - BBSRC,30/08/2019,Postage & Courier Services,JBOS - Post Room,Unspecified,98566755,250.38,Postage & Courier Services
BEIS,UKRI - BBSRC,30/08/2019,Postage & Courier Services,JBOS - Post Room,Unspecified,98566756,252.37,Postage & Courier Services
BEIS,UKRI - BBSRC,30/08/2019,Postage & Courier Services,JBOS - Post Room,Unspecified,98566757,375.38,Postage & Courier Services
BEIS,UKRI - BBSRC,30/08/2019,Postage & Courier Services,JBOS - Post Room,Unspecified,98566758,403.01,Postage & Courier Services
BEIS,UKRI - BBSRC,30/08/2019,Postage & Courier Services,JBOS - Post Room,Unspecified,98566760,602.08,Postage & Courier Services
BEIS,UKRI - BBSRC,30/08/2019,Agency Staff,FG - Director,Reed Specialist Recruitment Ltd,98567176,1027.86,Agency Staff
BEIS,UKRI - BBSRC,30/08/2019,Recruitment Costs,PDG - Director,Warwick University Services Ltd,98567334,300.00,Recruitment Costs
BEIS,UKRI - BBSRC,30/08/2019,Electricity,JBOS - Maintenance,EDF Energy,98567421,38957.29,Electricity
BEIS,UKRI - BBSRC,30/08/2019,Health & Safety (inc. Medicals & Opticians),PDG - Director,Abbey Business Interiors Ltd,98567977,60.00,Health & Safety (inc. Medicals & Opticians)
BEIS,UKRI - BBSRC,30/08/2019,Postage & Courier Services,JBOS - Post Room,Unspecified,98568007,992.54,Postage & Courier Services
BEIS,UKRI - BBSRC,30/08/2019,Postage & Courier Services,JBOS - Post Room,Unspecified,98568008,543.46,Postage & Courier Services
BEIS,UKRI - BBSRC,30/08/2019,Postage & Courier Services,JBOS - Post Room,Unspecified,98568009,333.41,Postage & Courier Services
BEIS,UKRI - BBSRC,30/08/2019,Postage & Courier Services,JBOS - Post Room,Unspecified,98568010,574.51,Postage & Courier Services
BEIS,UKRI - BBSRC,30/08/2019,Postage & Courier Services,JBOS - Post Room,Unspecified,98568011,284.71,Postage & Courier Services
BEIS,UKRI - BBSRC,30/08/2019,Non-staff travel and subsistance,Science Group - Delivery Function,Corporate Travel Management (North) Ltd,98568048,168.81,Non-staff travel and subsistance
BEIS,UKRI - BBSRC,30/08/2019,Non-staff travel and subsistance,Science Group - Delivery Function,Corporate Travel Management (North) Ltd,98568048,15.20,Non-staff travel and subsistance
BEIS,UKRI - BBSRC,30/08/2019,Non-staff travel and subsistance,Science Group - Delivery Function,Corporate Travel Management (North) Ltd,98568048,17.70,Non-staff travel and subsistance
BEIS,UKRI - BBSRC,30/08/2019,Non-staff travel and subsistance,Science Group - Delivery Function,Corporate Travel Management (North) Ltd,98568048,23.80,Non-staff travel and subsistance
BEIS,UKRI - BBSRC,30/08/2019,T&S Overseas - Accommodation,BBSRC Champions,Corporate Travel Management (North) Ltd,98568048,0.50,T&S Overseas - Accommodation
BEIS,UKRI - BBSRC,30/08/2019,T&S Overseas - Accommodation,BBSRC Champions,Corporate Travel Management (North) Ltd,98568048,1.44,T&S Overseas - Accommodation
BEIS,UKRI - BBSRC,30/08/2019,T&S Overseas - Accommodation,BBSRC Champions,Corporate Travel Management (North) Ltd,98568048,0.39,T&S Overseas - Accommodation
BEIS,UKRI - BBSRC,30/08/2019,T&S Overseas - Accommodation,CE - IRU,Corporate Travel Management (North) Ltd,98568048,0.50,T&S Overseas - Accommodation
BEIS,UKRI - BBSRC,30/08/2019,T&S Overseas - Accommodation,CE - IRU,Corporate Travel Management (North) Ltd,98568048,0.10,T&S Overseas - Accommodation
BEIS,UKRI - BBSRC,30/08/2019,T&S Overseas - Accommodation,JBOS - Staff,Corporate Travel Management (North) Ltd,98568048,0.50,T&S Overseas - Accommodation
BEIS,UKRI - BBSRC,30/08/2019,T&S Overseas - Accommodation,JBOS - Staff,Corporate Travel Management (North) Ltd,98568048,1.44,T&S Overseas - Accommodation
BEIS,UKRI - BBSRC,30/08/2019,T&S Overseas - Accommodation,JBOS - Staff,Corporate Travel Management (North) Ltd,98568048,113.25,T&S Overseas - Accommodation
BEIS,UKRI - BBSRC,30/08/2019,T&S Overseas - Accommodation,JBOS - Staff,Corporate Travel Management (North) Ltd,98568048,0.50,T&S Overseas - Accommodation
BEIS,UKRI - BBSRC,30/08/2019,T&S Overseas - Accommodation,JBOS - Staff,Corporate Travel Management (North) Ltd,98568048,1.44,T&S Overseas - Accommodation
BEIS,UKRI - BBSRC,30/08/2019,T&S Overseas - Accommodation,JBOS - Staff,Corporate Travel Management (North) Ltd,98568048,888.28,T&S Overseas - Accommodation
BEIS,UKRI - BBSRC,30/08/2019,T&S Overseas - Accommodation,JBOS - Staff,Corporate Travel Management (North) Ltd,98568048,0.39,T&S Overseas - Accommodation
BEIS,UKRI - BBSRC,30/08/2019,T&S Overseas - Accommodation,JBOS - Staff,Corporate Travel Management (North) Ltd,98568048,0.39,T&S Overseas - Accommodation
BEIS,UKRI - BBSRC,30/08/2019,T&S Overseas - Accommodation,Science Group,Corporate Travel Management (North) Ltd,98568048,0.50,T&S Overseas - Accommodation
BEIS,UKRI - BBSRC,30/08/2019,T&S Overseas - Accommodation,Science Group,Corporate Travel Management (North) Ltd,98568048,0.50,T&S Overseas - Accommodation
BEIS,UKRI - BBSRC,30/08/2019,T&S Overseas - Accommodation,Science Group,Corporate Travel Management (North) Ltd,98568048,0.50,T&S Overseas - Accommodation
BEIS,UKRI - BBSRC,30/08/2019,T&S Overseas - Accommodation,Science Group,Corporate Travel Management (North) Ltd,98568048,1.44,T&S Overseas - Accommodation
BEIS,UKRI - BBSRC,30/08/2019,T&S Overseas - Accommodation,Science Group,Corporate Travel Management (North) Ltd,98568048,190.45,T&S Overseas - Accommodation
BEIS,UKRI - BBSRC,30/08/2019,T&S Overseas - Accommodation,Science Group,Corporate Travel Management (North) Ltd,98568048,0.50,T&S Overseas - Accommodation
BEIS,UKRI - BBSRC,30/08/2019,T&S Overseas - Accommodation,Science Group,Corporate Travel Management (North) Ltd,98568048,0.59,T&S Overseas - Accommodation
BEIS,UKRI - BBSRC,30/08/2019,T&S Overseas - Accommodation,Science Group,Corporate Travel Management (North) Ltd,98568048,0.10,T&S Overseas - Accommodation
BEIS,UKRI - BBSRC,30/08/2019,T&S Overseas - Accommodation,Science Group � Admin Function,Corporate Travel Management (North) Ltd,98568048,0.50,T&S Overseas - Accommodation
BEIS,UKRI - BBSRC,30/08/2019,T&S Overseas - Accommodation,Science Group � Admin Function,Corporate Travel Management (North) Ltd,98568048,1.44,T&S Overseas - Accommodation
BEIS,UKRI - BBSRC,30/08/2019,T&S Overseas - Accommodation,Science Group � Admin Function,Corporate Travel Management (North) Ltd,98568048,0.39,T&S Overseas - Accommodation
BEIS,UKRI - BBSRC,30/08/2019,T&S Overseas - Flights,CE - IRU,Corporate Travel Management (North) Ltd,98568048,2.16,T&S Overseas - Flights
BEIS,UKRI - BBSRC,30/08/2019,T&S Overseas - Flights,CE - IRU,Corporate Travel Management (North) Ltd,98568048,74.13,T&S Overseas - Flights
BEIS,UKRI - BBSRC,30/08/2019,T&S Overseas - Flights,CE - IRU,Corporate Travel Management (North) Ltd,98568048,2.16,T&S Overseas - Flights
BEIS,UKRI - BBSRC,30/08/2019,T&S Overseas - Flights,CE - IRU,Corporate Travel Management (North) Ltd,98568048,1999.92,T&S Overseas - Flights
BEIS,UKRI - BBSRC,30/08/2019,T&S Overseas - Flights,FG - RCUK Assurance,Corporate Travel Management (North) Ltd,98568048,2.16,T&S Overseas - Flights
BEIS,UKRI - BBSRC,30/08/2019,T&S Overseas - Flights,FG - RCUK Assurance,Corporate Travel Management (North) Ltd,98568048,224.00,T&S Overseas - Flights
BEIS,UKRI - BBSRC,30/08/2019,T&S Overseas - Flights,Science Group,Corporate Travel Management (North) Ltd,98568048,278.94,T&S Overseas - Flights
BEIS,UKRI - BBSRC,30/08/2019,T&S Overseas - Public Transport,RISD - UKRO,Corporate Travel Management (North) Ltd,98568048,2.50,T&S Overseas - Public Transport
BEIS,UKRI - BBSRC,30/08/2019,T&S Overseas - Public Transport,RISD - UKRO,Corporate Travel Management (North) Ltd,98568048,128.00,T&S Overseas - Public Transport
BEIS,UKRI - BBSRC,30/08/2019,T&S Overseas - Public Transport,RISD - UKRO,Corporate Travel Management (North) Ltd,98568048,2.16,T&S Overseas - Public Transport
BEIS,UKRI - BBSRC,30/08/2019,T&S Overseas - Public Transport,RISD - UKRO,Corporate Travel Management (North) Ltd,98568048,271.00,T&S Overseas - Public Transport
BEIS,UKRI - BBSRC,30/08/2019,T&S Overseas - Public Transport,RISD - UKRO,Corporate Travel Management (North) Ltd,98568048,60.00,T&S Overseas - Public Transport
BEIS,UKRI - BBSRC,30/08/2019,T&S Overseas - Public Transport,RISD - UKRO,Corporate Travel Management (North) Ltd,98568048,2.16,T&S Overseas - Public Transport
BEIS,UKRI - BBSRC,30/08/2019,T&S Overseas - Public Transport,RISD - UKRO,Corporate Travel Management (North) Ltd,98568048,75.01,T&S Overseas - Public Transport
BEIS,UKRI - BBSRC,30/08/2019,T&S Overseas - Public Transport,RISD - UKRO,Corporate Travel Management (North) Ltd,98568048,94.00,T&S Overseas - Public Transport
BEIS,UKRI - BBSRC,30/08/2019,T&S UK - Accommodation,CE - CPS,Corporate Travel Management (North) Ltd,98568048,0.50,T&S UK - Accommodation
BEIS,UKRI - BBSRC,30/08/2019,T&S UK - Accommodation,CE - CPS,Corporate Travel Management (North) Ltd,98568048,123.00,T&S UK - Accommodation
BEIS,UKRI - BBSRC,30/08/2019,T&S UK - Accommodation,CE - CPS,Corporate Travel Management (North) Ltd,98568048,0.10,T&S UK - Accommodation
BEIS,UKRI - BBSRC,30/08/2019,T&S UK - Accommodation,CE - Chief Executive,Corporate Travel Management (North) Ltd,98568048,0.50,T&S UK - Accommodation
BEIS,UKRI - BBSRC,30/08/2019,T&S UK - Accommodation,CE - Chief Executive,Corporate Travel Management (North) Ltd,98568048,130.00,T&S UK - Accommodation
BEIS,UKRI - BBSRC,30/08/2019,T&S UK - Accommodation,CE - Chief Executive,Corporate Travel Management (North) Ltd,98568048,0.50,T&S UK - Accommodation
BEIS,UKRI - BBSRC,30/08/2019,T&S UK - Accommodation,CE - Chief Executive,Corporate Travel Management (North) Ltd,98568048,1.44,T&S UK - Accommodation
BEIS,UKRI - BBSRC,30/08/2019,T&S UK - Accommodation,CE - Chief Executive,Corporate Travel Management (North) Ltd,98568048,88.00,T&S UK - Accommodation
BEIS,UKRI - BBSRC,30/08/2019,T&S UK - Accommodation,CE - Chief Executive,Corporate Travel Management (North) Ltd,98568048,0.50,T&S UK - Accommodation
BEIS,UKRI - BBSRC,30/08/2019,T&S UK - Accommodation,CE - Chief Executive,Corporate Travel Management (North) Ltd,98568048,279.00,T&S UK - Accommodation
BEIS,UKRI - BBSRC,30/08/2019,T&S UK - Accommodation,CE - Chief Executive,Corporate Travel Management (North) Ltd,98568048,0.59,T&S UK - Accommodation
BEIS,UKRI - BBSRC,30/08/2019,T&S UK - Accommodation,CIMG - Director,Corporate Travel Management (North) Ltd,98568048,0.50,T&S UK - Accommodation
BEIS,UKRI - BBSRC,30/08/2019,T&S UK - Accommodation,CIMG - Director,Corporate Travel Management (North) Ltd,98568048,0.50,T&S UK - Accommodation
BEIS,UKRI - BBSRC,30/08/2019,T&S UK - Accommodation,CIMG - Director,Corporate Travel Management (North) Ltd,98568048,185.25,T&S UK - Accommodation
BEIS,UKRI - BBSRC,30/08/2019,T&S UK - Accommodation,CIMG - Director,Corporate Travel Management (North) Ltd,98568048,0.20,T&S UK - Accommodation
BEIS,UKRI - BBSRC,30/08/2019,T&S UK - Accommodation,CIMG - Programme Office,Corporate Travel Management (North) Ltd,98568048,0.50,T&S UK - Accommodation
BEIS,UKRI - BBSRC,30/08/2019,T&S UK - Accommodation,CIMG - Programme Office,Corporate Travel Management (North) Ltd,98568048,70.00,T&S UK - Accommodation
BEIS,UKRI - BBSRC,30/08/2019,T&S UK - Accommodation,CIMG - Programme Office,Corporate Travel Management (North) Ltd,98568048,0.50,T&S UK - Accommodation
BEIS,UKRI - BBSRC,30/08/2019,T&S UK - Accommodation,CIMG - Programme Office,Corporate Travel Management (North) Ltd,98568048,0.50,T&S UK - Accommodation
BEIS,UKRI - BBSRC,30/08/2019,T&S UK - Accommodation,CIMG - Programme Office,Corporate Travel Management (North) Ltd,98568048,0.30,T&S UK - Accommodation
BEIS,UKRI - BBSRC,30/08/2019,T&S UK - Accommodation,FG - Director,Corporate Travel Management (North) Ltd,98568048,0.50,T&S UK - Accommodation
BEIS,UKRI - BBSRC,30/08/2019,T&S UK - Accommodation,FG - Director,Corporate Travel Management (North) Ltd,98568048,110.00,T&S UK - Accommodation
BEIS,UKRI - BBSRC,30/08/2019,T&S UK - Accommodation,FG - Director,Corporate Travel Management (North) Ltd,98568048,0.50,T&S UK - Accommodation
BEIS,UKRI - BBSRC,30/08/2019,T&S UK - Accommodation,FG - Director,Corporate Travel Management (North) Ltd,98568048,109.25,T&S UK - Accommodation
BEIS,UKRI - BBSRC,30/08/2019,T&S UK - Accommodation,FG - Director,Corporate Travel Management (North) Ltd,98568048,0.50,T&S UK - Accommodation
BEIS,UKRI - BBSRC,30/08/2019,T&S UK - Accommodation,FG - Director,Corporate Travel Management (North) Ltd,98568048,80.00,T&S UK - Accommodation
BEIS,UKRI - BBSRC,30/08/2019,T&S UK - Accommodation,FG - Director,Corporate Travel Management (North) Ltd,98568048,0.30,T&S UK - Accommodation
BEIS,UKRI - BBSRC,30/08/2019,T&S UK - Accommodation,FG - Estates,Corporate Travel Management (North) Ltd,98568048,0.50,T&S UK - Accommodation
BEIS,UKRI - BBSRC,30/08/2019,T&S UK - Accommodation,FG - Estates,Corporate Travel Management (North) Ltd,98568048,109.00,T&S UK - Accommodation
BEIS,UKRI - BBSRC,30/08/2019,T&S UK - Accommodation,FG - Estates,Corporate Travel Management (North) Ltd,98568048,0.50,T&S UK - Accommodation
BEIS,UKRI - BBSRC,30/08/2019,T&S UK - Accommodation,FG - Estates,Corporate Travel Management (North) Ltd,98568048,97.00,T&S UK - Accommodation
BEIS,UKRI - BBSRC,30/08/2019,T&S UK - Accommodation,FG - Estates,Corporate Travel Management (North) Ltd,98568048,0.50,T&S UK - Accommodation
BEIS,UKRI - BBSRC,30/08/2019,T&S UK - Accommodation,FG - Estates,Corporate Travel Management (North) Ltd,98568048,113.00,T&S UK - Accommodation
BEIS,UKRI - BBSRC,30/08/2019,T&S UK - Accommodation,FG - Estates,Corporate Travel Management (North) Ltd,98568048,0.50,T&S UK - Accommodation
BEIS,UKRI - BBSRC,30/08/2019,T&S UK - Accommodation,FG - Estates,Corporate Travel Management (North) Ltd,98568048,110.00,T&S UK - Accommodation
BEIS,UKRI - BBSRC,30/08/2019,T&S UK - Accommodation,FG - Estates,Corporate Travel Management (North) Ltd,98568048,0.50,T&S UK - Accommodation
BEIS,UKRI - BBSRC,30/08/2019,T&S UK - Accommodation,FG - Estates,Corporate Travel Management (North) Ltd,98568048,226.00,T&S UK - Accommodation
BEIS,UKRI - BBSRC,30/08/2019,T&S UK - Accommodation,FG - Estates,Corporate Travel Management (North) Ltd,98568048,0.50,T&S UK - Accommodation
BEIS,UKRI - BBSRC,30/08/2019,T&S UK - Accommodation,FG - Estates,Corporate Travel Management (North) Ltd,98568048,109.00,T&S UK - Accommodation
BEIS,UKRI - BBSRC,30/08/2019,T&S UK - Accommodation,FG - Estates,Corporate Travel Management (North) Ltd,98568048,0.50,T&S UK - Accommodation
BEIS,UKRI - BBSRC,30/08/2019,T&S UK - Accommodation,FG - Estates,Corporate Travel Management (North) Ltd,98568048,69.95,T&S UK - Accommodation
BEIS,UKRI - BBSRC,30/08/2019,T&S UK - Accommodation,FG - Estates,Corporate Travel Management (North) Ltd,98568048,0.50,T&S UK - Accommodation
BEIS,UKRI - BBSRC,30/08/2019,T&S UK - Accommodation,FG - Estates,Corporate Travel Management (North) Ltd,98568048,0.50,T&S UK - Accommodation
BEIS,UKRI - BBSRC,30/08/2019,T&S UK - Accommodation,FG - Estates,Corporate Travel Management (North) Ltd,98568048,99.75,T&S UK - Accommodation
BEIS,UKRI - BBSRC,30/08/2019,T&S UK - Accommodation,FG - Estates,Corporate Travel Management (North) Ltd,98568048,0.50,T&S UK - Accommodation
BEIS,UKRI - BBSRC,30/08/2019,T&S UK - Accommodation,FG - Estates,Corporate Travel Management (North) Ltd,98568048,1.00,T&S UK - Accommodation
BEIS,UKRI - BBSRC,30/08/2019,T&S UK - Accommodation,FG - RCUK Assurance,Corporate Travel Management (North) Ltd,98568048,0.50,T&S UK - Accommodation
BEIS,UKRI - BBSRC,30/08/2019,T&S UK - Accommodation,FG - RCUK Assurance,Corporate Travel Management (North) Ltd,98568048,80.00,T&S UK - Accommodation
BEIS,UKRI - BBSRC,30/08/2019,T&S UK - Accommodation,FG - RCUK Assurance,Corporate Travel Management (North) Ltd,98568048,0.50,T&S UK - Accommodation
BEIS,UKRI - BBSRC,30/08/2019,T&S UK - Accommodation,FG - RCUK Assurance,Corporate Travel Management (North) Ltd,98568048,80.00,T&S UK - Accommodation
BEIS,UKRI - BBSRC,30/08/2019,T&S UK - Accommodation,FG - RCUK Assurance,Corporate Travel Management (North) Ltd,98568048,0.50,T&S UK - Accommodation
BEIS,UKRI - BBSRC,30/08/2019,T&S UK - Accommodation,FG - RCUK Assurance,Corporate Travel Management (North) Ltd,98568048,119.00,T&S UK - Accommodation
BEIS,UKRI - BBSRC,30/08/2019,T&S UK - Accommodation,FG - RCUK Assurance,Corporate Travel Management (North) Ltd,98568048,0.50,T&S UK - Accommodation
BEIS,UKRI - BBSRC,30/08/2019,T&S UK - Accommodation,FG - RCUK Assurance,Corporate Travel Management (North) Ltd,98568048,119.00,T&S UK - Accommodation
BEIS,UKRI - BBSRC,30/08/2019,T&S UK - Accommodation,FG - RCUK Assurance,Corporate Travel Management (North) Ltd,98568048,0.40,T&S UK - Accommodation
BEIS,UKRI - BBSRC,30/08/2019,T&S UK - Accommodation,Innovation and Skills Group,Corporate Travel Management (North) Ltd,98568048,0.50,T&S UK - Accommodation
BEIS,UKRI - BBSRC,30/08/2019,T&S UK - Accommodation,Innovation and Skills Group,Corporate Travel Management (North) Ltd,98568048,136.00,T&S UK - Accommodation
BEIS,UKRI - BBSRC,30/08/2019,T&S UK - Accommodation,Innovation and Skills Group,Corporate Travel Management (North) Ltd,98568048,0.50,T&S UK - Accommodation
BEIS,UKRI - BBSRC,30/08/2019,T&S UK - Accommodation,Innovation and Skills Group,Corporate Travel Management (North) Ltd,98568048,97.82,T&S UK - Accommodation
BEIS,UKRI - BBSRC,30/08/2019,T&S UK - Accommodation,Innovation and Skills Group,Corporate Travel Management (North) Ltd,98568048,0.50,T&S UK - Accommodation
BEIS,UKRI - BBSRC,30/08/2019,T&S UK - Accommodation,Innovation and Skills Group,Corporate Travel Management (North) Ltd,98568048,240.00,T&S UK - Accommodation
BEIS,UKRI - BBSRC,30/08/2019,T&S UK - Accommodation,Innovation and Skills Group,Corporate Travel Management (North) Ltd,98568048,0.50,T&S UK - Accommodation
BEIS,UKRI - BBSRC,30/08/2019,T&S UK - Accommodation,Innovation and Skills Group,Corporate Travel Management (North) Ltd,98568048,0.40,T&S UK - Accommodation
BEIS,UKRI - BBSRC,30/08/2019,T&S UK - Accommodation,Innovation and Skills Group CDSU,Corporate Travel Management (North) Ltd,98568048,0.50,T&S UK - Accommodation
BEIS,UKRI - BBSRC,30/08/2019,T&S UK - Accommodation,Innovation and Skills Group CDSU,Corporate Travel Management (North) Ltd,98568048,571.02,T&S UK - Accommodation
BEIS,UKRI - BBSRC,30/08/2019,T&S UK - Accommodation,Innovation and Skills Group CDSU,Corporate Travel Management (North) Ltd,98568048,0.10,T&S UK - Accommodation
BEIS,UKRI - BBSRC,30/08/2019,T&S UK - Accommodation,RISD - UKRO,Corporate Travel Management (North) Ltd,98568048,0.50,T&S UK - Accommodation
BEIS,UKRI - BBSRC,30/08/2019,T&S UK - Accommodation,RISD - UKRO,Corporate Travel Management (North) Ltd,98568048,105.00,T&S UK - Accommodation
BEIS,UKRI - BBSRC,30/08/2019,T&S UK - Accommodation,RISD - UKRO,Corporate Travel Management (North) Ltd,98568048,0.50,T&S UK - Accommodation
BEIS,UKRI - BBSRC,30/08/2019,T&S UK - Accommodation,RISD - UKRO,Corporate Travel Management (North) Ltd,98568048,175.00,T&S UK - Accommodation
BEIS,UKRI - BBSRC,30/08/2019,T&S UK - Accommodation,RISD - UKRO,Corporate Travel Management (North) Ltd,98568048,0.50,T&S UK - Accommodation
BEIS,UKRI - BBSRC,30/08/2019,T&S UK - Accommodation,RISD - UKRO,Corporate Travel Management (North) Ltd,98568048,1.44,T&S UK - Accommodation
BEIS,UKRI - BBSRC,30/08/2019,T&S UK - Accommodation,RISD - UKRO,Corporate Travel Management (North) Ltd,98568048,109.00,T&S UK - Accommodation
BEIS,UKRI - BBSRC,30/08/2019,T&S UK - Accommodation,RISD - UKRO,Corporate Travel Management (North) Ltd,98568048,0.50,T&S UK - Accommodation
BEIS,UKRI - BBSRC,30/08/2019,T&S UK - Accommodation,RISD - UKRO,Corporate Travel Management (North) Ltd,98568048,300.00,T&S UK - Accommodation
BEIS,UKRI - BBSRC,30/08/2019,T&S UK - Accommodation,RISD - UKRO,Corporate Travel Management (North) Ltd,98568048,0.69,T&S UK - Accommodation
BEIS,UKRI - BBSRC,30/08/2019,T&S UK - Accommodation,Science Group,Corporate Travel Management (North) Ltd,98568048,0.50,T&S UK - Accommodation
BEIS,UKRI - BBSRC,30/08/2019,T&S UK - Accommodation,Science Group,Corporate Travel Management (North) Ltd,98568048,112.50,T&S UK - Accommodation
BEIS,UKRI - BBSRC,30/08/2019,T&S UK - Accommodation,Science Group,Corporate Travel Management (North) Ltd,98568048,0.50,T&S UK - Accommodation
BEIS,UKRI - BBSRC,30/08/2019,T&S UK - Accommodation,Science Group,Corporate Travel Management (North) Ltd,98568048,0.50,T&S UK - Accommodation
BEIS,UKRI - BBSRC,30/08/2019,T&S UK - Accommodation,Science Group,Corporate Travel Management (North) Ltd,98568048,67.50,T&S UK - Accommodation
BEIS,UKRI - BBSRC,30/08/2019,T&S UK - Accommodation,Science Group,Corporate Travel Management (North) Ltd,98568048,0.50,T&S UK - Accommodation
BEIS,UKRI - BBSRC,30/08/2019,T&S UK - Accommodation,Science Group,Corporate Travel Management (North) Ltd,98568048,122.78,T&S UK - Accommodation
BEIS,UKRI - BBSRC,30/08/2019,T&S UK - Accommodation,Science Group,Corporate Travel Management (North) Ltd,98568048,0.50,T&S UK - Accommodation
BEIS,UKRI - BBSRC,30/08/2019,T&S UK - Accommodation,Science Group,Corporate Travel Management (North) Ltd,98568048,89.24,T&S UK - Accommodation
BEIS,UKRI - BBSRC,30/08/2019,T&S UK - Accommodation,Science Group,Corporate Travel Management (North) Ltd,98568048,0.50,T&S UK - Accommodation
BEIS,UKRI - BBSRC,30/08/2019,T&S UK - Accommodation,Science Group,Corporate Travel Management (North) Ltd,98568048,160.00,T&S UK - Accommodation
BEIS,UKRI - BBSRC,30/08/2019,T&S UK - Accommodation,Science Group,Corporate Travel Management (North) Ltd,98568048,0.50,T&S UK - Accommodation
BEIS,UKRI - BBSRC,30/08/2019,T&S UK - Accommodation,Science Group,Corporate Travel Management (North) Ltd,98568048,70.30,T&S UK - Accommodation
BEIS,UKRI - BBSRC,30/08/2019,T&S UK - Accommodation,Science Group,Corporate Travel Management (North) Ltd,98568048,0.50,T&S UK - Accommodation
BEIS,UKRI - BBSRC,30/08/2019,T&S UK - Accommodation,Science Group,Corporate Travel Management (North) Ltd,98568048,105.25,T&S UK - Accommodation
BEIS,UKRI - BBSRC,30/08/2019,T&S UK - Accommodation,Science Group,Corporate Travel Management (North) Ltd,98568048,0.50,T&S UK - Accommodation
BEIS,UKRI - BBSRC,30/08/2019,T&S UK - Accommodation,Science Group,Corporate Travel Management (North) Ltd,98568048,89.00,T&S UK - Accommodation
BEIS,UKRI - BBSRC,30/08/2019,T&S UK - Accommodation,Science Group,Corporate Travel Management (North) Ltd,98568048,0.50,T&S UK - Accommodation
BEIS,UKRI - BBSRC,30/08/2019,T&S UK - Accommodation,Science Group,Corporate Travel Management (North) Ltd,98568048,136.00,T&S UK - Accommodation
BEIS,UKRI - BBSRC,30/08/2019,T&S UK - Accommodation,Science Group,Corporate Travel Management (North) Ltd,98568048,0.50,T&S UK - Accommodation
BEIS,UKRI - BBSRC,30/08/2019,T&S UK - Accommodation,Science Group,Corporate Travel Management (North) Ltd,98568048,136.00,T&S UK - Accommodation
BEIS,UKRI - BBSRC,30/08/2019,T&S UK - Accommodation,Science Group,Corporate Travel Management (North) Ltd,98568048,0.50,T&S UK - Accommodation
BEIS,UKRI - BBSRC,30/08/2019,T&S UK - Accommodation,Science Group,Corporate Travel Management (North) Ltd,98568048,150.00,T&S UK - Accommodation
BEIS,UKRI - BBSRC,30/08/2019,T&S UK - Accommodation,Science Group,Corporate Travel Management (North) Ltd,98568048,2.00,T&S UK - Accommodation
BEIS,UKRI - BBSRC,30/08/2019,T&S UK - Accommodation,Science Group,Corporate Travel Management (North) Ltd,98568048,95.00,T&S UK - Accommodation
BEIS,UKRI - BBSRC,30/08/2019,T&S UK - Accommodation,Science Group,Corporate Travel Management (North) Ltd,98568048,0.50,T&S UK - Accommodation
BEIS,UKRI - BBSRC,30/08/2019,T&S UK - Accommodation,Science Group,Corporate Travel Management (North) Ltd,98568048,209.00,T&S UK - Accommodation
BEIS,UKRI - BBSRC,30/08/2019,T&S UK - Accommodation,Science Group,Corporate Travel Management (North) Ltd,98568048,0.80,T&S UK - Accommodation
BEIS,UKRI - BBSRC,30/08/2019,T&S UK - Accommodation,Science Group,Corporate Travel Management (North) Ltd,98568048,150.30,T&S UK - Accommodation
BEIS,UKRI - BBSRC,30/08/2019,T&S UK - Accommodation,Science Group,Corporate Travel Management (North) Ltd,98568048,0.50,T&S UK - Accommodation
BEIS,UKRI - BBSRC,30/08/2019,T&S UK - Accommodation,Science Group,Corporate Travel Management (North) Ltd,98568048,1.96,T&S UK - Accommodation
BEIS,UKRI - BBSRC,30/08/2019,T&S UK - Flights,FG - Estates,Corporate Travel Management (North) Ltd,98568048,114.98,T&S UK - Flights
BEIS,UKRI - BBSRC,30/08/2019,T&S UK - Flights,FG - RCUK Assurance,Corporate Travel Management (North) Ltd,98568048,2.16,T&S UK - Flights
BEIS,UKRI - BBSRC,30/08/2019,T&S UK - Flights,FG - RCUK Assurance,Corporate Travel Management (North) Ltd,98568048,201.00,T&S UK - Flights
BEIS,UKRI - BBSRC,30/08/2019,T&S UK - Flights,Science Group,Corporate Travel Management (North) Ltd,98568048,82.66,T&S UK - Flights
BEIS,UKRI - BBSRC,30/08/2019,T&S UK - Flights,Science Group,Corporate Travel Management (North) Ltd,98568048,2.50,T&S UK - Flights
BEIS,UKRI - BBSRC,30/08/2019,T&S UK - Flights,Science Group,Corporate Travel Management (North) Ltd,98568048,37.21,T&S UK - Flights
BEIS,UKRI - BBSRC,30/08/2019,T&S UK - Flights,Science Group,Corporate Travel Management (North) Ltd,98568048,280.54,T&S UK - Flights
BEIS,UKRI - BBSRC,30/08/2019,T&S UK - Public Transport,CE - CPS,Corporate Travel Management (North) Ltd,98568048,0.25,T&S UK - Public Transport
BEIS,UKRI - BBSRC,30/08/2019,T&S UK - Public Transport,CE - CPS,Corporate Travel Management (North) Ltd,98568048,144.00,T&S UK - Public Transport
BEIS,UKRI - BBSRC,30/08/2019,T&S UK - Public Transport,CE - CPS,Corporate Travel Management (North) Ltd,98568048,95.05,T&S UK - Public Transport
BEIS,UKRI - BBSRC,30/08/2019,T&S UK - Public Transport,CE - CPS,Corporate Travel Management (North) Ltd,98568048,-21.20,T&S UK - Public Transport
BEIS,UKRI - BBSRC,30/08/2019,T&S UK - Public Transport,CE - CPS,Corporate Travel Management (North) Ltd,98568048,-46.60,T&S UK - Public Transport
BEIS,UKRI - BBSRC,30/08/2019,T&S UK - Public Transport,CE - CPS,Corporate Travel Management (North) Ltd,98568048,84.80,T&S UK - Public Transport
BEIS,UKRI - BBSRC,30/08/2019,T&S UK - Public Transport,CE - CPS,Corporate Travel Management (North) Ltd,98568048,0.25,T&S UK - Public Transport
BEIS,UKRI - BBSRC,30/08/2019,T&S UK - Public Transport,CE - CPS,Corporate Travel Management (North) Ltd,98568048,16.15,T&S UK - Public Transport
BEIS,UKRI - BBSRC,30/08/2019,T&S UK - Public Transport,CE - CPS,Corporate Travel Management (North) Ltd,98568048,0.25,T&S UK - Public Transport
BEIS,UKRI - BBSRC,30/08/2019,T&S UK - Public Transport,CE - CPS,Corporate Travel Management (North) Ltd,98568048,71.95,T&S UK - Public Transport
BEIS,UKRI - BBSRC,30/08/2019,T&S UK - Public Transport,CE - CPS,Corporate Travel Management (North) Ltd,98568048,10.90,T&S UK - Public Transport
BEIS,UKRI - BBSRC,30/08/2019,T&S UK - Public Transport,CE - CPS,Corporate Travel Management (North) Ltd,98568048,19.00,T&S UK - Public Transport
BEIS,UKRI - BBSRC,30/08/2019,T&S UK - Public Transport,CE - CPS,Corporate Travel Management (North) Ltd,98568048,1.00,T&S UK - Public Transport
BEIS,UKRI - BBSRC,30/08/2019,T&S UK - Public Transport,CE - CPS,Corporate Travel Management (North) Ltd,98568048,29.00,T&S UK - Public Transport
BEIS,UKRI - BBSRC,30/08/2019,T&S UK - Public Transport,CE - CPS,Corporate Travel Management (North) Ltd,98568048,-46.60,T&S UK - Public Transport
BEIS,UKRI - BBSRC,30/08/2019,T&S UK - Public Transport,CE - CPS,Corporate Travel Management (North) Ltd,98568048,69.90,T&S UK - Public Transport
BEIS,UKRI - BBSRC,30/08/2019,T&S UK - Public Transport,CE - CPS,Corporate Travel Management (North) Ltd,98568048,75.50,T&S UK - Public Transport
BEIS,UKRI - BBSRC,30/08/2019,T&S UK - Public Transport,CE - CPS,Corporate Travel Management (North) Ltd,98568048,0.50,T&S UK - Public Transport
BEIS,UKRI - BBSRC,30/08/2019,T&S UK - Public Transport,CE - CPS,Corporate Travel Management (North) Ltd,98568048,26.00,T&S UK - Public Transport
BEIS,UKRI - BBSRC,30/08/2019,T&S UK - Public Transport,CE - CPS,Corporate Travel Management (North) Ltd,98568048,72.00,T&S UK - Public Transport
BEIS,UKRI - BBSRC,30/08/2019,T&S UK - Public Transport,CE - Chief Executive,Corporate Travel Management (North) Ltd,98568048,-27.60,T&S UK - Public Transport
BEIS,UKRI - BBSRC,30/08/2019,T&S UK - Public Transport,CE - Chief Executive,Corporate Travel Management (North) Ltd,98568048,178.00,T&S UK - Public Transport
BEIS,UKRI - BBSRC,30/08/2019,T&S UK - Public Transport,CE - Chief Executive,Corporate Travel Management (North) Ltd,98568048,46.60,T&S UK - Public Transport
BEIS,UKRI - BBSRC,30/08/2019,T&S UK - Public Transport,CE - Chief Executive,Corporate Travel Management (North) Ltd,98568048,64.40,T&S UK - Public Transport
BEIS,UKRI - BBSRC,30/08/2019,T&S UK - Public Transport,CE - Chief Executive,Corporate Travel Management (North) Ltd,98568048,121.60,T&S UK - Public Transport
BEIS,UKRI - BBSRC,30/08/2019,T&S UK - Public Transport,CE - Chief Executive,Corporate Travel Management (North) Ltd,98568048,178.00,T&S UK - Public Transport
BEIS,UKRI - BBSRC,30/08/2019,T&S UK - Public Transport,CE - Chief Executive,Corporate Travel Management (North) Ltd,98568048,102.60,T&S UK - Public Transport
BEIS,UKRI - BBSRC,30/08/2019,T&S UK - Public Transport,CE - Chief Executive,Corporate Travel Management (North) Ltd,98568048,0.25,T&S UK - Public Transport
BEIS,UKRI - BBSRC,30/08/2019,T&S UK - Public Transport,CE - Chief Executive,Corporate Travel Management (North) Ltd,98568048,69.90,T&S UK - Public Transport
BEIS,UKRI - BBSRC,30/08/2019,T&S UK - Public Transport,CE - Chief Executive,Corporate Travel Management (North) Ltd,98568048,102.60,T&S UK - Public Transport
BEIS,UKRI - BBSRC,30/08/2019,T&S UK - Public Transport,CE - IRU,Corporate Travel Management (North) Ltd,98568048,0.25,T&S UK - Public Transport
BEIS,UKRI - BBSRC,30/08/2019,T&S UK - Public Transport,CE - IRU,Corporate Travel Management (North) Ltd,98568048,144.70,T&S UK - Public Transport
BEIS,UKRI - BBSRC,30/08/2019,T&S UK - Public Transport,CE - IRU,Corporate Travel Management (North) Ltd,98568048,103.80,T&S UK - Public Transport
BEIS,UKRI - BBSRC,30/08/2019,T&S UK - Public Transport,CIMG - Director,Corporate Travel Management (North) Ltd,98568048,103.80,T&S UK - Public Transport
BEIS,UKRI - BBSRC,30/08/2019,T&S UK - Public Transport,CIMG - Director,Corporate Travel Management (North) Ltd,98568048,103.80,T&S UK - Public Transport
BEIS,UKRI - BBSRC,30/08/2019,T&S UK - Public Transport,CIMG - Director,Corporate Travel Management (North) Ltd,98568048,103.80,T&S UK - Public Transport
BEIS,UKRI - BBSRC,30/08/2019,T&S UK - Public Transport,CIMG - Director,Corporate Travel Management (North) Ltd,98568048,144.00,T&S UK - Public Transport
BEIS,UKRI - BBSRC,30/08/2019,T&S UK - Public Transport,CIMG - Director,Corporate Travel Management (North) Ltd,98568048,0.25,T&S UK - Public Transport
BEIS,UKRI - BBSRC,30/08/2019,T&S UK - Public Transport,CIMG - Director,Corporate Travel Management (North) Ltd,98568048,192.50,T&S UK - Public Transport
BEIS,UKRI - BBSRC,30/08/2019,T&S UK - Public Transport,CIMG - External Relations,Corporate Travel Management (North) Ltd,98568048,5.00,T&S UK - Public Transport
BEIS,UKRI - BBSRC,30/08/2019,T&S UK - Public Transport,CIMG - External Relations,Corporate Travel Management (North) Ltd,98568048,-93.80,T&S UK - Public Transport
BEIS,UKRI - BBSRC,30/08/2019,T&S UK - Public Transport,CIMG - External Relations,Corporate Travel Management (North) Ltd,98568048,41.90,T&S UK - Public Transport
BEIS,UKRI - BBSRC,30/08/2019,T&S UK - Public Transport,CIMG - Programme Office,Corporate Travel Management (North) Ltd,98568048,84.80,T&S UK - Public Transport
BEIS,UKRI - BBSRC,30/08/2019,T&S UK - Public Transport,CIMG - Programme Office,Corporate Travel Management (North) Ltd,98568048,-26.80,T&S UK - Public Transport
BEIS,UKRI - BBSRC,30/08/2019,T&S UK - Public Transport,European Initiatives,Corporate Travel Management (North) Ltd,98568048,-26.80,T&S UK - Public Transport
BEIS,UKRI - BBSRC,30/08/2019,T&S UK - Public Transport,European Initiatives,Corporate Travel Management (North) Ltd,98568048,2.16,T&S UK - Public Transport
BEIS,UKRI - BBSRC,30/08/2019,T&S UK - Public Transport,European Initiatives,Corporate Travel Management (North) Ltd,98568048,97.32,T&S UK - Public Transport
BEIS,UKRI - BBSRC,30/08/2019,T&S UK - Public Transport,FG - Accounts & Business Planning,Corporate Travel Management (North) Ltd,98568048,53.80,T&S UK - Public Transport
BEIS,UKRI - BBSRC,30/08/2019,T&S UK - Public Transport,FG - Accounts & Business Planning,Corporate Travel Management (North) Ltd,98568048,71.00,T&S UK - Public Transport
BEIS,UKRI - BBSRC,30/08/2019,T&S UK - Public Transport,FG - Estates,Corporate Travel Management (North) Ltd,98568048,0.25,T&S UK - Public Transport
BEIS,UKRI - BBSRC,30/08/2019,T&S UK - Public Transport,FG - Estates,Corporate Travel Management (North) Ltd,98568048,49.50,T&S UK - Public Transport
BEIS,UKRI - BBSRC,30/08/2019,T&S UK - Public Transport,FG - Estates,Corporate Travel Management (North) Ltd,98568048,224.00,T&S UK - Public Transport
BEIS,UKRI - BBSRC,30/08/2019,T&S UK - Public Transport,FG - Estates,Corporate Travel Management (North) Ltd,98568048,0.25,T&S UK - Public Transport
BEIS,UKRI - BBSRC,30/08/2019,T&S UK - Public Transport,FG - Estates,Corporate Travel Management (North) Ltd,98568048,165.10,T&S UK - Public Transport
BEIS,UKRI - BBSRC,30/08/2019,T&S UK - Public Transport,FG - Estates,Corporate Travel Management (North) Ltd,98568048,144.70,T&S UK - Public Transport
BEIS,UKRI - BBSRC,30/08/2019,T&S UK - Public Transport,FG - Estates,Corporate Travel Management (North) Ltd,98568048,38.50,T&S UK - Public Transport
BEIS,UKRI - BBSRC,30/08/2019,T&S UK - Public Transport,FG - Estates,Corporate Travel Management (North) Ltd,98568048,0.25,T&S UK - Public Transport
BEIS,UKRI - BBSRC,30/08/2019,T&S UK - Public Transport,FG - Estates,Corporate Travel Management (North) Ltd,98568048,56.40,T&S UK - Public Transport
BEIS,UKRI - BBSRC,30/08/2019,T&S UK - Public Transport,FG - RCUK Assurance,Corporate Travel Management (North) Ltd,98568048,74.20,T&S UK - Public Transport
BEIS,UKRI - BBSRC,30/08/2019,T&S UK - Public Transport,FG - RCUK Assurance,Corporate Travel Management (North) Ltd,98568048,5.00,T&S UK - Public Transport
BEIS,UKRI - BBSRC,30/08/2019,T&S UK - Public Transport,FG - RCUK Assurance,Corporate Travel Management (North) Ltd,98568048,-87.70,T&S UK - Public Transport
BEIS,UKRI - BBSRC,30/08/2019,T&S UK - Public Transport,FG - RCUK Assurance,Corporate Travel Management (North) Ltd,98568048,72.00,T&S UK - Public Transport
BEIS,UKRI - BBSRC,30/08/2019,T&S UK - Public Transport,FG - RCUK Assurance,Corporate Travel Management (North) Ltd,98568048,28.80,T&S UK - Public Transport
BEIS,UKRI - BBSRC,30/08/2019,T&S UK - Public Transport,FG - RCUK Assurance,Corporate Travel Management (North) Ltd,98568048,16.50,T&S UK - Public Transport
BEIS,UKRI - BBSRC,30/08/2019,T&S UK - Public Transport,Innovation and Skills Group,Corporate Travel Management (North) Ltd,98568048,0.25,T&S UK - Public Transport
BEIS,UKRI - BBSRC,30/08/2019,T&S UK - Public Transport,Innovation and Skills Group,Corporate Travel Management (North) Ltd,98568048,72.60,T&S UK - Public Transport
BEIS,UKRI - BBSRC,30/08/2019,T&S UK - Public Transport,Innovation and Skills Group,Corporate Travel Management (North) Ltd,98568048,0.25,T&S UK - Public Transport
BEIS,UKRI - BBSRC,30/08/2019,T&S UK - Public Transport,Innovation and Skills Group,Corporate Travel Management (North) Ltd,98568048,103.80,T&S UK - Public Transport
BEIS,UKRI - BBSRC,30/08/2019,T&S UK - Public Transport,Innovation and Skills Group,Corporate Travel Management (North) Ltd,98568048,13.10,T&S UK - Public Transport
BEIS,UKRI - BBSRC,30/08/2019,T&S UK - Public Transport,Innovation and Skills Group,Corporate Travel Management (North) Ltd,98568048,186.25,T&S UK - Public Transport
BEIS,UKRI - BBSRC,30/08/2019,T&S UK - Public Transport,Innovation and Skills Group,Corporate Travel Management (North) Ltd,98568048,0.25,T&S UK - Public Transport
BEIS,UKRI - BBSRC,30/08/2019,T&S UK - Public Transport,Innovation and Skills Group,Corporate Travel Management (North) Ltd,98568048,144.00,T&S UK - Public Transport
BEIS,UKRI - BBSRC,30/08/2019,T&S UK - Public Transport,Innovation and Skills Group,Corporate Travel Management (North) Ltd,98568048,144.00,T&S UK - Public Transport
BEIS,UKRI - BBSRC,30/08/2019,T&S UK - Public Transport,Innovation and Skills Group,Corporate Travel Management (North) Ltd,98568048,144.00,T&S UK - Public Transport
BEIS,UKRI - BBSRC,30/08/2019,T&S UK - Public Transport,Innovation and Skills Group,Corporate Travel Management (North) Ltd,98568048,225.50,T&S UK - Public Transport
BEIS,UKRI - BBSRC,30/08/2019,T&S UK - Public Transport,Innovation and Skills Group,Corporate Travel Management (North) Ltd,98568048,147.00,T&S UK - Public Transport
BEIS,UKRI - BBSRC,30/08/2019,T&S UK - Public Transport,Innovation and Skills Group,Corporate Travel Management (North) Ltd,98568048,53.65,T&S UK - Public Transport
BEIS,UKRI - BBSRC,30/08/2019,T&S UK - Public Transport,Innovation and Skills Group,Corporate Travel Management (North) Ltd,98568048,144.00,T&S UK - Public Transport
BEIS,UKRI - BBSRC,30/08/2019,T&S UK - Public Transport,Innovation and Skills Group,Corporate Travel Management (North) Ltd,98568048,62.70,T&S UK - Public Transport
BEIS,UKRI - BBSRC,30/08/2019,T&S UK - Public Transport,Innovation and Skills Group,Corporate Travel Management (North) Ltd,98568048,73.90,T&S UK - Public Transport
BEIS,UKRI - BBSRC,30/08/2019,T&S UK - Public Transport,Innovation and Skills Group,Corporate Travel Management (North) Ltd,98568048,-66.40,T&S UK - Public Transport
BEIS,UKRI - BBSRC,30/08/2019,T&S UK - Public Transport,Innovation and Skills Group,Corporate Travel Management (North) Ltd,98568048,144.00,T&S UK - Public Transport
BEIS,UKRI - BBSRC,30/08/2019,T&S UK - Public Transport,Innovation and Skills Group,Corporate Travel Management (North) Ltd,98568048,144.00,T&S UK - Public Transport
BEIS,UKRI - BBSRC,30/08/2019,T&S UK - Public Transport,Innovation and Skills Group,Corporate Travel Management (North) Ltd,98568048,168.40,T&S UK - Public Transport
BEIS,UKRI - BBSRC,30/08/2019,T&S UK - Public Transport,Innovation and Skills Group,Corporate Travel Management (North) Ltd,98568048,69.90,T&S UK - Public Transport
BEIS,UKRI - BBSRC,30/08/2019,T&S UK - Public Transport,Innovation and Skills Group,Corporate Travel Management (North) Ltd,98568048,55.20,T&S UK - Public Transport
BEIS,UKRI - BBSRC,30/08/2019,T&S UK - Public Transport,Innovation and Skills Group,Corporate Travel Management (North) Ltd,98568048,0.25,T&S UK - Public Transport
BEIS,UKRI - BBSRC,30/08/2019,T&S UK - Public Transport,Innovation and Skills Group,Corporate Travel Management (North) Ltd,98568048,103.80,T&S UK - Public Transport
BEIS,UKRI - BBSRC,30/08/2019,T&S UK - Public Transport,Innovation and Skills Group,Corporate Travel Management (North) Ltd,98568048,0.25,T&S UK - Public Transport
BEIS,UKRI - BBSRC,30/08/2019,T&S UK - Public Transport,Innovation and Skills Group,Corporate Travel Management (North) Ltd,98568048,153.10,T&S UK - Public Transport
BEIS,UKRI - BBSRC,30/08/2019,T&S UK - Public Transport,Innovation and Skills Group,Corporate Travel Management (North) Ltd,98568048,0.25,T&S UK - Public Transport
BEIS,UKRI - BBSRC,30/08/2019,T&S UK - Public Transport,Innovation and Skills Group,Corporate Travel Management (North) Ltd,98568048,55.20,T&S UK - Public Transport
BEIS,UKRI - BBSRC,30/08/2019,T&S UK - Public Transport,Innovation and Skills Group,Corporate Travel Management (North) Ltd,98568048,0.25,T&S UK - Public Transport
BEIS,UKRI - BBSRC,30/08/2019,T&S UK - Public Transport,Innovation and Skills Group,Corporate Travel Management (North) Ltd,98568048,72.60,T&S UK - Public Transport
BEIS,UKRI - BBSRC,30/08/2019,T&S UK - Public Transport,Innovation and Skills Group,Corporate Travel Management (North) Ltd,98568048,0.25,T&S UK - Public Transport
BEIS,UKRI - BBSRC,30/08/2019,T&S UK - Public Transport,Innovation and Skills Group,Corporate Travel Management (North) Ltd,98568048,114.40,T&S UK - Public Transport
BEIS,UKRI - BBSRC,30/08/2019,T&S UK - Public Transport,Innovation and Skills Group,Corporate Travel Management (North) Ltd,98568048,0.25,T&S UK - Public Transport
BEIS,UKRI - BBSRC,30/08/2019,T&S UK - Public Transport,Innovation and Skills Group,Corporate Travel Management (North) Ltd,98568048,144.00,T&S UK - Public Transport
BEIS,UKRI - BBSRC,30/08/2019,T&S UK - Public Transport,Innovation and Skills Group CDSU,Corporate Travel Management (North) Ltd,98568048,144.00,T&S UK - Public Transport
BEIS,UKRI - BBSRC,30/08/2019,T&S UK - Public Transport,Innovation and Skills Group CDSU,Corporate Travel Management (North) Ltd,98568048,23.70,T&S UK - Public Transport
BEIS,UKRI - BBSRC,30/08/2019,T&S UK - Public Transport,Innovation and Skills Group CDSU,Corporate Travel Management (North) Ltd,98568048,0.25,T&S UK - Public Transport
BEIS,UKRI - BBSRC,30/08/2019,T&S UK - Public Transport,Innovation and Skills Group CDSU,Corporate Travel Management (North) Ltd,98568048,47.65,T&S UK - Public Transport
BEIS,UKRI - BBSRC,30/08/2019,T&S UK - Public Transport,Innovation and Skills Group CDSU,Corporate Travel Management (North) Ltd,98568048,103.80,T&S UK - Public Transport
BEIS,UKRI - BBSRC,30/08/2019,T&S UK - Public Transport,Innovation and Skills Group CDSU,Corporate Travel Management (North) Ltd,98568048,103.80,T&S UK - Public Transport
BEIS,UKRI - BBSRC,30/08/2019,T&S UK - Public Transport,Innovation and Skills Group CDSU,Corporate Travel Management (North) Ltd,98568048,96.50,T&S UK - Public Transport
BEIS,UKRI - BBSRC,30/08/2019,T&S UK - Public Transport,Innovation and Skills Group CDSU,Corporate Travel Management (North) Ltd,98568048,0.25,T&S UK - Public Transport
BEIS,UKRI - BBSRC,30/08/2019,T&S UK - Public Transport,Innovation and Skills Group CDSU,Corporate Travel Management (North) Ltd,98568048,103.80,T&S UK - Public Transport
BEIS,UKRI - BBSRC,30/08/2019,T&S UK - Public Transport,JBOS - Staff,Corporate Travel Management (North) Ltd,98568048,0.25,T&S UK - Public Transport
BEIS,UKRI - BBSRC,30/08/2019,T&S UK - Public Transport,JBOS - Staff,Corporate Travel Management (North) Ltd,98568048,144.70,T&S UK - Public Transport
BEIS,UKRI - BBSRC,30/08/2019,T&S UK - Public Transport,PDG - JSS,Corporate Travel Management (North) Ltd,98568048,0.25,T&S UK - Public Transport
BEIS,UKRI - BBSRC,30/08/2019,T&S UK - Public Transport,PDG - JSS,Corporate Travel Management (North) Ltd,98568048,127.60,T&S UK - Public Transport
BEIS,UKRI - BBSRC,30/08/2019,T&S UK - Public Transport,RISD - UKRO,Corporate Travel Management (North) Ltd,98568048,31.80,T&S UK - Public Transport
BEIS,UKRI - BBSRC,30/08/2019,T&S UK - Public Transport,RISD - UKRO,Corporate Travel Management (North) Ltd,98568048,0.25,T&S UK - Public Transport
BEIS,UKRI - BBSRC,30/08/2019,T&S UK - Public Transport,RISD - UKRO,Corporate Travel Management (North) Ltd,98568048,67.50,T&S UK - Public Transport
BEIS,UKRI - BBSRC,30/08/2019,T&S UK - Public Transport,RISD - UKRO,Corporate Travel Management (North) Ltd,98568048,5.00,T&S UK - Public Transport
BEIS,UKRI - BBSRC,30/08/2019,T&S UK - Public Transport,RISD - UKRO,Corporate Travel Management (North) Ltd,98568048,-84.00,T&S UK - Public Transport
BEIS,UKRI - BBSRC,30/08/2019,T&S UK - Public Transport,RISD - UKRO,Corporate Travel Management (North) Ltd,98568048,1.00,T&S UK - Public Transport
BEIS,UKRI - BBSRC,30/08/2019,T&S UK - Public Transport,RISD - UKRO,Corporate Travel Management (North) Ltd,98568048,141.70,T&S UK - Public Transport
BEIS,UKRI - BBSRC,30/08/2019,T&S UK - Public Transport,RISD - UKRO,Corporate Travel Management (North) Ltd,98568048,1.00,T&S UK - Public Transport
BEIS,UKRI - BBSRC,30/08/2019,T&S UK - Public Transport,RISD - UKRO,Corporate Travel Management (North) Ltd,98568048,13.00,T&S UK - Public Transport
BEIS,UKRI - BBSRC,30/08/2019,T&S UK - Public Transport,RISD - UKRO,Corporate Travel Management (North) Ltd,98568048,1.00,T&S UK - Public Transport
BEIS,UKRI - BBSRC,30/08/2019,T&S UK - Public Transport,RISD - UKRO,Corporate Travel Management (North) Ltd,98568048,11.10,T&S UK - Public Transport
BEIS,UKRI - BBSRC,30/08/2019,T&S UK - Public Transport,RISD - UKRO,Corporate Travel Management (North) Ltd,98568048,1.00,T&S UK - Public Transport
BEIS,UKRI - BBSRC,30/08/2019,T&S UK - Public Transport,RISD - UKRO,Corporate Travel Management (North) Ltd,98568048,16.55,T&S UK - Public Transport
BEIS,UKRI - BBSRC,30/08/2019,T&S UK - Public Transport,RISD - UKRO,Corporate Travel Management (North) Ltd,98568048,1.00,T&S UK - Public Transport
BEIS,UKRI - BBSRC,30/08/2019,T&S UK - Public Transport,RISD - UKRO,Corporate Travel Management (North) Ltd,98568048,46.60,T&S UK - Public Transport
BEIS,UKRI - BBSRC,30/08/2019,T&S UK - Public Transport,Science Group,Corporate Travel Management (North) Ltd,98568048,30.60,T&S UK - Public Transport
BEIS,UKRI - BBSRC,30/08/2019,T&S UK - Public Transport,Science Group,Corporate Travel Management (North) Ltd,98568048,114.40,T&S UK - Public Transport
BEIS,UKRI - BBSRC,30/08/2019,T&S UK - Public Transport,Science Group,Corporate Travel Management (North) Ltd,98568048,43.05,T&S UK - Public Transport
BEIS,UKRI - BBSRC,30/08/2019,T&S UK - Public Transport,Science Group,Corporate Travel Management (North) Ltd,98568048,145.10,T&S UK - Public Transport
BEIS,UKRI - BBSRC,30/08/2019,T&S UK - Public Transport,Science Group,Corporate Travel Management (North) Ltd,98568048,144.00,T&S UK - Public Transport
BEIS,UKRI - BBSRC,30/08/2019,T&S UK - Public Transport,Science Group,Corporate Travel Management (North) Ltd,98568048,0.25,T&S UK - Public Transport
BEIS,UKRI - BBSRC,30/08/2019,T&S UK - Public Transport,Science Group,Corporate Travel Management (North) Ltd,98568048,46.15,T&S UK - Public Transport
BEIS,UKRI - BBSRC,30/08/2019,T&S UK - Public Transport,Science Group,Corporate Travel Management (North) Ltd,98568048,138.00,T&S UK - Public Transport
BEIS,UKRI - BBSRC,30/08/2019,T&S UK - Public Transport,Science Group,Corporate Travel Management (North) Ltd,98568048,0.25,T&S UK - Public Transport
BEIS,UKRI - BBSRC,30/08/2019,T&S UK - Public Transport,Science Group,Corporate Travel Management (North) Ltd,98568048,56.70,T&S UK - Public Transport
BEIS,UKRI - BBSRC,30/08/2019,T&S UK - Public Transport,Science Group,Corporate Travel Management (North) Ltd,98568048,54.10,T&S UK - Public Transport
BEIS,UKRI - BBSRC,30/08/2019,T&S UK - Public Transport,Science Group,Corporate Travel Management (North) Ltd,98568048,81.00,T&S UK - Public Transport
BEIS,UKRI - BBSRC,30/08/2019,T&S UK - Public Transport,Science Group,Corporate Travel Management (North) Ltd,98568048,15.30,T&S UK - Public Transport
BEIS,UKRI - BBSRC,30/08/2019,T&S UK - Public Transport,Science Group,Corporate Travel Management (North) Ltd,98568048,119.30,T&S UK - Public Transport
BEIS,UKRI - BBSRC,30/08/2019,T&S UK - Public Transport,Science Group,Corporate Travel Management (North) Ltd,98568048,190.50,T&S UK - Public Transport
BEIS,UKRI - BBSRC,30/08/2019,T&S UK - Public Transport,Science Group,Corporate Travel Management (North) Ltd,98568048,75.50,T&S UK - Public Transport
BEIS,UKRI - BBSRC,30/08/2019,T&S UK - Public Transport,Science Group,Corporate Travel Management (North) Ltd,98568048,1.00,T&S UK - Public Transport
BEIS,UKRI - BBSRC,30/08/2019,T&S UK - Public Transport,Science Group,Corporate Travel Management (North) Ltd,98568048,126.50,T&S UK - Public Transport
BEIS,UKRI - BBSRC,30/08/2019,T&S UK - Public Transport,Science Group,Corporate Travel Management (North) Ltd,98568048,8.60,T&S UK - Public Transport
